Workbook

Sheet rozpis_příprava
B2: VÁNOČNÍ TURNAJ V BOWLINGU 2015
B5: Místo: | C5: Xbowling Žižkov
B6: Datum: | C6: 2. ledna 2016 - sobota
B7: Čas: | C7: 17:00 - 20:00 hod.
B10: Rozlosování účastníků na dráhy
B11: PČ | C11: DRÁHA č.1 | D11: kat. | E11: DRÁHA č.2 | F11: kat. | G11: DRÁHA č.3 | H11: kat. | I11: DRÁHA č.4 | J11: kat. | K11: DRÁHA č.5 | L11: kat. | M11: DRÁHA č.6 | N11: kat. | P11: kat. | R11: kat.
B12: 1. | C12: Jana K. | D12: Ž | E12: Mirka M. | F12: Ž | G12: Lucka N. | H12: Ž | K12: Mojka V. | L12: P
B13: 2. | C13: Renata A. | D13: Ž | E13: Olina P. | F13: Ž | K13: Jarda H. | L13: P | M13: David D. | N13: M
B14: 3. | C14: Vlaďka C. | D14: Ž | E14: Jitka M. | F14: Ž | K14: Štefan P. | L14: M | M14: Petr V. | N14: P
B15: 4. | C15: Ivana V. | D15: Ž | E15: Ilona K. | F15: Ž | K15: Mirek K. | L15: M | M15: Honza R. | N15: P
B17: Počet účastníků bowlingového turnaje
B19: CELKOVÝ | D19: =SUM(D20:D22) -> 16
B20: KATEGORIE ŽENY | D20: =COUNTIF($D$12:$D$15,E20)+COUNTIF($F$12:$F$15,E20)+COUNTIF($H$12:$H$15,E20)+COUNTIF($J$12:$J$15,E20)+COUNTIF($L$12:$L$15,E20)+COUNTIF($N$12:$N$15,E20)+COUNTIF($P$12:$P$15,E20)+COUNTIF($R$12:$R$15,E20) -> 9 | E20: Ž | G20: =IF(D20>10,"ERROR - MAX 10 HRÁČŮ") -> FALSE
B21: KATEGORIE MUŽI | D21: =COUNTIF($D$12:$D$15,E21)+COUNTIF($F$12:$F$15,E21)+COUNTIF($H$12:$H$15,E21)+COUNTIF($J$12:$J$15,E21)+COUNTIF($L$12:$L$15,E21)+COUNTIF($N$12:$N$15,E21)+COUNTIF($P$12:$P$15,E21)+COUNTIF($R$12:$R$15,E21) -> 3 | E21: M | G21: =IF(D21>12,"ERROR - MAX 12 HRÁČŮ") -> FALSE
B22: KATEGORIE PROFI | D22: 4 | E22: P | G22: =IF(D22>10,"ERROR - MAX 10 HRÁČŮ") -> FALSE
C24: Alternativní rozlosování hráčů na dráhy
C26: DRÁHA č.1 | D26: kat. | E26: DRÁHA č.2 | F26: kat. | G26: DRÁHA č.3 | H26: kat. | I26: DRÁHA č.4 | J26: kat. | K26: DRÁHA č.5 | L26: kat. | M26: DRÁHA č.6 | N26: kat. | P26: kat. | R26: kat.
C27: Jiřina A. | D27: Ž | E27: Mirka M. | F27: Ž | G27: Mojka V. | H27: P | I27: Renda K. | J27: P | K27: Petr V. | L27: P | M27: David K. | N27: P
C28: Renata A. | D28: Ž | E28: Olina P. | F28: Ž | G28: Jarda H. | H28: P | I28: Jindra B. | J28: P | K28: Honza R. | L28: P | M28: David D. | N28: M
C29: Vlaďka C. | D29: Ž | E29: Jitka M. | F29: Ž | G29: Lucka P. | H29: Ž | I29: Karel V. | J29: M | K29: Štefan P. | L29: M | M29: Mirek H. | N29: M
C30: Ivana V. | D30: Ž | E30: Ilona K. | F30: Ž | G30: Lucka N. | H30: Ž | I30: Filip J. | J30: M | K30: Mirek K. | L30: M | M30: Pepa P. | N30: M

Sheet rozpis_final_tisk
C2: HENDIKEP | F2: BODŮ PRO ŽENY A JUNIORY DO 15 LET
S3: Pomocné tabulky pro výpočet Hendikepu | AO3: Pomocné tabulky pro výpočet průměru
B5: =rozpis_příprava!B2 -> VÁNOČNÍ TURNAJ V BOWLINGU 2015 | S5: =E2 -> 0
S6: =E2*2 -> 0
B7: Místo: | C7: =rozpis_příprava!C5 -> Xbowling Žižkov | S7: =E2*3 -> 0
B8: Datum: | C8: =rozpis_příprava!C6 -> 2. ledna 2016 - sobota | S8: =E2*4 -> 0
B9: Čas: | C9: =rozpis_příprava!C7 -> 17:00 - 20:00 hod. | S9: =E2*5 -> 0
S10: =E2*6 -> 0 | U10: Převádí hodnoty pouze u hráčů z jedné kategorie "Ž" (hráči u kterých bude | AO10: K reálnému náhozu hráče přičítá bodový Hendikep pro všechny kategorie. Přičemž navýšené
D11: kat. | E11: =rozpis_příprava!C11 -> DRÁHA č.1 | S11: =E2*7 -> 0 | U11: do výpočtu zahrnut Hendikep) | AE11: Ruší chbové hlášení "Nepravda" | AO11: výsledky o Hendikep jsou používány pouze pro kategorii Ž (ošetřeno vzorcem v průměru).
B12: Jméno | E12: 1. hra | F12: 2. hra | G12: 3.hra | H12: 4. hra | I12: 5. hra | J12: 6. hra | K12: 7. hra | L12: 8. hra | M12: 9. hra | N12: Hendikep | O12: SOUČET | P12: PRŮMĚR | S12: =E2*8 -> 0
B13: =rozpis_příprava!C12 -> Jana K. | D13: =rozpis_příprava!D12 -> Ž | E13: 189 | F13: 145 | G13: 185 | H13: 206 | I13: 122 | N13: =IF(AM13>0,$S$13,IF(AL13>0,$S$12,IF(AK13>0,$S$11,IF(AJ13>0,$S$10,IF(AI13>0,$S$9,IF(AH13>0,$S$8,IF(AG13>0,$S$7,IF(AF13>0,$S$6,IF(AE13>0,$S$5))))))))) -> 0 | O13: =SUM(E13:N13) -> 847 | P13: =IF(D13=rozpis_příprava!$E$20,AVERAGE(AO13:AW13),IF(D13<>rozpis_příprava!$E$20,AVERAGE(rozpis_final_tisk!E13:M13))) -> 169.4 | S13: =E2*9 -> 0 | U13: =IF(D13=rozpis_příprava!$E$20,IF(E13>0,E13)) -> 189 | V13: =IF(D13=rozpis_příprava!$E$20,IF(F13>0,F13)) -> 145 | W13: =IF(D13=rozpis_příprava!$E$20,IF(G13>0,G13)) -> 185 | X13: =IF(D13=rozpis_příprava!$E$20,IF(H13>0,H13)) -> 206 | Y13: =IF(D13=rozpis_příprava!$E$20,IF(I13>0,I13)) -> 122 | Z13: =IF(D13=rozpis_příprava!$E$20,IF(J13>0,J13)) -> FALSE | AA13: =IF(D13=rozpis_příprava!$E$20,IF(K13>0,K13)) -> FALSE | AB13: =IF(D13=rozpis_příprava!$E$20,IF(L13>0,L13)) -> FALSE | AC13: =IF(D13=rozpis_příprava!$E$20,IF(M13>0,M13)) -> FALSE | AE13: =IF(U13=FALSE,0) -> FALSE | AF13: =IF(V13=FALSE,0) -> FALSE | AG13: FALSE | AH13: FALSE | AI13: FALSE | AJ13: 0 | AK13: 0 | AL13: 0 | AM13: 0 | AO13: =IF(E13>0,E13+$E$2) -> 189 | AP13: =IF(F13>0,F13+$E$2) -> 145 | AQ13: 185 | AR13: 206 | AS13: 122 | AT13: FALSE | AU13: FALSE | AV13: FALSE | AW13: FALSE
B14: =rozpis_příprava!C13 -> Renata A. | D14: =rozpis_příprava!D13 -> Ž | E14: 127 | F14: 118 | G14: 158 | H14: 165 | I14: 124 | J14: 222 | N14: =IF(AM14>0,$S$13,IF(AL14>0,$S$12,IF(AK14>0,$S$11,IF(AJ14>0,$S$10,IF(AI14>0,$S$9,IF(AH14>0,$S$8,IF(AG14>0,$S$7,IF(AF14>0,$S$6,IF(AE14>0,$S$5))))))))) -> 0 | O14: =SUM(E14:N14) -> 914 | P14: =IF(D14=rozpis_příprava!$E$20,AVERAGE(AO14:AW14),IF(D14<>rozpis_příprava!$E$20,AVERAGE(rozpis_final_tisk!E14:M14))) -> 152.3333333 | U14: =IF(D14=rozpis_příprava!$E$20,IF(E14>0,E14)) -> 127 | V14: =IF(D14=rozpis_příprava!$E$20,IF(F14>0,F14)) -> 118 | W14: =IF(D14=rozpis_příprava!$E$20,IF(G14>0,G14)) -> 158 | X14: =IF(D14=rozpis_příprava!$E$20,IF(H14>0,H14)) -> 165 | Y14: =IF(D14=rozpis_příprava!$E$20,IF(I14>0,I14)) -> 124 | Z14: =IF(D14=rozpis_příprava!$E$20,IF(J14>0,J14)) -> 222 | AA14: =IF(D14=rozpis_příprava!$E$20,IF(K14>0,K14)) -> FALSE | AB14: =IF(D14=rozpis_příprava!$E$20,IF(L14>0,L14)) -> FALSE | AC14: =IF(D14=rozpis_příprava!$E$20,IF(M14>0,M14)) -> FALSE | AE14: =IF(U14=FALSE,0) -> FALSE | AF14: =IF(V14=FALSE,0) -> FALSE | AG14: =IF(W14=FALSE,0) -> FALSE | AH14: =IF(X14=FALSE,0) -> FALSE | AI14: =IF(Y14=FALSE,0) -> FALSE | AJ14: =IF(Z14=FALSE,0) -> FALSE | AK14: =IF(AA14=FALSE,0) -> 0 | AL14: =IF(AB14=FALSE,0) -> 0 | AM14: =IF(AC14=FALSE,0) -> 0 | AO14: =IF(E14>0,E14+$E$2) -> 127 | AP14: =IF(F14>0,F14+$E$2) -> 118 | AQ14: =IF(G14>0,G14+$E$2) -> 158 | AR14: =IF(H14>0,H14+$E$2) -> 165 | AS14: =IF(I14>0,I14+$E$2) -> 124 | AT14: =IF(J14>0,J14+$E$2) -> 222 | AU14: =IF(K14>0,K14+$E$2) -> FALSE | AV14: =IF(L14>0,L14+$E$2) -> FALSE | AW14: =IF(M14>0,M14+$E$2) -> FALSE
B15: =rozpis_příprava!C14 -> Vlaďka C. | D15: =rozpis_příprava!D14 -> Ž | E15: 82 | F15: 94 | G15: 98 | H15: 58 | I15: 97 | N15: 0 | O15: 429 | P15: =IF(D15=rozpis_příprava!$E$20,AVERAGE(AO15:AW15),IF(D15<>rozpis_příprava!$E$20,AVERAGE(rozpis_final_tisk!E15:M15))) -> 85.8 | U15: =IF(D15=rozpis_příprava!$E$20,IF(E15>0,E15)) -> 82 | V15: =IF(D15=rozpis_příprava!$E$20,IF(F15>0,F15)) -> 94 | W15: =IF(D15=rozpis_příprava!$E$20,IF(G15>0,G15)) -> 98 | X15: =IF(D15=rozpis_příprava!$E$20,IF(H15>0,H15)) -> 58 | Y15: =IF(D15=rozpis_příprava!$E$20,IF(I15>0,I15)) -> 97 | Z15: =IF(D15=rozpis_příprava!$E$20,IF(J15>0,J15)) -> FALSE | AA15: =IF(D15=rozpis_příprava!$E$20,IF(K15>0,K15)) -> FALSE | AB15: =IF(D15=rozpis_příprava!$E$20,IF(L15>0,L15)) -> FALSE | AC15: =IF(D15=rozpis_příprava!$E$20,IF(M15>0,M15)) -> FALSE | AE15: FALSE | AF15: FALSE | AG15: FALSE | AH15: FALSE | AI15: FALSE | AJ15: 0 | AK15: 0 | AL15: 0 | AM15: 0 | AO15: 82 | AP15: 94 | AQ15: 98 | AR15: 58 | AS15: 97 | AT15: FALSE | AU15: FALSE | AV15: FALSE | AW15: FALSE
B16: =rozpis_příprava!C15 -> Ivana V. | D16: =rozpis_příprava!D15 -> Ž | E16: 77 | F16: 107 | G16: 69 | H16: 97 | I16: 84 | N16: 0 | O16: 434 | P16: =IF(D16=rozpis_příprava!$E$20,AVERAGE(AO16:AW16),IF(D16<>rozpis_příprava!$E$20,AVERAGE(rozpis_final_tisk!E16:M16))) -> 86.8 | U16: =IF(D16=rozpis_příprava!$E$20,IF(E16>0,E16)) -> 77 | V16: =IF(D16=rozpis_příprava!$E$20,IF(F16>0,F16)) -> 107 | W16: =IF(D16=rozpis_příprava!$E$20,IF(G16>0,G16)) -> 69 | X16: =IF(D16=rozpis_příprava!$E$20,IF(H16>0,H16)) -> 97 | Y16: =IF(D16=rozpis_příprava!$E$20,IF(I16>0,I16)) -> 84 | Z16: =IF(D16=rozpis_příprava!$E$20,IF(J16>0,J16)) -> FALSE | AA16: =IF(D16=rozpis_příprava!$E$20,IF(K16>0,K16)) -> FALSE | AB16: =IF(D16=rozpis_příprava!$E$20,IF(L16>0,L16)) -> FALSE | AC16: =IF(D16=rozpis_příprava!$E$20,IF(M16>0,M16)) -> FALSE | AE16: FALSE | AF16: FALSE | AG16: FALSE | AH16: FALSE | AI16: FALSE | AJ16: 0 | AK16: 0 | AL16: 0 | AM16: 0 | AO16: 77 | AP16: 107 | AQ16: 69 | AR16: 97 | AS16: 84 | AT16: FALSE | AU16: FALSE | AV16: FALSE | AW16: FALSE
B17: SOUČET | E17: =IF(SUM(E13:E16)=0,"",SUM(E13:E16)) -> 475 | F17: =IF(SUM(F13:F16)=0,"",SUM(F13:F16)) -> 464 | G17: 510 | H17: 526 | I17: 427 | J17: 222 | O17: =IF(SUM(E17:M17)=0,"",SUM(E17:M17)) -> 2624
B18: PRŮMĚR | E18: =IF(E17="","",AVERAGE(E13:E16)) -> 118.75 | F18: =IF(F17="","",AVERAGE(F13:F16)) -> 116 | G18: 127.5 | H18: 131.5 | I18: 106.75 | J18: 222 | P18: =IF(O17="","",AVERAGE(E13:M16)) -> 124.952381
B20: Za zápis na dráze zodpovídá:
B23: =rozpis_příprava!B2 -> VÁNOČNÍ TURNAJ V BOWLINGU 2015
B25: Místo: | C25: =rozpis_příprava!C5 -> Xbowling Žižkov
B26: Datum: | C26: =rozpis_příprava!C6 -> 2. ledna 2016 - sobota
B27: Čas: | C27: =rozpis_příprava!C7 -> 17:00 - 20:00 hod.
D29: kat. | E29: =rozpis_příprava!E11 -> DRÁHA č.2
B30: Jméno | E30: 1. hra | F30: 2. hra | G30: 3.hra | H30: 4. hra | I30: 5. hra | J30: 6. hra | K30: 7. hra | L30: 8. hra | M30: 9. hra | N30: Hendikep | O30: SOUČET | P30: PRŮMĚR
B31: =rozpis_příprava!E12 -> Mirka M. | D31: =rozpis_příprava!F12 -> Ž | E31: 79 | F31: 53 | G31: 97 | H31: 72 | I31: 90 | N31: =IF(AM31>0,$S$13,IF(AL31>0,$S$12,IF(AK31>0,$S$11,IF(AJ31>0,$S$10,IF(AI31>0,$S$9,IF(AH31>0,$S$8,IF(AG31>0,$S$7,IF(AF31>0,$S$6,IF(AE31>0,$S$5))))))))) -> 0 | O31: =SUM(E31:N31) -> 391 | P31: =IF(D31=rozpis_příprava!$E$20,AVERAGE(AO31:AW31),IF(D31<>rozpis_příprava!$E$20,AVERAGE(rozpis_final_tisk!E31:M31))) -> 78.2 | U31: =IF(D31=rozpis_příprava!$E$20,IF(E31>0,E31)) -> 79 | V31: =IF(D31=rozpis_příprava!$E$20,IF(F31>0,F31)) -> 53 | W31: =IF(D31=rozpis_příprava!$E$20,IF(G31>0,G31)) -> 97 | X31: =IF(D31=rozpis_příprava!$E$20,IF(H31>0,H31)) -> 72 | Y31: =IF(D31=rozpis_příprava!$E$20,IF(I31>0,I31)) -> 90 | Z31: =IF(D31=rozpis_příprava!$E$20,IF(J31>0,J31)) -> FALSE | AA31: =IF(D31=rozpis_příprava!$E$20,IF(K31>0,K31)) -> FALSE | AB31: =IF(D31=rozpis_příprava!$E$20,IF(L31>0,L31)) -> FALSE | AC31: =IF(D31=rozpis_příprava!$E$20,IF(M31>0,M31)) -> FALSE | AE31: =IF(U31=FALSE,0) -> FALSE | AF31: =IF(V31=FALSE,0) -> FALSE | AG31: =IF(W31=FALSE,0) -> FALSE | AH31: =IF(X31=FALSE,0) -> FALSE | AI31: =IF(Y31=FALSE,0) -> FALSE | AJ31: =IF(Z31=FALSE,0) -> 0 | AK31: =IF(AA31=FALSE,0) -> 0 | AL31: =IF(AB31=FALSE,0) -> 0 | AM31: =IF(AC31=FALSE,0) -> 0 | AO31: =IF(E31>0,E31+$E$2) -> 79 | AP31: =IF(F31>0,F31+$E$2) -> 53 | AQ31: =IF(G31>0,G31+$E$2) -> 97 | AR31: =IF(H31>0,H31+$E$2) -> 72 | AS31: =IF(I31>0,I31+$E$2) -> 90 | AT31: =IF(J31>0,J31+$E$2) -> FALSE | AU31: =IF(K31>0,K31+$E$2) -> FALSE | AV31: =IF(L31>0,L31+$E$2) -> FALSE | AW31: =IF(M31>0,M31+$E$2) -> FALSE
B32: =rozpis_příprava!E13 -> Olina P. | D32: =rozpis_příprava!F13 -> Ž | E32: 187 | F32: 124 | G32: 147 | H32: 146 | I32: 265 | N32: =IF(AM32>0,$S$13,IF(AL32>0,$S$12,IF(AK32>0,$S$11,IF(AJ32>0,$S$10,IF(AI32>0,$S$9,IF(AH32>0,$S$8,IF(AG32>0,$S$7,IF(AF32>0,$S$6,IF(AE32>0,$S$5))))))))) -> 0 | O32: =SUM(E32:N32) -> 869 | P32: =IF(D32=rozpis_příprava!$E$20,AVERAGE(AO32:AW32),IF(D32<>rozpis_příprava!$E$20,AVERAGE(rozpis_final_tisk!E32:M32))) -> 173.8 | U32: =IF(D32=rozpis_příprava!$E$20,IF(E32>0,E32)) -> 187 | V32: =IF(D32=rozpis_příprava!$E$20,IF(F32>0,F32)) -> 124 | W32: =IF(D32=rozpis_příprava!$E$20,IF(G32>0,G32)) -> 147 | X32: =IF(D32=rozpis_příprava!$E$20,IF(H32>0,H32)) -> 146 | Y32: =IF(D32=rozpis_příprava!$E$20,IF(I32>0,I32)) -> 265 | Z32: =IF(D32=rozpis_příprava!$E$20,IF(J32>0,J32)) -> FALSE | AA32: =IF(D32=rozpis_příprava!$E$20,IF(K32>0,K32)) -> FALSE | AB32: =IF(D32=rozpis_příprava!$E$20,IF(L32>0,L32)) -> FALSE | AC32: =IF(D32=rozpis_příprava!$E$20,IF(M32>0,M32)) -> FALSE | AE32: =IF(U32=FALSE,0) -> FALSE | AF32: FALSE | AG32: FALSE | AH32: FALSE | AI32: FALSE | AJ32: 0 | AK32: 0 | AL32: 0 | AM32: 0 | AO32: =IF(E32>0,E32+$E$2) -> 187 | AP32: 124 | AQ32: 147 | AR32: 146 | AS32: 265 | AT32: FALSE | AU32: FALSE | AV32: FALSE | AW32: FALSE
B33: =rozpis_příprava!E14 -> Jitka M. | D33: =rozpis_příprava!F14 -> Ž | E33: 63 | F33: 92 | G33: 102 | H33: 120 | I33: 112 | J33: 155 | N33: 0 | O33: 644 | P33: =IF(D33=rozpis_příprava!$E$20,AVERAGE(AO33:AW33),IF(D33<>rozpis_příprava!$E$20,AVERAGE(rozpis_final_tisk!E33:M33))) -> 107.3333333 | U33: =IF(D33=rozpis_příprava!$E$20,IF(E33>0,E33)) -> 63 | V33: =IF(D33=rozpis_příprava!$E$20,IF(F33>0,F33)) -> 92 | W33: =IF(D33=rozpis_příprava!$E$20,IF(G33>0,G33)) -> 102 | X33: =IF(D33=rozpis_příprava!$E$20,IF(H33>0,H33)) -> 120 | Y33: =IF(D33=rozpis_příprava!$E$20,IF(I33>0,I33)) -> 112 | Z33: =IF(D33=rozpis_příprava!$E$20,IF(J33>0,J33)) -> 155 | AA33: =IF(D33=rozpis_příprava!$E$20,IF(K33>0,K33)) -> FALSE | AB33: =IF(D33=rozpis_příprava!$E$20,IF(L33>0,L33)) -> FALSE | AC33: =IF(D33=rozpis_příprava!$E$20,IF(M33>0,M33)) -> FALSE | AE33: FALSE | AF33: FALSE | AG33: FALSE | AH33: FALSE | AI33: FALSE | AJ33: FALSE | AK33: 0 | AL33: 0 | AM33: 0 | AO33: 63 | AP33: 92 | AQ33: 102 | AR33: 120 | AS33: 112 | AT33: 155 | AU33: FALSE | AV33: FALSE | AW33: FALSE
B34: =rozpis_příprava!E15 -> Ilona K. | D34: =rozpis_příprava!F15 -> Ž | E34: 88 | F34: 73 | G34: 115 | H34: 46 | I34: 64 | J34: 89 | N34: 0 | O34: 475 | P34: =IF(D34=rozpis_příprava!$E$20,AVERAGE(AO34:AW34),IF(D34<>rozpis_příprava!$E$20,AVERAGE(rozpis_final_tisk!E34:M34))) -> 79.16666667 | U34: =IF(D34=rozpis_příprava!$E$20,IF(E34>0,E34)) -> 88 | V34: =IF(D34=rozpis_příprava!$E$20,IF(F34>0,F34)) -> 73 | W34: =IF(D34=rozpis_příprava!$E$20,IF(G34>0,G34)) -> 115 | X34: =IF(D34=rozpis_příprava!$E$20,IF(H34>0,H34)) -> 46 | Y34: =IF(D34=rozpis_příprava!$E$20,IF(I34>0,I34)) -> 64 | Z34: =IF(D34=rozpis_příprava!$E$20,IF(J34>0,J34)) -> 89 | AA34: =IF(D34=rozpis_příprava!$E$20,IF(K34>0,K34)) -> FALSE | AB34: =IF(D34=rozpis_příprava!$E$20,IF(L34>0,L34)) -> FALSE | AC34: =IF(D34=rozpis_příprava!$E$20,IF(M34>0,M34)) -> FALSE | AE34: FALSE | AF34: FALSE | AG34: FALSE | AH34: FALSE | AI34: FALSE | AJ34: FALSE | AK34: 0 | AL34: 0 | AM34: 0 | AO34: 88 | AP34: 73 | AQ34: 115 | AR34: 46 | AS34: 64 | AT34: 89 | AU34: FALSE | AV34: FALSE | AW34: FALSE
B35: SOUČET | E35: =IF(SUM(E31:E34)=0,"",SUM(E31:E34)) -> 417 | F35: =IF(SUM(F31:F34)=0,"",SUM(F31:F34)) -> 342 | G35: =IF(SUM(G31:G34)=0,"",SUM(G31:G34)) -> 461 | H35: =IF(SUM(H31:H34)=0,"",SUM(H31:H34)) -> 384 | I35: =IF(SUM(I31:I34)=0,"",SUM(I31:I34)) -> 531 | J35: =IF(SUM(J31:J34)=0,"",SUM(J31:J34)) -> 244 | K35: =IF(SUM(K31:K34)=0,"",SUM(K31:K34)) ->  | L35: =IF(SUM(L31:L34)=0,"",SUM(L31:L34)) ->  | M35: =IF(SUM(M31:M34)=0,"",SUM(M31:M34)) ->  | O35: =IF(SUM(E35:M35)=0,"",SUM(E35:M35)) -> 2379
B36: PRŮMĚR | E36: =IF(E35="","",AVERAGE(E31:E34)) -> 104.25 | F36: =IF(F35="","",AVERAGE(F31:F34)) -> 85.5 | G36: =IF(G35="","",AVERAGE(G31:G34)) -> 115.25 | H36: =IF(H35="","",AVERAGE(H31:H34)) -> 96 | I36: =IF(I35="","",AVERAGE(I31:I34)) -> 132.75 | J36: =IF(J35="","",AVERAGE(J31:J34)) -> 122 | K36: =IF(K35="","",AVERAGE(K31:K34)) ->  | L36: =IF(L35="","",AVERAGE(L31:L34)) ->  | M36: =IF(M35="","",AVERAGE(M31:M34)) ->  | P36: =IF(O35="","",AVERAGE(E31:M34)) -> 108.1363636
B38: Za zápis na dráze zodpovídá:
B40: =rozpis_příprava!B2 -> VÁNOČNÍ TURNAJ V BOWLINGU 2015
B42: Místo: | C42: =rozpis_příprava!C5 -> Xbowling Žižkov
B43: Datum: | C43: =rozpis_příprava!C6 -> 2. ledna 2016 - sobota
B44: Čas: | C44: =rozpis_příprava!C7 -> 17:00 - 20:00 hod.
D46: kat. | E46: =rozpis_příprava!G11 -> DRÁHA č.3
B47: Jméno | E47: 1. hra | F47: 2. hra | G47: 3.hra | H47: 4. hra | I47: 5. hra | J47: 6. hra | K47: 7. hra | L47: 8. hra | M47: 9. hra | N47: Hendikep | O47: SOUČET | P47: PRŮMĚR
B48: =rozpis_příprava!G12 -> Lucka N. | D48: =rozpis_příprava!H12 -> Ž | E48: 107 | F48: 132 | G48: 80 | H48: 116 | N48: =IF(AM48>0,$S$13,IF(AL48>0,$S$12,IF(AK48>0,$S$11,IF(AJ48>0,$S$10,IF(AI48>0,$S$9,IF(AH48>0,$S$8,IF(AG48>0,$S$7,IF(AF48>0,$S$6,IF(AE48>0,$S$5))))))))) -> 0 | O48: =SUM(E48:N48) -> 435 | P48: =IF(D48=rozpis_příprava!$E$20,AVERAGE(AO48:AW48),IF(D48<>rozpis_příprava!$E$20,AVERAGE(rozpis_final_tisk!E48:M48))) -> 108.75 | U48: =IF(D48=rozpis_příprava!$E$20,IF(E48>0,E48)) -> 107 | V48: =IF(D48=rozpis_příprava!$E$20,IF(F48>0,F48)) -> 132 | W48: =IF(D48=rozpis_příprava!$E$20,IF(G48>0,G48)) -> 80 | X48: =IF(D48=rozpis_příprava!$E$20,IF(H48>0,H48)) -> 116 | Y48: =IF(D48=rozpis_příprava!$E$20,IF(I48>0,I48)) -> FALSE | Z48: =IF(D48=rozpis_příprava!$E$20,IF(J48>0,J48)) -> FALSE | AA48: =IF(D48=rozpis_příprava!$E$20,IF(K48>0,K48)) -> FALSE | AB48: =IF(D48=rozpis_příprava!$E$20,IF(L48>0,L48)) -> FALSE | AC48: =IF(D48=rozpis_příprava!$E$20,IF(M48>0,M48)) -> FALSE | AE48: =IF(U48=FALSE,0) -> FALSE | AF48: =IF(V48=FALSE,0) -> FALSE | AG48: =IF(W48=FALSE,0) -> FALSE | AH48: =IF(X48=FALSE,0) -> FALSE | AI48: =IF(Y48=FALSE,0) -> 0 | AJ48: =IF(Z48=FALSE,0) -> 0 | AK48: =IF(AA48=FALSE,0) -> 0 | AL48: =IF(AB48=FALSE,0) -> 0 | AM48: =IF(AC48=FALSE,0) -> 0 | AO48: =IF(E48>0,E48+$E$2) -> 107 | AP48: =IF(F48>0,F48+$E$2) -> 132 | AQ48: =IF(G48>0,G48+$E$2) -> 80 | AR48: =IF(H48>0,H48+$E$2) -> 116 | AS48: =IF(I48>0,I48+$E$2) -> FALSE | AT48: =IF(J48>0,J48+$E$2) -> FALSE | AU48: =IF(K48>0,K48+$E$2) -> FALSE | AV48: =IF(L48>0,L48+$E$2) -> FALSE | AW48: =IF(M48>0,M48+$E$2) -> FALSE
B49: =rozpis_příprava!G13 -> 0 | D49: =rozpis_příprava!H13 -> 0 | N49: =IF(AM49>0,$S$13,IF(AL49>0,$S$12,IF(AK49>0,$S$11,IF(AJ49>0,$S$10,IF(AI49>0,$S$9,IF(AH49>0,$S$8,IF(AG49>0,$S$7,IF(AF49>0,$S$6,IF(AE49>0,$S$5))))))))) -> FALSE | O49: =SUM(E49:N49) -> 0 | P49: =IF(D49=rozpis_příprava!$E$20,AVERAGE(AO49:AW49),IF(D49<>rozpis_příprava!$E$20,AVERAGE(rozpis_final_tisk!E49:M49))) ->  | U49: =IF(D49=rozpis_příprava!$E$20,IF(E49>0,E49)) -> FALSE | V49: =IF(D49=rozpis_příprava!$E$20,IF(F49>0,F49)) -> FALSE | W49: =IF(D49=rozpis_příprava!$E$20,IF(G49>0,G49)) -> FALSE | X49: =IF(D49=rozpis_příprava!$E$20,IF(H49>0,H49)) -> FALSE | Y49: =IF(D49=rozpis_příprava!$E$20,IF(I49>0,I49)) -> FALSE | Z49: =IF(D49=rozpis_příprava!$E$20,IF(J49>0,J49)) -> FALSE | AA49: =IF(D49=rozpis_příprava!$E$20,IF(K49>0,K49)) -> FALSE | AB49: =IF(D49=rozpis_příprava!$E$20,IF(L49>0,L49)) -> FALSE | AC49: =IF(D49=rozpis_příprava!$E$20,IF(M49>0,M49)) -> FALSE | AE49: =IF(U49=FALSE,0) -> 0 | AF49: 0 | AG49: 0 | AH49: 0 | AI49: 0 | AJ49: 0 | AK49: 0 | AL49: 0 | AM49: 0 | AO49: =IF(E49>0,E49+$E$2) -> FALSE | AP49: FALSE | AQ49: FALSE | AR49: FALSE | AS49: FALSE | AT49: FALSE | AU49: FALSE | AV49: FALSE | AW49: FALSE
B50: =rozpis_příprava!G14 -> 0 | D50: =rozpis_příprava!H14 -> 0 | N50: FALSE | O50: 0 | P50: =IF(D50=rozpis_příprava!$E$20,AVERAGE(AO50:AW50),IF(D50<>rozpis_příprava!$E$20,AVERAGE(rozpis_final_tisk!E50:M50))) ->  | U50: =IF(D50=rozpis_příprava!$E$20,IF(E50>0,E50)) -> FALSE | V50: =IF(D50=rozpis_příprava!$E$20,IF(F50>0,F50)) -> FALSE | W50: =IF(D50=rozpis_příprava!$E$20,IF(G50>0,G50)) -> FALSE | X50: =IF(D50=rozpis_příprava!$E$20,IF(H50>0,H50)) -> FALSE | Y50: =IF(D50=rozpis_příprava!$E$20,IF(I50>0,I50)) -> FALSE | Z50: =IF(D50=rozpis_příprava!$E$20,IF(J50>0,J50)) -> FALSE | AA50: =IF(D50=rozpis_příprava!$E$20,IF(K50>0,K50)) -> FALSE | AB50: =IF(D50=rozpis_příprava!$E$20,IF(L50>0,L50)) -> FALSE | AC50: =IF(D50=rozpis_příprava!$E$20,IF(M50>0,M50)) -> FALSE | AE50: 0 | AF50: 0 | AG50: 0 | AH50: 0 | AI50: 0 | AJ50: 0 | AK50: 0 | AL50: 0 | AM50: 0 | AO50: FALSE | AP50: FALSE | AQ50: FALSE | AR50: FALSE | AS50: FALSE | AT50: FALSE | AU50: FALSE | AV50: FALSE | AW50: FALSE
B51: =rozpis_příprava!G15 -> 0 | D51: =rozpis_příprava!H15 -> 0 | N51: FALSE | O51: 0 | P51: =IF(D51=rozpis_příprava!$E$20,AVERAGE(AO51:AW51),IF(D51<>rozpis_příprava!$E$20,AVERAGE(rozpis_final_tisk!E51:M51))) ->  | U51: =IF(D51=rozpis_příprava!$E$20,IF(E51>0,E51)) -> FALSE | V51: =IF(D51=rozpis_příprava!$E$20,IF(F51>0,F51)) -> FALSE | W51: =IF(D51=rozpis_příprava!$E$20,IF(G51>0,G51)) -> FALSE | X51: =IF(D51=rozpis_příprava!$E$20,IF(H51>0,H51)) -> FALSE | Y51: =IF(D51=rozpis_příprava!$E$20,IF(I51>0,I51)) -> FALSE | Z51: =IF(D51=rozpis_příprava!$E$20,IF(J51>0,J51)) -> FALSE | AA51: =IF(D51=rozpis_příprava!$E$20,IF(K51>0,K51)) -> FALSE | AB51: =IF(D51=rozpis_příprava!$E$20,IF(L51>0,L51)) -> FALSE | AC51: =IF(D51=rozpis_příprava!$E$20,IF(M51>0,M51)) -> FALSE | AE51: 0 | AF51: 0 | AG51: 0 | AH51: 0 | AI51: 0 | AJ51: 0 | AK51: 0 | AL51: 0 | AM51: 0 | AO51: FALSE | AP51: FALSE | AQ51: FALSE | AR51: FALSE | AS51: FALSE | AT51: FALSE | AU51: FALSE | AV51: FALSE | AW51: FALSE
B52: SOUČET | E52: =IF(SUM(E48:E51)=0,"",SUM(E48:E51)) -> 107 | F52: =IF(SUM(F48:F51)=0,"",SUM(F48:F51)) -> 132 | G52: =IF(SUM(G48:G51)=0,"",SUM(G48:G51)) -> 80 | H52: =IF(SUM(H48:H51)=0,"",SUM(H48:H51)) -> 116 | I52: =IF(SUM(I48:I51)=0,"",SUM(I48:I51)) ->  | J52: =IF(SUM(J48:J51)=0,"",SUM(J48:J51)) ->  | K52: =IF(SUM(K48:K51)=0,"",SUM(K48:K51)) ->  | L52: =IF(SUM(L48:L51)=0,"",SUM(L48:L51)) ->  | M52: =IF(SUM(M48:M51)=0,"",SUM(M48:M51)) ->  | O52: =IF(SUM(E52:M52)=0,"",SUM(E52:M52)) -> 435
B53: PRŮMĚR | E53: =IF(E52="","",AVERAGE(E48:E51)) -> 107 | F53: =IF(F52="","",AVERAGE(F48:F51)) -> 132 | G53: =IF(G52="","",AVERAGE(G48:G51)) -> 80 | H53: =IF(H52="","",AVERAGE(H48:H51)) -> 116 | I53: =IF(I52="","",AVERAGE(I48:I51)) ->  | J53: =IF(J52="","",AVERAGE(J48:J51)) ->  | K53: =IF(K52="","",AVERAGE(K48:K51)) ->  | L53: =IF(L52="","",AVERAGE(L48:L51)) ->  | M53: =IF(M52="","",AVERAGE(M48:M51)) ->  | P53: =IF(O52="","",AVERAGE(E48:M51)) -> 108.75
B55: Za zápis na dráze zodpovídá:
B58: =rozpis_příprava!B2 -> VÁNOČNÍ TURNAJ V BOWLINGU 2015
B60: Místo: | C60: =rozpis_příprava!C5 -> Xbowling Žižkov
B61: Datum: | C61: =rozpis_příprava!C6 -> 2. ledna 2016 - sobota
B62: Čas: | C62: =rozpis_příprava!C7 -> 17:00 - 20:00 hod.
D64: kat. | E64: =rozpis_příprava!I11 -> DRÁHA č.4
B65: Jméno | E65: 1. hra | F65: 2. hra | G65: 3.hra | H65: 4. hra | I65: 5. hra | J65: 6. hra | K65: 7. hra | L65: 8. hra | M65: 9. hra | N65: Hendikep | O65: SOUČET | P65: PRŮMĚR
B66: =rozpis_příprava!I12 -> 0 | D66: =rozpis_příprava!J12 -> 0 | N66: =IF(AM66>0,$S$13,IF(AL66>0,$S$12,IF(AK66>0,$S$11,IF(AJ66>0,$S$10,IF(AI66>0,$S$9,IF(AH66>0,$S$8,IF(AG66>0,$S$7,IF(AF66>0,$S$6,IF(AE66>0,$S$5))))))))) -> FALSE | O66: =SUM(E66:N66) -> 0 | P66: =IF(D66=rozpis_příprava!$E$20,AVERAGE(AO66:AW66),IF(D66<>rozpis_příprava!$E$20,AVERAGE(rozpis_final_tisk!E66:M66))) ->  | U66: =IF(D66=rozpis_příprava!$E$20,IF(E66>0,E66)) -> FALSE | V66: =IF(D66=rozpis_příprava!$E$20,IF(F66>0,F66)) -> FALSE | W66: =IF(D66=rozpis_příprava!$E$20,IF(G66>0,G66)) -> FALSE | X66: =IF(D66=rozpis_příprava!$E$20,IF(H66>0,H66)) -> FALSE | Y66: =IF(D66=rozpis_příprava!$E$20,IF(I66>0,I66)) -> FALSE | Z66: =IF(D66=rozpis_příprava!$E$20,IF(J66>0,J66)) -> FALSE | AA66: =IF(D66=rozpis_příprava!$E$20,IF(K66>0,K66)) -> FALSE | AB66: =IF(D66=rozpis_příprava!$E$20,IF(L66>0,L66)) -> FALSE | AC66: =IF(D66=rozpis_příprava!$E$20,IF(M66>0,M66)) -> FALSE | AE66: =IF(U66=FALSE,0) -> 0 | AF66: =IF(V66=FALSE,0) -> 0 | AG66: =IF(W66=FALSE,0) -> 0 | AH66: =IF(X66=FALSE,0) -> 0 | AI66: =IF(Y66=FALSE,0) -> 0 | AJ66: =IF(Z66=FALSE,0) -> 0 | AK66: =IF(AA66=FALSE,0) -> 0 | AL66: =IF(AB66=FALSE,0) -> 0 | AM66: =IF(AC66=FALSE,0) -> 0 | AO66: =IF(E66>0,E66+$E$2) -> FALSE | AP66: =IF(F66>0,F66+$E$2) -> FALSE | AQ66: =IF(G66>0,G66+$E$2) -> FALSE | AR66: =IF(H66>0,H66+$E$2) -> FALSE | AS66: =IF(I66>0,I66+$E$2) -> FALSE | AT66: =IF(J66>0,J66+$E$2) -> FALSE | AU66: =IF(K66>0,K66+$E$2) -> FALSE | AV66: =IF(L66>0,L66+$E$2) -> FALSE | AW66: =IF(M66>0,M66+$E$2) -> FALSE
B67: =rozpis_příprava!I13 -> 0 | D67: =rozpis_příprava!J13 -> 0 | N67: =IF(AM67>0,$S$13,IF(AL67>0,$S$12,IF(AK67>0,$S$11,IF(AJ67>0,$S$10,IF(AI67>0,$S$9,IF(AH67>0,$S$8,IF(AG67>0,$S$7,IF(AF67>0,$S$6,IF(AE67>0,$S$5))))))))) -> FALSE | O67: =SUM(E67:N67) -> 0 | P67: =IF(D67=rozpis_příprava!$E$20,AVERAGE(AO67:AW67),IF(D67<>rozpis_příprava!$E$20,AVERAGE(rozpis_final_tisk!E67:M67))) ->  | U67: =IF(D67=rozpis_příprava!$E$20,IF(E67>0,E67)) -> FALSE | V67: =IF(D67=rozpis_příprava!$E$20,IF(F67>0,F67)) -> FALSE | W67: =IF(D67=rozpis_příprava!$E$20,IF(G67>0,G67)) -> FALSE | X67: =IF(D67=rozpis_příprava!$E$20,IF(H67>0,H67)) -> FALSE | Y67: =IF(D67=rozpis_příprava!$E$20,IF(I67>0,I67)) -> FALSE | Z67: =IF(D67=rozpis_příprava!$E$20,IF(J67>0,J67)) -> FALSE | AA67: =IF(D67=rozpis_příprava!$E$20,IF(K67>0,K67)) -> FALSE | AB67: =IF(D67=rozpis_příprava!$E$20,IF(L67>0,L67)) -> FALSE | AC67: =IF(D67=rozpis_příprava!$E$20,IF(M67>0,M67)) -> FALSE | AE67: =IF(U67=FALSE,0) -> 0 | AF67: 0 | AG67: 0 | AH67: 0 | AI67: 0 | AJ67: 0 | AK67: 0 | AL67: 0 | AM67: 0 | AO67: =IF(E67>0,E67+$E$2) -> FALSE | AP67: FALSE | AQ67: FALSE | AR67: FALSE | AS67: FALSE | AT67: FALSE | AU67: FALSE | AV67: FALSE | AW67: FALSE
B68: =rozpis_příprava!I14 -> 0 | D68: =rozpis_příprava!J14 -> 0 | N68: FALSE | O68: 0 | P68: =IF(D68=rozpis_příprava!$E$20,AVERAGE(AO68:AW68),IF(D68<>rozpis_příprava!$E$20,AVERAGE(rozpis_final_tisk!E68:M68))) ->  | U68: =IF(D68=rozpis_příprava!$E$20,IF(E68>0,E68)) -> FALSE | V68: =IF(D68=rozpis_příprava!$E$20,IF(F68>0,F68)) -> FALSE | W68: =IF(D68=rozpis_příprava!$E$20,IF(G68>0,G68)) -> FALSE | X68: =IF(D68=rozpis_příprava!$E$20,IF(H68>0,H68)) -> FALSE | Y68: =IF(D68=rozpis_příprava!$E$20,IF(I68>0,I68)) -> FALSE | Z68: =IF(D68=rozpis_příprava!$E$20,IF(J68>0,J68)) -> FALSE | AA68: =IF(D68=rozpis_příprava!$E$20,IF(K68>0,K68)) -> FALSE | AB68: =IF(D68=rozpis_příprava!$E$20,IF(L68>0,L68)) -> FALSE | AC68: =IF(D68=rozpis_příprava!$E$20,IF(M68>0,M68)) -> FALSE | AE68: 0 | AF68: 0 | AG68: 0 | AH68: 0 | AI68: 0 | AJ68: 0 | AK68: 0 | AL68: 0 | AM68: 0 | AO68: FALSE | AP68: FALSE | AQ68: FALSE | AR68: FALSE | AS68: FALSE | AT68: FALSE | AU68: FALSE | AV68: FALSE | AW68: FALSE
B69: =rozpis_příprava!I15 -> 0 | D69: =rozpis_příprava!J15 -> 0 | N69: FALSE | O69: 0 | P69: =IF(D69=rozpis_příprava!$E$20,AVERAGE(AO69:AW69),IF(D69<>rozpis_příprava!$E$20,AVERAGE(rozpis_final_tisk!E69:M69))) ->  | U69: =IF(D69=rozpis_příprava!$E$20,IF(E69>0,E69)) -> FALSE | V69: =IF(D69=rozpis_příprava!$E$20,IF(F69>0,F69)) -> FALSE | W69: =IF(D69=rozpis_příprava!$E$20,IF(G69>0,G69)) -> FALSE | X69: =IF(D69=rozpis_příprava!$E$20,IF(H69>0,H69)) -> FALSE | Y69: =IF(D69=rozpis_příprava!$E$20,IF(I69>0,I69)) -> FALSE | Z69: =IF(D69=rozpis_příprava!$E$20,IF(J69>0,J69)) -> FALSE | AA69: =IF(D69=rozpis_příprava!$E$20,IF(K69>0,K69)) -> FALSE | AB69: =IF(D69=rozpis_příprava!$E$20,IF(L69>0,L69)) -> FALSE | AC69: =IF(D69=rozpis_příprava!$E$20,IF(M69>0,M69)) -> FALSE | AE69: 0 | AF69: 0 | AG69: 0 | AH69: 0 | AI69: 0 | AJ69: 0 | AK69: 0 | AL69: 0 | AM69: 0 | AO69: FALSE | AP69: FALSE | AQ69: FALSE | AR69: FALSE | AS69: FALSE | AT69: FALSE | AU69: FALSE | AV69: FALSE | AW69: FALSE
B70: SOUČET | E70: =IF(SUM(E66:E69)=0,"",SUM(E66:E69)) ->  | F70: =IF(SUM(F66:F69)=0,"",SUM(F66:F69)) ->  | G70: =IF(SUM(G66:G69)=0,"",SUM(G66:G69)) ->  | H70: =IF(SUM(H66:H69)=0,"",SUM(H66:H69)) ->  | I70: =IF(SUM(I66:I69)=0,"",SUM(I66:I69)) ->  | J70: =IF(SUM(J66:J69)=0,"",SUM(J66:J69)) ->  | K70: =IF(SUM(K66:K69)=0,"",SUM(K66:K69)) ->  | L70: =IF(SUM(L66:L69)=0,"",SUM(L66:L69)) ->  | M70: =IF(SUM(M66:M69)=0,"",SUM(M66:M69)) ->  | O70: =IF(SUM(E70:M70)=0,"",SUM(E70:M70)) -> 
B71: PRŮMĚR | E71: =IF(E70="","",AVERAGE(E66:E69)) ->  | F71: =IF(F70="","",AVERAGE(F66:F69)) ->  | G71: =IF(G70="","",AVERAGE(G66:G69)) ->  | H71: =IF(H70="","",AVERAGE(H66:H69)) ->  | I71: =IF(I70="","",AVERAGE(I66:I69)) ->  | J71: =IF(J70="","",AVERAGE(J66:J69)) ->  | K71: =IF(K70="","",AVERAGE(K66:K69)) ->  | L71: =IF(L70="","",AVERAGE(L66:L69)) ->  | M71: =IF(M70="","",AVERAGE(M66:M69)) ->  | P71: =IF(O70="","",AVERAGE(E66:M69)) -> 
B73: Za zápis na dráze zodpovídá:
B75: =rozpis_příprava!B2 -> VÁNOČNÍ TURNAJ V BOWLINGU 2015
B77: Místo: | C77: =rozpis_příprava!C5 -> Xbowling Žižkov
B78: Datum: | C78: =rozpis_příprava!C6 -> 2. ledna 2016 - sobota
B79: Čas: | C79: =rozpis_příprava!C7 -> 17:00 - 20:00 hod.
D81: kat. | E81: =rozpis_příprava!K11 -> DRÁHA č.5
B82: Jméno | E82: 1. hra | F82: 2. hra | G82: 3.hra | H82: 4. hra | I82: 5. hra | J82: 6. hra | K82: 7. hra | L82: 8. hra | M82: 9. hra | N82: Hendikep | O82: SOUČET | P82: PRŮMĚR
B83: =rozpis_příprava!K12 -> Mojka V. | D83: =rozpis_příprava!L12 -> P | E83: 158 | F83: 146 | G83: 214 | H83: 179 | I83: 223 | N83: =IF(AM83>0,$S$13,IF(AL83>0,$S$12,IF(AK83>0,$S$11,IF(AJ83>0,$S$10,IF(AI83>0,$S$9,IF(AH83>0,$S$8,IF(AG83>0,$S$7,IF(AF83>0,$S$6,IF(AE83>0,$S$5))))))))) -> FALSE | O83: =SUM(E83:N83) -> 920 | P83: =IF(D83=rozpis_příprava!$E$20,AVERAGE(AO83:AW83),IF(D83<>rozpis_příprava!$E$20,AVERAGE(rozpis_final_tisk!E83:M83))) -> 184 | U83: =IF(D83=rozpis_příprava!$E$20,IF(E83>0,E83)) -> FALSE | V83: =IF(D83=rozpis_příprava!$E$20,IF(F83>0,F83)) -> FALSE | W83: =IF(D83=rozpis_příprava!$E$20,IF(G83>0,G83)) -> FALSE | X83: =IF(D83=rozpis_příprava!$E$20,IF(H83>0,H83)) -> FALSE | Y83: =IF(D83=rozpis_příprava!$E$20,IF(I83>0,I83)) -> FALSE | Z83: =IF(D83=rozpis_příprava!$E$20,IF(J83>0,J83)) -> FALSE | AA83: =IF(D83=rozpis_příprava!$E$20,IF(K83>0,K83)) -> FALSE | AB83: =IF(D83=rozpis_příprava!$E$20,IF(L83>0,L83)) -> FALSE | AC83: =IF(D83=rozpis_příprava!$E$20,IF(M83>0,M83)) -> FALSE | AE83: =IF(U83=FALSE,0) -> 0 | AF83: =IF(V83=FALSE,0) -> 0 | AG83: =IF(W83=FALSE,0) -> 0 | AH83: =IF(X83=FALSE,0) -> 0 | AI83: =IF(Y83=FALSE,0) -> 0 | AJ83: =IF(Z83=FALSE,0) -> 0 | AK83: =IF(AA83=FALSE,0) -> 0 | AL83: =IF(AB83=FALSE,0) -> 0 | AM83: =IF(AC83=FALSE,0) -> 0 | AO83: =IF(E83>0,E83+$E$2) -> 158 | AP83: =IF(F83>0,F83+$E$2) -> 146 | AQ83: =IF(G83>0,G83+$E$2) -> 214 | AR83: =IF(H83>0,H83+$E$2) -> 179 | AS83: =IF(I83>0,I83+$E$2) -> 223 | AT83: =IF(J83>0,J83+$E$2) -> FALSE | AU83: =IF(K83>0,K83+$E$2) -> FALSE | AV83: =IF(L83>0,L83+$E$2) -> FALSE | AW83: =IF(M83>0,M83+$E$2) -> FALSE
B84: =rozpis_příprava!K13 -> Jarda H. | D84: =rozpis_příprava!L13 -> P | E84: 170 | F84: 150 | G84: 201 | H84: 141 | I84: 145 | N84: =IF(AM84>0,$S$13,IF(AL84>0,$S$12,IF(AK84>0,$S$11,IF(AJ84>0,$S$10,IF(AI84>0,$S$9,IF(AH84>0,$S$8,IF(AG84>0,$S$7,IF(AF84>0,$S$6,IF(AE84>0,$S$5))))))))) -> FALSE | O84: =SUM(E84:N84) -> 807 | P84: =IF(D84=rozpis_příprava!$E$20,AVERAGE(AO84:AW84),IF(D84<>rozpis_příprava!$E$20,AVERAGE(rozpis_final_tisk!E84:M84))) -> 161.4 | U84: =IF(D84=rozpis_příprava!$E$20,IF(E84>0,E84)) -> FALSE | V84: =IF(D84=rozpis_příprava!$E$20,IF(F84>0,F84)) -> FALSE | W84: =IF(D84=rozpis_příprava!$E$20,IF(G84>0,G84)) -> FALSE | X84: =IF(D84=rozpis_příprava!$E$20,IF(H84>0,H84)) -> FALSE | Y84: =IF(D84=rozpis_příprava!$E$20,IF(I84>0,I84)) -> FALSE | Z84: =IF(D84=rozpis_příprava!$E$20,IF(J84>0,J84)) -> FALSE | AA84: =IF(D84=rozpis_příprava!$E$20,IF(K84>0,K84)) -> FALSE | AB84: =IF(D84=rozpis_příprava!$E$20,IF(L84>0,L84)) -> FALSE | AC84: =IF(D84=rozpis_příprava!$E$20,IF(M84>0,M84)) -> FALSE | AE84: =IF(U84=FALSE,0) -> 0 | AF84: 0 | AG84: 0 | AH84: 0 | AI84: 0 | AJ84: 0 | AK84: 0 | AL84: 0 | AM84: 0 | AO84: =IF(E84>0,E84+$E$2) -> 170 | AP84: 150 | AQ84: 201 | AR84: 141 | AS84: 145 | AT84: FALSE | AU84: FALSE | AV84: FALSE | AW84: FALSE
B85: =rozpis_příprava!K14 -> Štefan P. | D85: =rozpis_příprava!L14 -> M | E85: 258 | F85: 147 | G85: 153 | H85: 186 | I85: 173 | J85: 160 | N85: FALSE | O85: 1077 | P85: =IF(D85=rozpis_příprava!$E$20,AVERAGE(AO85:AW85),IF(D85<>rozpis_příprava!$E$20,AVERAGE(rozpis_final_tisk!E85:M85))) -> 179.5 | U85: =IF(D85=rozpis_příprava!$E$20,IF(E85>0,E85)) -> FALSE | V85: =IF(D85=rozpis_příprava!$E$20,IF(F85>0,F85)) -> FALSE | W85: =IF(D85=rozpis_příprava!$E$20,IF(G85>0,G85)) -> FALSE | X85: =IF(D85=rozpis_příprava!$E$20,IF(H85>0,H85)) -> FALSE | Y85: =IF(D85=rozpis_příprava!$E$20,IF(I85>0,I85)) -> FALSE | Z85: =IF(D85=rozpis_příprava!$E$20,IF(J85>0,J85)) -> FALSE | AA85: =IF(D85=rozpis_příprava!$E$20,IF(K85>0,K85)) -> FALSE | AB85: =IF(D85=rozpis_příprava!$E$20,IF(L85>0,L85)) -> FALSE | AC85: =IF(D85=rozpis_příprava!$E$20,IF(M85>0,M85)) -> FALSE | AE85: 0 | AF85: 0 | AG85: 0 | AH85: 0 | AI85: 0 | AJ85: 0 | AK85: 0 | AL85: 0 | AM85: 0 | AO85: 258 | AP85: 147 | AQ85: 153 | AR85: 186 | AS85: 173 | AT85: 160 | AU85: FALSE | AV85: FALSE | AW85: FALSE
B86: =rozpis_příprava!K15 -> Mirek K. | D86: =rozpis_příprava!L15 -> M | E86: 139 | F86: 187 | G86: 125 | H86: 116 | I86: 126 | J86: 148 | N86: FALSE | O86: 841 | P86: =IF(D86=rozpis_příprava!$E$20,AVERAGE(AO86:AW86),IF(D86<>rozpis_příprava!$E$20,AVERAGE(rozpis_final_tisk!E86:M86))) -> 140.1666667 | U86: =IF(D86=rozpis_příprava!$E$20,IF(E86>0,E86)) -> FALSE | V86: =IF(D86=rozpis_příprava!$E$20,IF(F86>0,F86)) -> FALSE | W86: =IF(D86=rozpis_příprava!$E$20,IF(G86>0,G86)) -> FALSE | X86: =IF(D86=rozpis_příprava!$E$20,IF(H86>0,H86)) -> FALSE | Y86: =IF(D86=rozpis_příprava!$E$20,IF(I86>0,I86)) -> FALSE | Z86: =IF(D86=rozpis_příprava!$E$20,IF(J86>0,J86)) -> FALSE | AA86: =IF(D86=rozpis_příprava!$E$20,IF(K86>0,K86)) -> FALSE | AB86: =IF(D86=rozpis_příprava!$E$20,IF(L86>0,L86)) -> FALSE | AC86: =IF(D86=rozpis_příprava!$E$20,IF(M86>0,M86)) -> FALSE | AE86: 0 | AF86: 0 | AG86: 0 | AH86: 0 | AI86: 0 | AJ86: 0 | AK86: 0 | AL86: 0 | AM86: 0 | AO86: 139 | AP86: 187 | AQ86: 125 | AR86: 116 | AS86: 126 | AT86: 148 | AU86: FALSE | AV86: FALSE | AW86: FALSE
B87: SOUČET | E87: =IF(SUM(E83:E86)=0,"",SUM(E83:E86)) -> 725 | F87: =IF(SUM(F83:F86)=0,"",SUM(F83:F86)) -> 630 | G87: =IF(SUM(G83:G86)=0,"",SUM(G83:G86)) -> 693 | H87: =IF(SUM(H83:H86)=0,"",SUM(H83:H86)) -> 622 | I87: =IF(SUM(I83:I86)=0,"",SUM(I83:I86)) -> 667 | J87: =IF(SUM(J83:J86)=0,"",SUM(J83:J86)) -> 308 | K87: =IF(SUM(K83:K86)=0,"",SUM(K83:K86)) ->  | L87: =IF(SUM(L83:L86)=0,"",SUM(L83:L86)) ->  | M87: =IF(SUM(M83:M86)=0,"",SUM(M83:M86)) ->  | O87: =IF(SUM(E87:M87)=0,"",SUM(E87:M87)) -> 3645
B88: PRŮMĚR | E88: =IF(E87="","",AVERAGE(E83:E86)) -> 181.25 | F88: =IF(F87="","",AVERAGE(F83:F86)) -> 157.5 | G88: =IF(G87="","",AVERAGE(G83:G86)) -> 173.25 | H88: =IF(H87="","",AVERAGE(H83:H86)) -> 155.5 | I88: =IF(I87="","",AVERAGE(I83:I86)) -> 166.75 | J88: =IF(J87="","",AVERAGE(J83:J86)) -> 154 | K88: =IF(K87="","",AVERAGE(K83:K86)) ->  | L88: =IF(L87="","",AVERAGE(L83:L86)) ->  | M88: =IF(M87="","",AVERAGE(M83:M86)) ->  | P88: =IF(O87="","",AVERAGE(E83:M86)) -> 165.6818182
B90: Za zápis na dráze zodpovídá:
B93: =rozpis_příprava!B2 -> VÁNOČNÍ TURNAJ V BOWLINGU 2015
B95: Místo: | C95: =rozpis_příprava!C5 -> Xbowling Žižkov
B96: Datum: | C96: =rozpis_příprava!C6 -> 2. ledna 2016 - sobota
B97: Čas: | C97: =rozpis_příprava!C7 -> 17:00 - 20:00 hod.
D99: kat. | E99: =rozpis_příprava!M11 -> DRÁHA č.6
B100: Jméno | E100: 1. hra | F100: 2. hra | G100: 3.hra | H100: 4. hra | I100: 5. hra | J100: 6. hra | K100: 7. hra | L100: 8. hra | M100: 9. hra | N100: Hendikep | O100: SOUČET | P100: PRŮMĚR
B101: =rozpis_příprava!M12 -> 0 | D101: =rozpis_příprava!N12 -> 0 | N101: =IF(AM101>0,$S$13,IF(AL101>0,$S$12,IF(AK101>0,$S$11,IF(AJ101>0,$S$10,IF(AI101>0,$S$9,IF(AH101>0,$S$8,IF(AG101>0,$S$7,IF(AF101>0,$S$6,IF(AE101>0,$S$5))))))))) -> FALSE | O101: =SUM(E101:N101) -> 0 | P101: =IF(D101=rozpis_příprava!$E$20,AVERAGE(AO101:AW101),IF(D101<>rozpis_příprava!$E$20,AVERAGE(rozpis_final_tisk!E101:M101))) ->  | U101: =IF(D101=rozpis_příprava!$E$20,IF(E101>0,E101)) -> FALSE | V101: =IF(D101=rozpis_příprava!$E$20,IF(F101>0,F101)) -> FALSE | W101: =IF(D101=rozpis_příprava!$E$20,IF(G101>0,G101)) -> FALSE | X101: =IF(D101=rozpis_příprava!$E$20,IF(H101>0,H101)) -> FALSE | Y101: =IF(D101=rozpis_příprava!$E$20,IF(I101>0,I101)) -> FALSE | Z101: =IF(D101=rozpis_příprava!$E$20,IF(J101>0,J101)) -> FALSE | AA101: =IF(D101=rozpis_příprava!$E$20,IF(K101>0,K101)) -> FALSE | AB101: =IF(D101=rozpis_příprava!$E$20,IF(L101>0,L101)) -> FALSE | AC101: =IF(D101=rozpis_příprava!$E$20,IF(M101>0,M101)) -> FALSE | AE101: =IF(U101=FALSE,0) -> 0 | AF101: =IF(V101=FALSE,0) -> 0 | AG101: =IF(W101=FALSE,0) -> 0 | AH101: =IF(X101=FALSE,0) -> 0 | AI101: =IF(Y101=FALSE,0) -> 0 | AJ101: =IF(Z101=FALSE,0) -> 0 | AK101: =IF(AA101=FALSE,0) -> 0 | AL101: =IF(AB101=FALSE,0) -> 0 | AM101: =IF(AC101=FALSE,0) -> 0 | AO101: =IF(E101>0,E101+$E$2) -> FALSE | AP101: =IF(F101>0,F101+$E$2) -> FALSE | AQ101: =IF(G101>0,G101+$E$2) -> FALSE | AR101: =IF(H101>0,H101+$E$2) -> FALSE | AS101: =IF(I101>0,I101+$E$2) -> FALSE | AT101: =IF(J101>0,J101+$E$2) -> FALSE | AU101: =IF(K101>0,K101+$E$2) -> FALSE | AV101: =IF(L101>0,L101+$E$2) -> FALSE | AW101: =IF(M101>0,M101+$E$2) -> FALSE
B102: =rozpis_příprava!M13 -> David D. | D102: =rozpis_příprava!N13 -> M | E102: 139 | F102: 144 | G102: 152 | H102: 114 | I102: 167 | N102: =IF(AM102>0,$S$13,IF(AL102>0,$S$12,IF(AK102>0,$S$11,IF(AJ102>0,$S$10,IF(AI102>0,$S$9,IF(AH102>0,$S$8,IF(AG102>0,$S$7,IF(AF102>0,$S$6,IF(AE102>0,$S$5))))))))) -> FALSE | O102: =SUM(E102:N102) -> 716 | P102: =IF(D102=rozpis_příprava!$E$20,AVERAGE(AO102:AW102),IF(D102<>rozpis_příprava!$E$20,AVERAGE(rozpis_final_tisk!E102:M102))) -> 143.2 | U102: =IF(D102=rozpis_příprava!$E$20,IF(E102>0,E102)) -> FALSE | V102: =IF(D102=rozpis_příprava!$E$20,IF(F102>0,F102)) -> FALSE | W102: =IF(D102=rozpis_příprava!$E$20,IF(G102>0,G102)) -> FALSE | X102: =IF(D102=rozpis_příprava!$E$20,IF(H102>0,H102)) -> FALSE | Y102: =IF(D102=rozpis_příprava!$E$20,IF(I102>0,I102)) -> FALSE | Z102: =IF(D102=rozpis_příprava!$E$20,IF(J102>0,J102)) -> FALSE | AA102: =IF(D102=rozpis_příprava!$E$20,IF(K102>0,K102)) -> FALSE | AB102: =IF(D102=rozpis_příprava!$E$20,IF(L102>0,L102)) -> FALSE | AC102: =IF(D102=rozpis_příprava!$E$20,IF(M102>0,M102)) -> FALSE | AE102: =IF(U102=FALSE,0) -> 0 | AF102: 0 | AG102: 0 | AH102: 0 | AI102: 0 | AJ102: 0 | AK102: =IF(AA102=FALSE,0) -> 0 | AL102: 0 | AM102: 0 | AO102: =IF(E102>0,E102+$E$2) -> 139 | AP102: 144 | AQ102: 152 | AR102: 114 | AS102: 167 | AT102: FALSE | AU102: FALSE | AV102: FALSE | AW102: FALSE
B103: =rozpis_příprava!M14 -> Petr V. | D103: =rozpis_příprava!N14 -> P | E103: 165 | F103: 152 | G103: 146 | H103: 190 | I103: 209 | J103: 158 | N103: FALSE | O103: 1020 | P103: =IF(D103=rozpis_příprava!$E$20,AVERAGE(AO103:AW103),IF(D103<>rozpis_příprava!$E$20,AVERAGE(rozpis_final_tisk!E103:M103))) -> 170 | U103: =IF(D103=rozpis_příprava!$E$20,IF(E103>0,E103)) -> FALSE | V103: =IF(D103=rozpis_příprava!$E$20,IF(F103>0,F103)) -> FALSE | W103: =IF(D103=rozpis_příprava!$E$20,IF(G103>0,G103)) -> FALSE | X103: =IF(D103=rozpis_příprava!$E$20,IF(H103>0,H103)) -> FALSE | Y103: =IF(D103=rozpis_příprava!$E$20,IF(I103>0,I103)) -> FALSE | Z103: =IF(D103=rozpis_příprava!$E$20,IF(J103>0,J103)) -> FALSE | AA103: =IF(D103=rozpis_příprava!$E$20,IF(K103>0,K103)) -> FALSE | AB103: =IF(D103=rozpis_příprava!$E$20,IF(L103>0,L103)) -> FALSE | AC103: =IF(D103=rozpis_příprava!$E$20,IF(M103>0,M103)) -> FALSE | AE103: 0 | AF103: 0 | AG103: 0 | AH103: 0 | AI103: 0 | AJ103: 0 | AK103: 0 | AL103: 0 | AM103: 0 | AO103: 165 | AP103: 152 | AQ103: 146 | AR103: 190 | AS103: 209 | AT103: 158 | AU103: FALSE | AV103: FALSE | AW103: FALSE
B104: =rozpis_příprava!M15 -> Honza R. | D104: =rozpis_příprava!N15 -> P | E104: 186 | F104: 145 | G104: 179 | H104: 158 | I104: 152 | J104: 160 | N104: FALSE | O104: 980 | P104: =IF(D104=rozpis_příprava!$E$20,AVERAGE(AO104:AW104),IF(D104<>rozpis_příprava!$E$20,AVERAGE(rozpis_final_tisk!E104:M104))) -> 163.3333333 | U104: =IF(D104=rozpis_příprava!$E$20,IF(E104>0,E104)) -> FALSE | V104: =IF(D104=rozpis_příprava!$E$20,IF(F104>0,F104)) -> FALSE | W104: =IF(D104=rozpis_příprava!$E$20,IF(G104>0,G104)) -> FALSE | X104: =IF(D104=rozpis_příprava!$E$20,IF(H104>0,H104)) -> FALSE | Y104: =IF(D104=rozpis_příprava!$E$20,IF(I104>0,I104)) -> FALSE | Z104: =IF(D104=rozpis_příprava!$E$20,IF(J104>0,J104)) -> FALSE | AA104: =IF(D104=rozpis_příprava!$E$20,IF(K104>0,K104)) -> FALSE | AB104: =IF(D104=rozpis_příprava!$E$20,IF(L104>0,L104)) -> FALSE | AC104: =IF(D104=rozpis_příprava!$E$20,IF(M104>0,M104)) -> FALSE | AE104: 0 | AF104: 0 | AG104: 0 | AH104: 0 | AI104: 0 | AJ104: 0 | AK104: 0 | AL104: 0 | AM104: 0 | AO104: 186 | AP104: 145 | AQ104: 179 | AR104: 158 | AS104: 152 | AT104: 160 | AU104: FALSE | AV104: FALSE | AW104: FALSE
B105: SOUČET | E105: =IF(SUM(E101:E104)=0,"",SUM(E101:E104)) -> 490 | F105: =IF(SUM(F101:F104)=0,"",SUM(F101:F104)) -> 441 | G105: =IF(SUM(G101:G104)=0,"",SUM(G101:G104)) -> 477 | H105: =IF(SUM(H101:H104)=0,"",SUM(H101:H104)) -> 462 | I105: =IF(SUM(I101:I104)=0,"",SUM(I101:I104)) -> 528 | J105: =IF(SUM(J101:J104)=0,"",SUM(J101:J104)) -> 318 | K105: =IF(SUM(K101:K104)=0,"",SUM(K101:K104)) ->  | L105: =IF(SUM(L101:L104)=0,"",SUM(L101:L104)) ->  | M105: =IF(SUM(M101:M104)=0,"",SUM(M101:M104)) ->  | O105: =IF(SUM(E105:M105)=0,"",SUM(E105:M105)) -> 2716
B106: PRŮMĚR | E106: =IF(E105="","",AVERAGE(E101:E104)) -> 163.3333333 | F106: =IF(F105="","",AVERAGE(F101:F104)) -> 147 | G106: =IF(G105="","",AVERAGE(G101:G104)) -> 159 | H106: =IF(H105="","",AVERAGE(H101:H104)) -> 154 | I106: =IF(I105="","",AVERAGE(I101:I104)) -> 176 | J106: =IF(J105="","",AVERAGE(J101:J104)) -> 159 | K106: =IF(K105="","",AVERAGE(K101:K104)) ->  | L106: =IF(L105="","",AVERAGE(L101:L104)) ->  | M106: =IF(M105="","",AVERAGE(M101:M104)) ->  | P106: =IF(O105="","",AVERAGE(E101:M104)) -> 159.7647059
B108: Za zápis na dráze zodpovídá:
B110: =rozpis_příprava!B2 -> VÁNOČNÍ TURNAJ V BOWLINGU 2015
B112: Místo: | C112: =rozpis_příprava!C5 -> Xbowling Žižkov
B113: Datum: | C113: =rozpis_příprava!C6 -> 2. ledna 2016 - sobota
B114: Čas: | C114: =rozpis_příprava!C7 -> 17:00 - 20:00 hod.
D116: kat. | E116: =rozpis_příprava!O11 -> 0
B117: Jméno | E117: 1. hra | F117: 2. hra | G117: 3.hra | H117: 4. hra | I117: 5. hra | J117: 6. hra | K117: 7. hra | L117: 8. hra | M117: 9. hra | N117: Hendikep | O117: SOUČET | P117: PRŮMĚR
B118: =rozpis_příprava!O12 -> 0 | D118: =rozpis_příprava!P12 -> 0 | N118: =IF(AM118>0,$S$13,IF(AL118>0,$S$12,IF(AK118>0,$S$11,IF(AJ118>0,$S$10,IF(AI118>0,$S$9,IF(AH118>0,$S$8,IF(AG118>0,$S$7,IF(AF118>0,$S$6,IF(AE118>0,$S$5))))))))) -> FALSE | O118: =SUM(E118:N118) -> 0 | P118: =IF(D118=rozpis_příprava!$E$20,AVERAGE(AO118:AW118),IF(D118<>rozpis_příprava!$E$20,AVERAGE(rozpis_final_tisk!E118:M118))) ->  | U118: =IF(D118=rozpis_příprava!$E$20,IF(E118>0,E118)) -> FALSE | V118: =IF(D118=rozpis_příprava!$E$20,IF(F118>0,F118)) -> FALSE | W118: =IF(D118=rozpis_příprava!$E$20,IF(G118>0,G118)) -> FALSE | X118: =IF(D118=rozpis_příprava!$E$20,IF(H118>0,H118)) -> FALSE | Y118: =IF(D118=rozpis_příprava!$E$20,IF(I118>0,I118)) -> FALSE | Z118: =IF(D118=rozpis_příprava!$E$20,IF(J118>0,J118)) -> FALSE | AA118: =IF(D118=rozpis_příprava!$E$20,IF(K118>0,K118)) -> FALSE | AB118: =IF(D118=rozpis_příprava!$E$20,IF(L118>0,L118)) -> FALSE | AC118: =IF(D118=rozpis_příprava!$E$20,IF(M118>0,M118)) -> FALSE | AE118: =IF(U118=FALSE,0) -> 0 | AF118: =IF(V118=FALSE,0) -> 0 | AG118: =IF(W118=FALSE,0) -> 0 | AH118: =IF(X118=FALSE,0) -> 0 | AI118: =IF(Y118=FALSE,0) -> 0 | AJ118: =IF(Z118=FALSE,0) -> 0 | AK118: =IF(AA118=FALSE,0) -> 0 | AL118: =IF(AB118=FALSE,0) -> 0 | AM118: =IF(AC118=FALSE,0) -> 0 | AO118: =IF(E118>0,E118+$E$2) -> FALSE | AP118: =IF(F118>0,F118+$E$2) -> FALSE | AQ118: =IF(G118>0,G118+$E$2) -> FALSE | AR118: =IF(H118>0,H118+$E$2) -> FALSE | AS118: =IF(I118>0,I118+$E$2) -> FALSE | AT118: =IF(J118>0,J118+$E$2) -> FALSE | AU118: =IF(K118>0,K118+$E$2) -> FALSE | AV118: =IF(L118>0,L118+$E$2) -> FALSE | AW118: =IF(M118>0,M118+$E$2) -> FALSE
B119: =rozpis_příprava!O13 -> 0 | D119: =rozpis_příprava!P13 -> 0 | N119: =IF(AM119>0,$S$13,IF(AL119>0,$S$12,IF(AK119>0,$S$11,IF(AJ119>0,$S$10,IF(AI119>0,$S$9,IF(AH119>0,$S$8,IF(AG119>0,$S$7,IF(AF119>0,$S$6,IF(AE119>0,$S$5))))))))) -> FALSE | O119: =SUM(E119:N119) -> 0 | P119: =IF(D119=rozpis_příprava!$E$20,AVERAGE(AO119:AW119),IF(D119<>rozpis_příprava!$E$20,AVERAGE(rozpis_final_tisk!E119:M119))) ->  | U119: =IF(D119=rozpis_příprava!$E$20,IF(E119>0,E119)) -> FALSE | V119: =IF(D119=rozpis_příprava!$E$20,IF(F119>0,F119)) -> FALSE | W119: =IF(D119=rozpis_příprava!$E$20,IF(G119>0,G119)) -> FALSE | X119: =IF(D119=rozpis_příprava!$E$20,IF(H119>0,H119)) -> FALSE | Y119: =IF(D119=rozpis_příprava!$E$20,IF(I119>0,I119)) -> FALSE | Z119: =IF(D119=rozpis_příprava!$E$20,IF(J119>0,J119)) -> FALSE | AA119: =IF(D119=rozpis_příprava!$E$20,IF(K119>0,K119)) -> FALSE | AB119: =IF(D119=rozpis_příprava!$E$20,IF(L119>0,L119)) -> FALSE | AC119: =IF(D119=rozpis_příprava!$E$20,IF(M119>0,M119)) -> FALSE | AE119: =IF(U119=FALSE,0) -> 0 | AF119: 0 | AG119: 0 | AH119: 0 | AI119: 0 | AJ119: 0 | AK119: 0 | AL119: 0 | AM119: 0 | AO119: =IF(E119>0,E119+$E$2) -> FALSE | AP119: FALSE | AQ119: FALSE | AR119: FALSE | AS119: FALSE | AT119: FALSE | AU119: FALSE | AV119: FALSE | AW119: FALSE
B120: =rozpis_příprava!O14 -> 0 | D120: =rozpis_příprava!P14 -> 0 | N120: FALSE | O120: 0 | P120: =IF(D120=rozpis_příprava!$E$20,AVERAGE(AO120:AW120),IF(D120<>rozpis_příprava!$E$20,AVERAGE(rozpis_final_tisk!E120:M120))) ->  | U120: =IF(D120=rozpis_příprava!$E$20,IF(E120>0,E120)) -> FALSE | V120: =IF(D120=rozpis_příprava!$E$20,IF(F120>0,F120)) -> FALSE | W120: =IF(D120=rozpis_příprava!$E$20,IF(G120>0,G120)) -> FALSE | X120: =IF(D120=rozpis_příprava!$E$20,IF(H120>0,H120)) -> FALSE | Y120: =IF(D120=rozpis_příprava!$E$20,IF(I120>0,I120)) -> FALSE | Z120: =IF(D120=rozpis_příprava!$E$20,IF(J120>0,J120)) -> FALSE | AA120: =IF(D120=rozpis_příprava!$E$20,IF(K120>0,K120)) -> FALSE | AB120: =IF(D120=rozpis_příprava!$E$20,IF(L120>0,L120)) -> FALSE | AC120: =IF(D120=rozpis_příprava!$E$20,IF(M120>0,M120)) -> FALSE | AE120: 0 | AF120: 0 | AG120: 0 | AH120: 0 | AI120: 0 | AJ120: 0 | AK120: 0 | AL120: 0 | AM120: 0 | AO120: FALSE | AP120: FALSE | AQ120: FALSE | AR120: FALSE | AS120: FALSE | AT120: FALSE | AU120: FALSE | AV120: FALSE | AW120: FALSE
B121: =rozpis_příprava!O15 -> 0 | D121: =rozpis_příprava!P15 -> 0 | N121: FALSE | O121: 0 | P121: =IF(D121=rozpis_příprava!$E$20,AVERAGE(AO121:AW121),IF(D121<>rozpis_příprava!$E$20,AVERAGE(rozpis_final_tisk!E121:M121))) ->  | U121: =IF(D121=rozpis_příprava!$E$20,IF(E121>0,E121)) -> FALSE | V121: =IF(D121=rozpis_příprava!$E$20,IF(F121>0,F121)) -> FALSE | W121: =IF(D121=rozpis_příprava!$E$20,IF(G121>0,G121)) -> FALSE | X121: =IF(D121=rozpis_příprava!$E$20,IF(H121>0,H121)) -> FALSE | Y121: =IF(D121=rozpis_příprava!$E$20,IF(I121>0,I121)) -> FALSE | Z121: =IF(D121=rozpis_příprava!$E$20,IF(J121>0,J121)) -> FALSE | AA121: =IF(D121=rozpis_příprava!$E$20,IF(K121>0,K121)) -> FALSE | AB121: =IF(D121=rozpis_příprava!$E$20,IF(L121>0,L121)) -> FALSE | AC121: =IF(D121=rozpis_příprava!$E$20,IF(M121>0,M121)) -> FALSE | AE121: 0 | AF121: 0 | AG121: 0 | AH121: 0 | AI121: 0 | AJ121: 0 | AK121: 0 | AL121: 0 | AM121: 0 | AO121: FALSE | AP121: FALSE | AQ121: FALSE | AR121: FALSE | AS121: FALSE | AT121: FALSE | AU121: FALSE | AV121: FALSE | AW121: FALSE
B122: SOUČET | E122: =IF(SUM(E118:E121)=0,"",SUM(E118:E121)) ->  | F122: =IF(SUM(F118:F121)=0,"",SUM(F118:F121)) ->  | G122: =IF(SUM(G118:G121)=0,"",SUM(G118:G121)) ->  | H122: =IF(SUM(H118:H121)=0,"",SUM(H118:H121)) ->  | I122: =IF(SUM(I118:I121)=0,"",SUM(I118:I121)) ->  | J122: =IF(SUM(J118:J121)=0,"",SUM(J118:J121)) ->  | K122: =IF(SUM(K118:K121)=0,"",SUM(K118:K121)) ->  | L122: =IF(SUM(L118:L121)=0,"",SUM(L118:L121)) ->  | M122: =IF(SUM(M118:M121)=0,"",SUM(M118:M121)) ->  | O122: =IF(SUM(E122:M122)=0,"",SUM(E122:M122)) -> 
B123: PRŮMĚR | E123: =IF(E122="","",AVERAGE(E118:E121)) ->  | F123: =IF(F122="","",AVERAGE(F118:F121)) ->  | G123: =IF(G122="","",AVERAGE(G118:G121)) ->  | H123: =IF(H122="","",AVERAGE(H118:H121)) ->  | I123: =IF(I122="","",AVERAGE(I118:I121)) ->  | J123: =IF(J122="","",AVERAGE(J118:J121)) ->  | K123: =IF(K122="","",AVERAGE(K118:K121)) ->  | L123: =IF(L122="","",AVERAGE(L118:L121)) ->  | M123: =IF(M122="","",AVERAGE(M118:M121)) ->  | P123: =IF(O122="","",AVERAGE(E118:M121)) -> 
B125: Za zápis na dráze zodpovídá:
B128: =rozpis_příprava!B2 -> VÁNOČNÍ TURNAJ V BOWLINGU 2015
B130: Místo: | C130: =rozpis_příprava!C5 -> Xbowling Žižkov
B131: Datum: | C131: =rozpis_příprava!C6 -> 2. ledna 2016 - sobota
B132: Čas: | C132: =rozpis_příprava!C7 -> 17:00 - 20:00 hod.
D134: kat. | E134: =rozpis_příprava!Q11 -> 0
B135: Jméno | E135: 1. hra | F135: 2. hra | G135: 3.hra | H135: 4. hra | I135: 5. hra | J135: 6. hra | K135: 7. hra | L135: 8. hra | M135: 9. hra | N135: Hendikep | O135: SOUČET | P135: PRŮMĚR
B136: =rozpis_příprava!Q12 -> 0 | D136: =rozpis_příprava!R12 -> 0 | N136: =IF(AM136>0,$S$13,IF(AL136>0,$S$12,IF(AK136>0,$S$11,IF(AJ136>0,$S$10,IF(AI136>0,$S$9,IF(AH136>0,$S$8,IF(AG136>0,$S$7,IF(AF136>0,$S$6,IF(AE136>0,$S$5))))))))) -> FALSE | O136: =SUM(E136:N136) -> 0 | P136: =IF(D136=rozpis_příprava!$E$20,AVERAGE(AO136:AW136),IF(D136<>rozpis_příprava!$E$20,AVERAGE(rozpis_final_tisk!E136:M136))) ->  | U136: =IF(D136=rozpis_příprava!$E$20,IF(E136>0,E136)) -> FALSE | V136: =IF(D136=rozpis_příprava!$E$20,IF(F136>0,F136)) -> FALSE | W136: =IF(D136=rozpis_příprava!$E$20,IF(G136>0,G136)) -> FALSE | X136: =IF(D136=rozpis_příprava!$E$20,IF(H136>0,H136)) -> FALSE | Y136: =IF(D136=rozpis_příprava!$E$20,IF(I136>0,I136)) -> FALSE | Z136: =IF(D136=rozpis_příprava!$E$20,IF(J136>0,J136)) -> FALSE | AA136: =IF(D136=rozpis_příprava!$E$20,IF(K136>0,K136)) -> FALSE | AB136: =IF(D136=rozpis_příprava!$E$20,IF(L136>0,L136)) -> FALSE | AC136: =IF(D136=rozpis_příprava!$E$20,IF(M136>0,M136)) -> FALSE | AE136: =IF(U136=FALSE,0) -> 0 | AF136: =IF(V136=FALSE,0) -> 0 | AG136: =IF(W136=FALSE,0) -> 0 | AH136: =IF(X136=FALSE,0) -> 0 | AI136: =IF(Y136=FALSE,0) -> 0 | AJ136: =IF(Z136=FALSE,0) -> 0 | AK136: =IF(AA136=FALSE,0) -> 0 | AL136: =IF(AB136=FALSE,0) -> 0 | AM136: =IF(AC136=FALSE,0) -> 0 | AO136: =IF(E136>0,E136+$E$2) -> FALSE | AP136: =IF(F136>0,F136+$E$2) -> FALSE | AQ136: =IF(G136>0,G136+$E$2) -> FALSE | AR136: =IF(H136>0,H136+$E$2) -> FALSE | AS136: =IF(I136>0,I136+$E$2) -> FALSE | AT136: =IF(J136>0,J136+$E$2) -> FALSE | AU136: =IF(K136>0,K136+$E$2) -> FALSE | AV136: =IF(L136>0,L136+$E$2) -> FALSE | AW136: =IF(M136>0,M136+$E$2) -> FALSE
B137: =rozpis_příprava!Q13 -> 0 | D137: =rozpis_příprava!R13 -> 0 | N137: =IF(AM137>0,$S$13,IF(AL137>0,$S$12,IF(AK137>0,$S$11,IF(AJ137>0,$S$10,IF(AI137>0,$S$9,IF(AH137>0,$S$8,IF(AG137>0,$S$7,IF(AF137>0,$S$6,IF(AE137>0,$S$5))))))))) -> FALSE | O137: =SUM(E137:N137) -> 0 | P137: =IF(D137=rozpis_příprava!$E$20,AVERAGE(AO137:AW137),IF(D137<>rozpis_příprava!$E$20,AVERAGE(rozpis_final_tisk!E137:M137))) ->  | U137: =IF(D137=rozpis_příprava!$E$20,IF(E137>0,E137)) -> FALSE | V137: =IF(D137=rozpis_příprava!$E$20,IF(F137>0,F137)) -> FALSE | W137: =IF(D137=rozpis_příprava!$E$20,IF(G137>0,G137)) -> FALSE | X137: =IF(D137=rozpis_příprava!$E$20,IF(H137>0,H137)) -> FALSE | Y137: =IF(D137=rozpis_příprava!$E$20,IF(I137>0,I137)) -> FALSE | Z137: =IF(D137=rozpis_příprava!$E$20,IF(J137>0,J137)) -> FALSE | AA137: =IF(D137=rozpis_příprava!$E$20,IF(K137>0,K137)) -> FALSE | AB137: =IF(D137=rozpis_příprava!$E$20,IF(L137>0,L137)) -> FALSE | AC137: =IF(D137=rozpis_příprava!$E$20,IF(M137>0,M137)) -> FALSE | AE137: =IF(U137=FALSE,0) -> 0 | AF137: 0 | AG137: 0 | AH137: 0 | AI137: 0 | AJ137: 0 | AK137: 0 | AL137: 0 | AM137: 0 | AO137: =IF(E137>0,E137+$E$2) -> FALSE | AP137: FALSE | AQ137: FALSE | AR137: FALSE | AS137: FALSE | AT137: FALSE | AU137: FALSE | AV137: FALSE | AW137: FALSE
B138: =rozpis_příprava!Q14 -> 0 | D138: =rozpis_příprava!R14 -> 0 | N138: FALSE | O138: 0 | P138: =IF(D138=rozpis_příprava!$E$20,AVERAGE(AO138:AW138),IF(D138<>rozpis_příprava!$E$20,AVERAGE(rozpis_final_tisk!E138:M138))) ->  | U138: =IF(D138=rozpis_příprava!$E$20,IF(E138>0,E138)) -> FALSE | V138: =IF(D138=rozpis_příprava!$E$20,IF(F138>0,F138)) -> FALSE | W138: =IF(D138=rozpis_příprava!$E$20,IF(G138>0,G138)) -> FALSE | X138: =IF(D138=rozpis_příprava!$E$20,IF(H138>0,H138)) -> FALSE | Y138: =IF(D138=rozpis_příprava!$E$20,IF(I138>0,I138)) -> FALSE | Z138: =IF(D138=rozpis_příprava!$E$20,IF(J138>0,J138)) -> FALSE | AA138: =IF(D138=rozpis_příprava!$E$20,IF(K138>0,K138)) -> FALSE | AB138: =IF(D138=rozpis_příprava!$E$20,IF(L138>0,L138)) -> FALSE | AC138: =IF(D138=rozpis_příprava!$E$20,IF(M138>0,M138)) -> FALSE | AE138: 0 | AF138: 0 | AG138: 0 | AH138: 0 | AI138: 0 | AJ138: 0 | AK138: 0 | AL138: 0 | AM138: 0 | AO138: FALSE | AP138: FALSE | AQ138: FALSE | AR138: FALSE | AS138: FALSE | AT138: FALSE | AU138: FALSE | AV138: FALSE | AW138: FALSE
B139: =rozpis_příprava!Q15 -> 0 | D139: =rozpis_příprava!R15 -> 0 | N139: FALSE | O139: 0 | P139: =IF(D139=rozpis_příprava!$E$20,AVERAGE(AO139:AW139),IF(D139<>rozpis_příprava!$E$20,AVERAGE(rozpis_final_tisk!E139:M139))) ->  | U139: =IF(D139=rozpis_příprava!$E$20,IF(E139>0,E139)) -> FALSE | V139: =IF(D139=rozpis_příprava!$E$20,IF(F139>0,F139)) -> FALSE | W139: =IF(D139=rozpis_příprava!$E$20,IF(G139>0,G139)) -> FALSE | X139: =IF(D139=rozpis_příprava!$E$20,IF(H139>0,H139)) -> FALSE | Y139: =IF(D139=rozpis_příprava!$E$20,IF(I139>0,I139)) -> FALSE | Z139: =IF(D139=rozpis_příprava!$E$20,IF(J139>0,J139)) -> FALSE | AA139: =IF(D139=rozpis_příprava!$E$20,IF(K139>0,K139)) -> FALSE | AB139: =IF(D139=rozpis_příprava!$E$20,IF(L139>0,L139)) -> FALSE | AC139: =IF(D139=rozpis_příprava!$E$20,IF(M139>0,M139)) -> FALSE | AE139: 0 | AF139: 0 | AG139: 0 | AH139: 0 | AI139: 0 | AJ139: 0 | AK139: 0 | AL139: 0 | AM139: 0 | AO139: FALSE | AP139: FALSE | AQ139: FALSE | AR139: FALSE | AS139: FALSE | AT139: FALSE | AU139: FALSE | AV139: FALSE | AW139: FALSE
B140: SOUČET | E140: =IF(SUM(E136:E139)=0,"",SUM(E136:E139)) ->  | F140: =IF(SUM(F136:F139)=0,"",SUM(F136:F139)) ->  | G140: =IF(SUM(G136:G139)=0,"",SUM(G136:G139)) ->  | H140: =IF(SUM(H136:H139)=0,"",SUM(H136:H139)) ->  | I140: =IF(SUM(I136:I139)=0,"",SUM(I136:I139)) ->  | J140: =IF(SUM(J136:J139)=0,"",SUM(J136:J139)) ->  | K140: =IF(SUM(K136:K139)=0,"",SUM(K136:K139)) ->  | L140: =IF(SUM(L136:L139)=0,"",SUM(L136:L139)) ->  | M140: =IF(SUM(M136:M139)=0,"",SUM(M136:M139)) ->  | O140: =IF(SUM(E140:M140)=0,"",SUM(E140:M140)) -> 
B141: PRŮMĚR | E141: =IF(E140="","",AVERAGE(E136:E139)) ->  | F141: =IF(F140="","",AVERAGE(F136:F139)) ->  | G141: =IF(G140="","",AVERAGE(G136:G139)) ->  | H141: =IF(H140="","",AVERAGE(H136:H139)) ->  | I141: =IF(I140="","",AVERAGE(I136:I139)) ->  | J141: =IF(J140="","",AVERAGE(J136:J139)) ->  | K141: =IF(K140="","",AVERAGE(K136:K139)) ->  | L141: =IF(L140="","",AVERAGE(L136:L139)) ->  | M141: =IF(M140="","",AVERAGE(M136:M139)) ->  | P141: =IF(O140="","",AVERAGE(E136:M139)) -> 
B143: Za zápis na dráze zodpovídá:

Sheet celkové umístění
B2: =rozpis_příprava!B2 -> VÁNOČNÍ TURNAJ V BOWLINGU 2015 | AX2: Postupné kroky pro znázornění hráčů bez HENDI, kteří měli vyšší reálný nához než výtězný hráč MAX náhozu s HENDI | BG2: Postupné kroky pro znázornění hráčů s HENDI, kteří měli nižší reálný nához než hráč MIN náhozu bez HENDI
AY3: =rozpis_final_tisk!E2 -> 0 | AZ3: NEMAZAT!!!
B4: Místo: | C4: =rozpis_příprava!C5 -> Xbowling Žižkov | R4: CENY ZA UMÍSTÉNÍ | AQ4: Slouží ke stanovení MAX a MIN her jednotlivých hráčů. V případě shody MAX a MIN výsledků u více hráčů VYBERE toho hráče, který v případě MAX her má vyšší celkový průměrný výsledek než druhý hráč a v případě MIN her má nižší průměrný výsledek než druhý hráč. | AX4: Vybere výsledky, které jsou v rozmezí "mínus" HENDI od nejvyššího náhozu. | AY4: U vybraných výsledků přiřadí kategorii. | AZ4: Odstraní kategorii u které je uplatněn HENDI a přiřadí jména hráčů. | BA4: Ponechává jména hráčů pouze v případě, kdy výtězem katekorie MAX nához je hráč s HENDI | BB4: Převádí jména hráčů s jejich výsledky. | BD4: Sloupce, které jsou použity pro MAKRO - řadí hráče podle maximálního náhozu | BG4: Vybere výsledky, které jsou v rozmezí "plus" HENDI od nejnižšího náhozu. | BH4: U vybraných výsledků přiřadí kategorii. | BI4: Odstraní kategorii u které je uplatněn HENDI a přiřadí jména hráčů. | BJ4: Převede na reálně docílený počet bodů ve hře bez HENDI | BK4: Ponechává jména hráčů pouze v případě, kdy katekorii MIN nához obsadí hráč bez HENDI | BL4: Převádí jména hráčů s jejich výsledky. | BN4: Ruší nulové hodnoty z důvodu následného řazení pro MAKRO | BP4: Sloupce, které jsou použity pro MAKRO - řadí hráče podle minimálního náhozu
B5: Datum: | C5: =rozpis_příprava!C6 -> 2. ledna 2016 - sobota | AG5: U kategorie Žen v případě neodehrané hry ruší Hendikep (převádí na "text")
B6: Čas: | C6: =rozpis_příprava!C7 -> 17:00 - 20:00 hod.
B8: CELKOVÉ UMÍSTĚNÍ - VŠECHNY KATEGORIE | R8: CENA PRO HRÁČE ZA UMÍSTĚNÍ
B9: Pořadí | C9: Jméno | D9: kat. | E9: 1. hra | F9: 2. hra | G9: 3.hra | H9: 4. hra | I9: 5. hra | J9: 6. hra | K9: 7. hra | L9: 8. hra | M9: 9. hra | N9: HK | O9: SOUČET | P9: PRŮMĚR | AQ9: MAX | AT9: MIN
B10: 1. | C10: =rozpis_final_tisk!B83 -> Mojka V. | D10: =rozpis_final_tisk!D83 -> P | E10: =IF(rozpis_final_tisk!E83>0,rozpis_final_tisk!E83) -> 158 | F10: =IF(rozpis_final_tisk!F83>0,rozpis_final_tisk!F83) -> 146 | G10: =IF(rozpis_final_tisk!G83>0,rozpis_final_tisk!G83) -> 214 | H10: =IF(rozpis_final_tisk!H83>0,rozpis_final_tisk!H83) -> 179 | I10: =IF(rozpis_final_tisk!I83>0,rozpis_final_tisk!I83) -> 223 | J10: =IF(rozpis_final_tisk!J83>0,rozpis_final_tisk!J83) -> FALSE | K10: =IF(rozpis_final_tisk!K83>0,rozpis_final_tisk!K83) -> FALSE | L10: =IF(rozpis_final_tisk!L83>0,rozpis_final_tisk!L83) -> FALSE | M10: =IF(rozpis_final_tisk!M83>0,rozpis_final_tisk!M83) -> FALSE | N10: =IF(rozpis_final_tisk!N83>0,rozpis_final_tisk!N83) -> FALSE | O10: =IF(rozpis_final_tisk!O83>0,rozpis_final_tisk!O83) -> 920 | P10: =IF(rozpis_final_tisk!P83>0,rozpis_final_tisk!P83) -> 184 | R10: =#REF! ->  | X10: =IF(D10=rozpis_příprava!$E$20,F10+rozpis_final_tisk!$E$2,IF('celkové umístění'!D10<>rozpis_příprava!$E$20,F10)) -> 146 | Y10: =IF(D10=rozpis_příprava!$E$20,G10+rozpis_final_tisk!$E$2,IF('celkové umístění'!D10<>rozpis_příprava!$E$20,G10)) -> 214 | Z10: =IF(D10=rozpis_příprava!$E$20,H10+rozpis_final_tisk!$E$2,IF('celkové umístění'!D10<>rozpis_příprava!$E$20,H10)) -> 179 | AA10: =IF(D10=rozpis_příprava!$E$20,I10+rozpis_final_tisk!$E$2,IF('celkové umístění'!D10<>rozpis_příprava!$E$20,I10)) -> 223 | AB10: =IF(D10=rozpis_příprava!$E$20,J10+rozpis_final_tisk!$E$2,IF('celkové umístění'!D10<>rozpis_příprava!$E$20,J10)) -> FALSE | AC10: =IF(D10=rozpis_příprava!$E$20,K10+rozpis_final_tisk!$E$2,IF('celkové umístění'!D10<>rozpis_příprava!$E$20,K10)) -> FALSE | AD10: =IF(D10=rozpis_příprava!$E$20,L10+rozpis_final_tisk!$E$2,IF('celkové umístění'!D10<>rozpis_příprava!$E$20,L10)) -> FALSE | AE10: =IF(D10=rozpis_příprava!$E$20,M10+rozpis_final_tisk!$E$2,IF('celkové umístění'!D10<>rozpis_příprava!$E$20,M10)) -> FALSE | AG10: =IF(#REF!<>rozpis_final_tisk!$E$2,'celkové umístění'!#REF!,IF('celkové umístění'!#REF!=rozpis_final_tisk!$E$2,"text")) ->  | AH10: =IF(X10<>rozpis_final_tisk!$E$2,'celkové umístění'!X10,IF('celkové umístění'!X10=rozpis_final_tisk!$E$2,"text")) -> 146 | AI10: =IF(Y10<>rozpis_final_tisk!$E$2,'celkové umístění'!Y10,IF('celkové umístění'!Y10=rozpis_final_tisk!$E$2,"text")) -> 214 | AJ10: =IF(Z10<>rozpis_final_tisk!$E$2,'celkové umístění'!Z10,IF('celkové umístění'!Z10=rozpis_final_tisk!$E$2,"text")) -> 179 | AK10: =IF(AA10<>rozpis_final_tisk!$E$2,'celkové umístění'!AA10,IF('celkové umístění'!AA10=rozpis_final_tisk!$E$2,"text")) -> 223 | AL10: =IF(AB10<>rozpis_final_tisk!$E$2,'celkové umístění'!AB10,IF('celkové umístění'!AB10=rozpis_final_tisk!$E$2,"text")) -> text | AM10: =IF(AC10<>rozpis_final_tisk!$E$2,'celkové umístění'!AC10,IF('celkové umístění'!AC10=rozpis_final_tisk!$E$2,"text")) -> text | AN10: =IF(AD10<>rozpis_final_tisk!$E$2,'celkové umístění'!AD10,IF('celkové umístění'!AD10=rozpis_final_tisk!$E$2,"text")) -> text | AO10: =IF(AE10<>rozpis_final_tisk!$E$2,'celkové umístění'!AE10,IF('celkové umístění'!AE10=rozpis_final_tisk!$E$2,"text")) -> text | AQ10: =MAXA(AG10:AO10) ->  | AR10: =IF(AQ10=MAX($AQ$10:$AQ$41),P10,0) ->  | AS10: =IF(AR10=MAX($AR$10:$AR$41),D10) ->  | AT10: =IF(O10=FALSE,"Na",MIN(AG10:AO10)) ->  | AU10: =IF(AT10=MIN($AT$10:$AT$41),P10,"Na") ->  | AV10: =IF(AU10=MIN($AU$10:$AU$41),D10) ->  | AX10: =IF(AQ10+$AY$3>MAX($AQ$10:$AQ$41),AQ10) ->  | AY10: =IF(AX10<>FALSE,D10) ->  | AZ10: =IF(AY10<>rozpis_příprava!$E$20,IF(AY10<>FALSE,'celkové umístění'!C10)) ->  | BA10: =IF(#REF!>1,IF(#REF!<>FALSE,AZ10)) ->  | BB10: =BA10 ->  | BC10: =IF(BA10=FALSE,0,IF(BA10<>FALSE,AX10)) ->  | BG10: =IF(AT10-$AY$3<MIN($AT$10:$AT$41),AT10) ->  | BH10: =IF(BG10<>FALSE,D10) ->  | BI10: =IF(BH10=rozpis_příprava!$E$20,'celkové umístění'!C10) ->  | BJ10: =IF(BI10<>FALSE,BG10-$AY$3) ->  | BK10: =IF(#REF!=FALSE,BI10) ->  | BL10: =BK10 ->  | BM10: =IFERROR(IF(BK10=FALSE,0,IF(BK10<>FALSE,BJ10)),0) -> 0 | BN10: =BL10 ->  | BO10: =IF(BM10=0,"",BM10) -> 
B11: 2. | C11: =rozpis_final_tisk!B85 -> Štefan P. | D11: =rozpis_final_tisk!D85 -> M | E11: =IF(rozpis_final_tisk!E85>0,rozpis_final_tisk!E85) -> 258 | F11: =IF(rozpis_final_tisk!F85>0,rozpis_final_tisk!F85) -> 147 | G11: =IF(rozpis_final_tisk!G85>0,rozpis_final_tisk!G85) -> 153 | H11: =IF(rozpis_final_tisk!H85>0,rozpis_final_tisk!H85) -> 186 | I11: =IF(rozpis_final_tisk!I85>0,rozpis_final_tisk!I85) -> 173 | J11: =IF(rozpis_final_tisk!J85>0,rozpis_final_tisk!J85) -> 160 | K11: =IF(rozpis_final_tisk!K85>0,rozpis_final_tisk!K85) -> FALSE | L11: =IF(rozpis_final_tisk!L85>0,rozpis_final_tisk!L85) -> FALSE | M11: =IF(rozpis_final_tisk!M85>0,rozpis_final_tisk!M85) -> FALSE | N11: =IF(rozpis_final_tisk!N85>0,rozpis_final_tisk!N85) -> FALSE | O11: =IF(rozpis_final_tisk!O85>0,rozpis_final_tisk!O85) -> 1077 | P11: =IF(rozpis_final_tisk!P85>0,rozpis_final_tisk!P85) -> 179.5 | R11: =#REF! ->  | X11: =IF(D11=rozpis_příprava!$E$20,F11+rozpis_final_tisk!$E$2,IF('celkové umístění'!D11<>rozpis_příprava!$E$20,F11)) -> 147 | Y11: =IF(D11=rozpis_příprava!$E$20,G11+rozpis_final_tisk!$E$2,IF('celkové umístění'!D11<>rozpis_příprava!$E$20,G11)) -> 153 | Z11: =IF(D11=rozpis_příprava!$E$20,H11+rozpis_final_tisk!$E$2,IF('celkové umístění'!D11<>rozpis_příprava!$E$20,H11)) -> 186 | AA11: =IF(D11=rozpis_příprava!$E$20,I11+rozpis_final_tisk!$E$2,IF('celkové umístění'!D11<>rozpis_příprava!$E$20,I11)) -> 173 | AB11: =IF(D11=rozpis_příprava!$E$20,J11+rozpis_final_tisk!$E$2,IF('celkové umístění'!D11<>rozpis_příprava!$E$20,J11)) -> 160 | AC11: =IF(D11=rozpis_příprava!$E$20,K11+rozpis_final_tisk!$E$2,IF('celkové umístění'!D11<>rozpis_příprava!$E$20,K11)) -> FALSE | AD11: =IF(D11=rozpis_příprava!$E$20,L11+rozpis_final_tisk!$E$2,IF('celkové umístění'!D11<>rozpis_příprava!$E$20,L11)) -> FALSE | AE11: =IF(D11=rozpis_příprava!$E$20,M11+rozpis_final_tisk!$E$2,IF('celkové umístění'!D11<>rozpis_příprava!$E$20,M11)) -> FALSE | AG11: =IF(#REF!<>rozpis_final_tisk!$E$2,'celkové umístění'!#REF!,IF('celkové umístění'!#REF!=rozpis_final_tisk!$E$2,"text")) ->  | AH11: =IF(X11<>rozpis_final_tisk!$E$2,'celkové umístění'!X11,IF('celkové umístění'!X11=rozpis_final_tisk!$E$2,"text")) -> 147 | AI11: =IF(Y11<>rozpis_final_tisk!$E$2,'celkové umístění'!Y11,IF('celkové umístění'!Y11=rozpis_final_tisk!$E$2,"text")) -> 153 | AJ11: =IF(Z11<>rozpis_final_tisk!$E$2,'celkové umístění'!Z11,IF('celkové umístění'!Z11=rozpis_final_tisk!$E$2,"text")) -> 186 | AK11: =IF(AA11<>rozpis_final_tisk!$E$2,'celkové umístění'!AA11,IF('celkové umístění'!AA11=rozpis_final_tisk!$E$2,"text")) -> 173 | AL11: =IF(AB11<>rozpis_final_tisk!$E$2,'celkové umístění'!AB11,IF('celkové umístění'!AB11=rozpis_final_tisk!$E$2,"text")) -> 160 | AM11: =IF(AC11<>rozpis_final_tisk!$E$2,'celkové umístění'!AC11,IF('celkové umístění'!AC11=rozpis_final_tisk!$E$2,"text")) -> text | AN11: =IF(AD11<>rozpis_final_tisk!$E$2,'celkové umístění'!AD11,IF('celkové umístění'!AD11=rozpis_final_tisk!$E$2,"text")) -> text | AO11: =IF(AE11<>rozpis_final_tisk!$E$2,'celkové umístění'!AE11,IF('celkové umístění'!AE11=rozpis_final_tisk!$E$2,"text")) -> text | AQ11: =MAXA(AG11:AO11) ->  | AR11: =IF(AQ11=MAX($AQ$10:$AQ$41),P11,0) ->  | AS11: =IF(AR11=MAX($AR$10:$AR$41),D11) ->  | AT11: =IF(O11=FALSE,"Na",MIN(AG11:AO11)) ->  | AU11: =IF(AT11=MIN($AT$10:$AT$41),P11,"Na") ->  | AV11: =IF(AU11=MIN($AU$10:$AU$41),D11) ->  | AY11: =IF(AX11<>FALSE,D11) ->  | AZ11: =IF(AY11<>rozpis_příprava!$E$20,IF(AY11<>FALSE,'celkové umístění'!C11)) ->  | BA11: =IF(#REF!>1,IF(#REF!<>FALSE,AZ11)) ->  | BB11: =BA11 ->  | BC11: =IF(BA11=FALSE,0,IF(BA11<>FALSE,AX11)) ->  | BG11: =IF(AT11-$AY$3<MIN($AT$10:$AT$41),AT11) ->  | BH11: =IF(BG11<>FALSE,D11) ->  | BI11: =IF(BH11=rozpis_příprava!$E$20,'celkové umístění'!C11) ->  | BJ11: =IF(BI11<>FALSE,BG11-$AY$3) ->  | BK11: =IF(#REF!=FALSE,BI11) ->  | BL11: =BK11 ->  | BM11: =IFERROR(IF(BK11=FALSE,0,IF(BK11<>FALSE,BJ11)),0) -> 0 | BN11: =BL11 ->  | BO11: =IF(BM11=0,"",BM11) -> 
B12: 3. | C12: =rozpis_final_tisk!B32 -> Olina P. | D12: =rozpis_final_tisk!D32 -> Ž | E12: =IF(rozpis_final_tisk!E32>0,rozpis_final_tisk!E32) -> 187 | F12: =IF(rozpis_final_tisk!F32>0,rozpis_final_tisk!F32) -> 124 | G12: =IF(rozpis_final_tisk!G32>0,rozpis_final_tisk!G32) -> 147 | H12: =IF(rozpis_final_tisk!H32>0,rozpis_final_tisk!H32) -> 146 | I12: =IF(rozpis_final_tisk!I32>0,rozpis_final_tisk!I32) -> 265 | J12: =IF(rozpis_final_tisk!J32>0,rozpis_final_tisk!J32) -> FALSE | K12: =IF(rozpis_final_tisk!K32>0,rozpis_final_tisk!K32) -> FALSE | L12: =IF(rozpis_final_tisk!L32>0,rozpis_final_tisk!L32) -> FALSE | M12: =IF(rozpis_final_tisk!M32>0,rozpis_final_tisk!M32) -> FALSE | N12: =IF(rozpis_final_tisk!N32>0,rozpis_final_tisk!N32) -> FALSE | O12: =IF(rozpis_final_tisk!O32>0,rozpis_final_tisk!O32) -> 869 | P12: =IF(rozpis_final_tisk!P32>0,rozpis_final_tisk!P32) -> 173.8 | R12: =#REF! ->  | X12: =IF(D12=rozpis_příprava!$E$20,F12+rozpis_final_tisk!$E$2,IF('celkové umístění'!D12<>rozpis_příprava!$E$20,F12)) -> 124 | Y12: =IF(D12=rozpis_příprava!$E$20,G12+rozpis_final_tisk!$E$2,IF('celkové umístění'!D12<>rozpis_příprava!$E$20,G12)) -> 147 | Z12: =IF(D12=rozpis_příprava!$E$20,H12+rozpis_final_tisk!$E$2,IF('celkové umístění'!D12<>rozpis_příprava!$E$20,H12)) -> 146 | AA12: =IF(D12=rozpis_příprava!$E$20,I12+rozpis_final_tisk!$E$2,IF('celkové umístění'!D12<>rozpis_příprava!$E$20,I12)) -> 265 | AB12: =IF(D12=rozpis_příprava!$E$20,J12+rozpis_final_tisk!$E$2,IF('celkové umístění'!D12<>rozpis_příprava!$E$20,J12)) -> 0 | AC12: =IF(D12=rozpis_příprava!$E$20,K12+rozpis_final_tisk!$E$2,IF('celkové umístění'!D12<>rozpis_příprava!$E$20,K12)) -> 0 | AD12: =IF(D12=rozpis_příprava!$E$20,L12+rozpis_final_tisk!$E$2,IF('celkové umístění'!D12<>rozpis_příprava!$E$20,L12)) -> 0 | AE12: =IF(D12=rozpis_příprava!$E$20,M12+rozpis_final_tisk!$E$2,IF('celkové umístění'!D12<>rozpis_příprava!$E$20,M12)) -> 0 | AG12: =IF(#REF!<>rozpis_final_tisk!$E$2,'celkové umístění'!#REF!,IF('celkové umístění'!#REF!=rozpis_final_tisk!$E$2,"text")) ->  | AH12: =IF(X12<>rozpis_final_tisk!$E$2,'celkové umístění'!X12,IF('celkové umístění'!X12=rozpis_final_tisk!$E$2,"text")) -> 124 | AI12: =IF(Y12<>rozpis_final_tisk!$E$2,'celkové umístění'!Y12,IF('celkové umístění'!Y12=rozpis_final_tisk!$E$2,"text")) -> 147 | AJ12: =IF(Z12<>rozpis_final_tisk!$E$2,'celkové umístění'!Z12,IF('celkové umístění'!Z12=rozpis_final_tisk!$E$2,"text")) -> 146 | AK12: =IF(AA12<>rozpis_final_tisk!$E$2,'celkové umístění'!AA12,IF('celkové umístění'!AA12=rozpis_final_tisk!$E$2,"text")) -> 265 | AL12: =IF(AB12<>rozpis_final_tisk!$E$2,'celkové umístění'!AB12,IF('celkové umístění'!AB12=rozpis_final_tisk!$E$2,"text")) -> text | AM12: =IF(AC12<>rozpis_final_tisk!$E$2,'celkové umístění'!AC12,IF('celkové umístění'!AC12=rozpis_final_tisk!$E$2,"text")) -> text | AN12: =IF(AD12<>rozpis_final_tisk!$E$2,'celkové umístění'!AD12,IF('celkové umístění'!AD12=rozpis_final_tisk!$E$2,"text")) -> text | AO12: =IF(AE12<>rozpis_final_tisk!$E$2,'celkové umístění'!AE12,IF('celkové umístění'!AE12=rozpis_final_tisk!$E$2,"text")) -> text | AR12: =IF(AQ12=MAX($AQ$10:$AQ$41),P12,0) ->  | AS12: =IF(AR12=MAX($AR$10:$AR$41),D12) ->  | AT12: =IF(O12=FALSE,"Na",MIN(AG12:AO12)) ->  | AU12: =IF(AT12=MIN($AT$10:$AT$41),P12,"Na") ->  | AV12: =IF(AU12=MIN($AU$10:$AU$41),D12) ->  | AY12: =IF(AX12<>FALSE,D12) ->  | AZ12: =IF(AY12<>rozpis_příprava!$E$20,IF(AY12<>FALSE,'celkové umístění'!C12)) ->  | BA12: =IF(#REF!>1,IF(#REF!<>FALSE,AZ12)) ->  | BH12: =IF(BG12<>FALSE,D12) ->  | BI12: =IF(BH12=rozpis_příprava!$E$20,'celkové umístění'!C12) ->  | BK12: =IF(#REF!=FALSE,BI12) ->  | BM12: 0
B13: 4. | C13: =rozpis_final_tisk!B103 -> Petr V. | D13: =rozpis_final_tisk!D103 -> P | E13: =IF(rozpis_final_tisk!E103>0,rozpis_final_tisk!E103) -> 165 | F13: =IF(rozpis_final_tisk!F103>0,rozpis_final_tisk!F103) -> 152 | G13: =IF(rozpis_final_tisk!G103>0,rozpis_final_tisk!G103) -> 146 | H13: =IF(rozpis_final_tisk!H103>0,rozpis_final_tisk!H103) -> 190 | I13: =IF(rozpis_final_tisk!I103>0,rozpis_final_tisk!I103) -> 209 | J13: =IF(rozpis_final_tisk!J103>0,rozpis_final_tisk!J103) -> 158 | K13: =IF(rozpis_final_tisk!K103>0,rozpis_final_tisk!K103) -> FALSE | L13: =IF(rozpis_final_tisk!L103>0,rozpis_final_tisk!L103) -> FALSE | M13: =IF(rozpis_final_tisk!M103>0,rozpis_final_tisk!M103) -> FALSE | N13: =IF(rozpis_final_tisk!N103>0,rozpis_final_tisk!N103) -> FALSE | O13: =IF(rozpis_final_tisk!O103>0,rozpis_final_tisk!O103) -> 1020 | P13: =IF(rozpis_final_tisk!P103>0,rozpis_final_tisk!P103) -> 170 | R13: =#REF! ->  | X13: =IF(D13=rozpis_příprava!$E$20,F13+rozpis_final_tisk!$E$2,IF('celkové umístění'!D13<>rozpis_příprava!$E$20,F13)) -> 152 | Y13: =IF(D13=rozpis_příprava!$E$20,G13+rozpis_final_tisk!$E$2,IF('celkové umístění'!D13<>rozpis_příprava!$E$20,G13)) -> 146 | Z13: =IF(D13=rozpis_příprava!$E$20,H13+rozpis_final_tisk!$E$2,IF('celkové umístění'!D13<>rozpis_příprava!$E$20,H13)) -> 190 | AA13: =IF(D13=rozpis_příprava!$E$20,I13+rozpis_final_tisk!$E$2,IF('celkové umístění'!D13<>rozpis_příprava!$E$20,I13)) -> 209 | AB13: =IF(D13=rozpis_příprava!$E$20,J13+rozpis_final_tisk!$E$2,IF('celkové umístění'!D13<>rozpis_příprava!$E$20,J13)) -> 158 | AC13: =IF(D13=rozpis_příprava!$E$20,K13+rozpis_final_tisk!$E$2,IF('celkové umístění'!D13<>rozpis_příprava!$E$20,K13)) -> FALSE | AD13: =IF(D13=rozpis_příprava!$E$20,L13+rozpis_final_tisk!$E$2,IF('celkové umístění'!D13<>rozpis_příprava!$E$20,L13)) -> FALSE | AE13: =IF(D13=rozpis_příprava!$E$20,M13+rozpis_final_tisk!$E$2,IF('celkové umístění'!D13<>rozpis_příprava!$E$20,M13)) -> FALSE | AG13: =IF(#REF!<>rozpis_final_tisk!$E$2,'celkové umístění'!#REF!,IF('celkové umístění'!#REF!=rozpis_final_tisk!$E$2,"text")) ->  | AH13: =IF(X13<>rozpis_final_tisk!$E$2,'celkové umístění'!X13,IF('celkové umístění'!X13=rozpis_final_tisk!$E$2,"text")) -> 152 | AI13: =IF(Y13<>rozpis_final_tisk!$E$2,'celkové umístění'!Y13,IF('celkové umístění'!Y13=rozpis_final_tisk!$E$2,"text")) -> 146 | AJ13: =IF(Z13<>rozpis_final_tisk!$E$2,'celkové umístění'!Z13,IF('celkové umístění'!Z13=rozpis_final_tisk!$E$2,"text")) -> 190 | AK13: =IF(AA13<>rozpis_final_tisk!$E$2,'celkové umístění'!AA13,IF('celkové umístění'!AA13=rozpis_final_tisk!$E$2,"text")) -> 209 | AL13: =IF(AB13<>rozpis_final_tisk!$E$2,'celkové umístění'!AB13,IF('celkové umístění'!AB13=rozpis_final_tisk!$E$2,"text")) -> 158 | AM13: =IF(AC13<>rozpis_final_tisk!$E$2,'celkové umístění'!AC13,IF('celkové umístění'!AC13=rozpis_final_tisk!$E$2,"text")) -> text | AN13: =IF(AD13<>rozpis_final_tisk!$E$2,'celkové umístění'!AD13,IF('celkové umístění'!AD13=rozpis_final_tisk!$E$2,"text")) -> text | AO13: =IF(AE13<>rozpis_final_tisk!$E$2,'celkové umístění'!AE13,IF('celkové umístění'!AE13=rozpis_final_tisk!$E$2,"text")) -> text | AR13: =IF(AQ13=MAX($AQ$10:$AQ$41),P13,0) ->  | AS13: =IF(AR13=MAX($AR$10:$AR$41),D13) ->  | AT13: =IF(O13=FALSE,"Na",MIN(AG13:AO13)) ->  | AU13: =IF(AT13=MIN($AT$10:$AT$41),P13,"Na") ->  | AV13: =IF(AU13=MIN($AU$10:$AU$41),D13) ->  | AY13: =IF(AX13<>FALSE,D13) ->  | AZ13: =IF(AY13<>rozpis_příprava!$E$20,IF(AY13<>FALSE,'celkové umístění'!C13)) ->  | BA13: =IF(#REF!>1,IF(#REF!<>FALSE,AZ13)) ->  | BH13: =IF(BG13<>FALSE,D13) ->  | BI13: =IF(BH13=rozpis_příprava!$E$20,'celkové umístění'!C13) ->  | BK13: =IF(#REF!=FALSE,BI13) ->  | BM13: 0
B14: 5. | C14: =rozpis_final_tisk!B13 -> Jana K. | D14: =rozpis_final_tisk!D13 -> Ž | E14: =IF(rozpis_final_tisk!E13>0,rozpis_final_tisk!E13) -> 189 | F14: =IF(rozpis_final_tisk!F13>0,rozpis_final_tisk!F13) -> 145 | G14: =IF(rozpis_final_tisk!G13>0,rozpis_final_tisk!G13) -> 185 | H14: =IF(rozpis_final_tisk!H13>0,rozpis_final_tisk!H13) -> 206 | I14: =IF(rozpis_final_tisk!I13>0,rozpis_final_tisk!I13) -> 122 | J14: =IF(rozpis_final_tisk!J13>0,rozpis_final_tisk!J13) -> FALSE | K14: =IF(rozpis_final_tisk!K13>0,rozpis_final_tisk!K13) -> FALSE | L14: =IF(rozpis_final_tisk!L13>0,rozpis_final_tisk!L13) -> FALSE | M14: =IF(rozpis_final_tisk!M13>0,rozpis_final_tisk!M13) -> FALSE | N14: =IF(rozpis_final_tisk!N13>0,rozpis_final_tisk!N13) -> FALSE | O14: =IF(rozpis_final_tisk!O13>0,rozpis_final_tisk!O13) -> 847 | P14: =IF(rozpis_final_tisk!P13>0,rozpis_final_tisk!P13) -> 169.4 | X14: =IF(D14=rozpis_příprava!$E$20,F14+rozpis_final_tisk!$E$2,IF('celkové umístění'!D14<>rozpis_příprava!$E$20,F14)) -> 145 | Y14: =IF(D14=rozpis_příprava!$E$20,G14+rozpis_final_tisk!$E$2,IF('celkové umístění'!D14<>rozpis_příprava!$E$20,G14)) -> 185 | Z14: =IF(D14=rozpis_příprava!$E$20,H14+rozpis_final_tisk!$E$2,IF('celkové umístění'!D14<>rozpis_příprava!$E$20,H14)) -> 206 | AA14: =IF(D14=rozpis_příprava!$E$20,I14+rozpis_final_tisk!$E$2,IF('celkové umístění'!D14<>rozpis_příprava!$E$20,I14)) -> 122 | AB14: =IF(D14=rozpis_příprava!$E$20,J14+rozpis_final_tisk!$E$2,IF('celkové umístění'!D14<>rozpis_příprava!$E$20,J14)) -> 0 | AC14: =IF(D14=rozpis_příprava!$E$20,K14+rozpis_final_tisk!$E$2,IF('celkové umístění'!D14<>rozpis_příprava!$E$20,K14)) -> 0 | AD14: =IF(D14=rozpis_příprava!$E$20,L14+rozpis_final_tisk!$E$2,IF('celkové umístění'!D14<>rozpis_příprava!$E$20,L14)) -> 0 | AE14: =IF(D14=rozpis_příprava!$E$20,M14+rozpis_final_tisk!$E$2,IF('celkové umístění'!D14<>rozpis_příprava!$E$20,M14)) -> 0 | AG14: =IF(#REF!<>rozpis_final_tisk!$E$2,'celkové umístění'!#REF!,IF('celkové umístění'!#REF!=rozpis_final_tisk!$E$2,"text")) ->  | AH14: =IF(X14<>rozpis_final_tisk!$E$2,'celkové umístění'!X14,IF('celkové umístění'!X14=rozpis_final_tisk!$E$2,"text")) -> 145 | AI14: =IF(Y14<>rozpis_final_tisk!$E$2,'celkové umístění'!Y14,IF('celkové umístění'!Y14=rozpis_final_tisk!$E$2,"text")) -> 185 | AJ14: =IF(Z14<>rozpis_final_tisk!$E$2,'celkové umístění'!Z14,IF('celkové umístění'!Z14=rozpis_final_tisk!$E$2,"text")) -> 206 | AK14: =IF(AA14<>rozpis_final_tisk!$E$2,'celkové umístění'!AA14,IF('celkové umístění'!AA14=rozpis_final_tisk!$E$2,"text")) -> 122 | AL14: =IF(AB14<>rozpis_final_tisk!$E$2,'celkové umístění'!AB14,IF('celkové umístění'!AB14=rozpis_final_tisk!$E$2,"text")) -> text | AM14: =IF(AC14<>rozpis_final_tisk!$E$2,'celkové umístění'!AC14,IF('celkové umístění'!AC14=rozpis_final_tisk!$E$2,"text")) -> text | AN14: =IF(AD14<>rozpis_final_tisk!$E$2,'celkové umístění'!AD14,IF('celkové umístění'!AD14=rozpis_final_tisk!$E$2,"text")) -> text | AO14: =IF(AE14<>rozpis_final_tisk!$E$2,'celkové umístění'!AE14,IF('celkové umístění'!AE14=rozpis_final_tisk!$E$2,"text")) -> text | AR14: =IF(AQ14=MAX($AQ$10:$AQ$41),P14,0) ->  | AS14: =IF(AR14=MAX($AR$10:$AR$41),D14) ->  | AT14: =IF(O14=FALSE,"Na",MIN(AG14:AO14)) ->  | AU14: =IF(AT14=MIN($AT$10:$AT$41),P14,"Na") ->  | AV14: =IF(AU14=MIN($AU$10:$AU$41),D14) ->  | AY14: =IF(AX14<>FALSE,D14) ->  | AZ14: =IF(AY14<>rozpis_příprava!$E$20,IF(AY14<>FALSE,'celkové umístění'!C14)) ->  | BA14: =IF(#REF!>1,IF(#REF!<>FALSE,AZ14)) ->  | BH14: =IF(BG14<>FALSE,D14) ->  | BI14: =IF(BH14=rozpis_příprava!$E$20,'celkové umístění'!C14) ->  | BK14: =IF(#REF!=FALSE,BI14) ->  | BM14: 0
B15: 6. | C15: =rozpis_final_tisk!B104 -> Honza R. | D15: =rozpis_final_tisk!D104 -> P | E15: =IF(rozpis_final_tisk!E104>0,rozpis_final_tisk!E104) -> 186 | F15: =IF(rozpis_final_tisk!F104>0,rozpis_final_tisk!F104) -> 145 | G15: =IF(rozpis_final_tisk!G104>0,rozpis_final_tisk!G104) -> 179 | H15: =IF(rozpis_final_tisk!H104>0,rozpis_final_tisk!H104) -> 158 | I15: =IF(rozpis_final_tisk!I104>0,rozpis_final_tisk!I104) -> 152 | J15: =IF(rozpis_final_tisk!J104>0,rozpis_final_tisk!J104) -> 160 | K15: =IF(rozpis_final_tisk!K104>0,rozpis_final_tisk!K104) -> FALSE | L15: =IF(rozpis_final_tisk!L104>0,rozpis_final_tisk!L104) -> FALSE | M15: =IF(rozpis_final_tisk!M104>0,rozpis_final_tisk!M104) -> FALSE | N15: =IF(rozpis_final_tisk!N104>0,rozpis_final_tisk!N104) -> FALSE | O15: =IF(rozpis_final_tisk!O104>0,rozpis_final_tisk!O104) -> 980 | P15: =IF(rozpis_final_tisk!P104>0,rozpis_final_tisk!P104) -> 163.3333333 | X15: =IF(D15=rozpis_příprava!$E$20,F15+rozpis_final_tisk!$E$2,IF('celkové umístění'!D15<>rozpis_příprava!$E$20,F15)) -> 145 | Y15: =IF(D15=rozpis_příprava!$E$20,G15+rozpis_final_tisk!$E$2,IF('celkové umístění'!D15<>rozpis_příprava!$E$20,G15)) -> 179 | Z15: =IF(D15=rozpis_příprava!$E$20,H15+rozpis_final_tisk!$E$2,IF('celkové umístění'!D15<>rozpis_příprava!$E$20,H15)) -> 158 | AA15: =IF(D15=rozpis_příprava!$E$20,I15+rozpis_final_tisk!$E$2,IF('celkové umístění'!D15<>rozpis_příprava!$E$20,I15)) -> 152 | AB15: =IF(D15=rozpis_příprava!$E$20,J15+rozpis_final_tisk!$E$2,IF('celkové umístění'!D15<>rozpis_příprava!$E$20,J15)) -> 160 | AC15: =IF(D15=rozpis_příprava!$E$20,K15+rozpis_final_tisk!$E$2,IF('celkové umístění'!D15<>rozpis_příprava!$E$20,K15)) -> FALSE | AD15: =IF(D15=rozpis_příprava!$E$20,L15+rozpis_final_tisk!$E$2,IF('celkové umístění'!D15<>rozpis_příprava!$E$20,L15)) -> FALSE | AE15: =IF(D15=rozpis_příprava!$E$20,M15+rozpis_final_tisk!$E$2,IF('celkové umístění'!D15<>rozpis_příprava!$E$20,M15)) -> FALSE | AG15: =IF(#REF!<>rozpis_final_tisk!$E$2,'celkové umístění'!#REF!,IF('celkové umístění'!#REF!=rozpis_final_tisk!$E$2,"text")) ->  | AH15: =IF(X15<>rozpis_final_tisk!$E$2,'celkové umístění'!X15,IF('celkové umístění'!X15=rozpis_final_tisk!$E$2,"text")) -> 145 | AI15: =IF(Y15<>rozpis_final_tisk!$E$2,'celkové umístění'!Y15,IF('celkové umístění'!Y15=rozpis_final_tisk!$E$2,"text")) -> 179 | AJ15: =IF(Z15<>rozpis_final_tisk!$E$2,'celkové umístění'!Z15,IF('celkové umístění'!Z15=rozpis_final_tisk!$E$2,"text")) -> 158 | AK15: =IF(AA15<>rozpis_final_tisk!$E$2,'celkové umístění'!AA15,IF('celkové umístění'!AA15=rozpis_final_tisk!$E$2,"text")) -> 152 | AL15: =IF(AB15<>rozpis_final_tisk!$E$2,'celkové umístění'!AB15,IF('celkové umístění'!AB15=rozpis_final_tisk!$E$2,"text")) -> 160 | AM15: =IF(AC15<>rozpis_final_tisk!$E$2,'celkové umístění'!AC15,IF('celkové umístění'!AC15=rozpis_final_tisk!$E$2,"text")) -> text | AN15: =IF(AD15<>rozpis_final_tisk!$E$2,'celkové umístění'!AD15,IF('celkové umístění'!AD15=rozpis_final_tisk!$E$2,"text")) -> text | AO15: =IF(AE15<>rozpis_final_tisk!$E$2,'celkové umístění'!AE15,IF('celkové umístění'!AE15=rozpis_final_tisk!$E$2,"text")) -> text | AR15: =IF(AQ15=MAX($AQ$10:$AQ$41),P15,0) ->  | AS15: =IF(AR15=MAX($AR$10:$AR$41),D15) ->  | AT15: =IF(O15=FALSE,"Na",MIN(AG15:AO15)) ->  | AU15: =IF(AT15=MIN($AT$10:$AT$41),P15,"Na") ->  | AV15: =IF(AU15=MIN($AU$10:$AU$41),D15) ->  | AY15: =IF(AX15<>FALSE,D15) ->  | AZ15: =IF(AY15<>rozpis_příprava!$E$20,IF(AY15<>FALSE,'celkové umístění'!C15)) ->  | BA15: =IF(#REF!>1,IF(#REF!<>FALSE,AZ15)) ->  | BH15: =IF(BG15<>FALSE,D15) ->  | BI15: =IF(BH15=rozpis_příprava!$E$20,'celkové umístění'!C15) ->  | BK15: =IF(#REF!=FALSE,BI15) ->  | BM15: 0
B16: 7. | C16: =rozpis_final_tisk!B84 -> Jarda H. | D16: =rozpis_final_tisk!D84 -> P | E16: =IF(rozpis_final_tisk!E84>0,rozpis_final_tisk!E84) -> 170 | F16: =IF(rozpis_final_tisk!F84>0,rozpis_final_tisk!F84) -> 150 | G16: =IF(rozpis_final_tisk!G84>0,rozpis_final_tisk!G84) -> 201 | H16: =IF(rozpis_final_tisk!H84>0,rozpis_final_tisk!H84) -> 141 | I16: =IF(rozpis_final_tisk!I84>0,rozpis_final_tisk!I84) -> 145 | J16: =IF(rozpis_final_tisk!J84>0,rozpis_final_tisk!J84) -> FALSE | K16: =IF(rozpis_final_tisk!K84>0,rozpis_final_tisk!K84) -> FALSE | L16: =IF(rozpis_final_tisk!L84>0,rozpis_final_tisk!L84) -> FALSE | M16: =IF(rozpis_final_tisk!M84>0,rozpis_final_tisk!M84) -> FALSE | N16: =IF(rozpis_final_tisk!N84>0,rozpis_final_tisk!N84) -> FALSE | O16: =IF(rozpis_final_tisk!O84>0,rozpis_final_tisk!O84) -> 807 | P16: =IF(rozpis_final_tisk!P84>0,rozpis_final_tisk!P84) -> 161.4 | X16: =IF(D16=rozpis_příprava!$E$20,F16+rozpis_final_tisk!$E$2,IF('celkové umístění'!D16<>rozpis_příprava!$E$20,F16)) -> 150 | Y16: =IF(D16=rozpis_příprava!$E$20,G16+rozpis_final_tisk!$E$2,IF('celkové umístění'!D16<>rozpis_příprava!$E$20,G16)) -> 201 | Z16: =IF(D16=rozpis_příprava!$E$20,H16+rozpis_final_tisk!$E$2,IF('celkové umístění'!D16<>rozpis_příprava!$E$20,H16)) -> 141 | AA16: =IF(D16=rozpis_příprava!$E$20,I16+rozpis_final_tisk!$E$2,IF('celkové umístění'!D16<>rozpis_příprava!$E$20,I16)) -> 145 | AB16: =IF(D16=rozpis_příprava!$E$20,J16+rozpis_final_tisk!$E$2,IF('celkové umístění'!D16<>rozpis_příprava!$E$20,J16)) -> FALSE | AC16: =IF(D16=rozpis_příprava!$E$20,K16+rozpis_final_tisk!$E$2,IF('celkové umístění'!D16<>rozpis_příprava!$E$20,K16)) -> FALSE | AD16: =IF(D16=rozpis_příprava!$E$20,L16+rozpis_final_tisk!$E$2,IF('celkové umístění'!D16<>rozpis_příprava!$E$20,L16)) -> FALSE | AE16: =IF(D16=rozpis_příprava!$E$20,M16+rozpis_final_tisk!$E$2,IF('celkové umístění'!D16<>rozpis_příprava!$E$20,M16)) -> FALSE | AG16: =IF(#REF!<>rozpis_final_tisk!$E$2,'celkové umístění'!#REF!,IF('celkové umístění'!#REF!=rozpis_final_tisk!$E$2,"text")) ->  | AH16: =IF(X16<>rozpis_final_tisk!$E$2,'celkové umístění'!X16,IF('celkové umístění'!X16=rozpis_final_tisk!$E$2,"text")) -> 150 | AI16: =IF(Y16<>rozpis_final_tisk!$E$2,'celkové umístění'!Y16,IF('celkové umístění'!Y16=rozpis_final_tisk!$E$2,"text")) -> 201 | AJ16: =IF(Z16<>rozpis_final_tisk!$E$2,'celkové umístění'!Z16,IF('celkové umístění'!Z16=rozpis_final_tisk!$E$2,"text")) -> 141 | AK16: =IF(AA16<>rozpis_final_tisk!$E$2,'celkové umístění'!AA16,IF('celkové umístění'!AA16=rozpis_final_tisk!$E$2,"text")) -> 145 | AL16: =IF(AB16<>rozpis_final_tisk!$E$2,'celkové umístění'!AB16,IF('celkové umístění'!AB16=rozpis_final_tisk!$E$2,"text")) -> text | AM16: =IF(AC16<>rozpis_final_tisk!$E$2,'celkové umístění'!AC16,IF('celkové umístění'!AC16=rozpis_final_tisk!$E$2,"text")) -> text | AN16: =IF(AD16<>rozpis_final_tisk!$E$2,'celkové umístění'!AD16,IF('celkové umístění'!AD16=rozpis_final_tisk!$E$2,"text")) -> text | AO16: =IF(AE16<>rozpis_final_tisk!$E$2,'celkové umístění'!AE16,IF('celkové umístění'!AE16=rozpis_final_tisk!$E$2,"text")) -> text | AR16: =IF(AQ16=MAX($AQ$10:$AQ$41),P16,0) ->  | AS16: =IF(AR16=MAX($AR$10:$AR$41),D16) ->  | AT16: =IF(O16=FALSE,"Na",MIN(AG16:AO16)) ->  | AU16: =IF(AT16=MIN($AT$10:$AT$41),P16,"Na") ->  | AV16: =IF(AU16=MIN($AU$10:$AU$41),D16) ->  | AY16: =IF(AX16<>FALSE,D16) ->  | AZ16: =IF(AY16<>rozpis_příprava!$E$20,IF(AY16<>FALSE,'celkové umístění'!C16)) ->  | BA16: =IF(#REF!>1,IF(#REF!<>FALSE,AZ16)) ->  | BH16: =IF(BG16<>FALSE,D16) ->  | BI16: =IF(BH16=rozpis_příprava!$E$20,'celkové umístění'!C16) ->  | BK16: =IF(#REF!=FALSE,BI16) ->  | BM16: 0
B17: 8. | C17: =rozpis_final_tisk!B14 -> Renata A. | D17: =rozpis_final_tisk!D14 -> Ž | E17: =IF(rozpis_final_tisk!E14>0,rozpis_final_tisk!E14) -> 127 | F17: =IF(rozpis_final_tisk!F14>0,rozpis_final_tisk!F14) -> 118 | G17: =IF(rozpis_final_tisk!G14>0,rozpis_final_tisk!G14) -> 158 | H17: =IF(rozpis_final_tisk!H14>0,rozpis_final_tisk!H14) -> 165 | I17: =IF(rozpis_final_tisk!I14>0,rozpis_final_tisk!I14) -> 124 | J17: =IF(rozpis_final_tisk!J14>0,rozpis_final_tisk!J14) -> 222 | K17: =IF(rozpis_final_tisk!K14>0,rozpis_final_tisk!K14) -> FALSE | L17: =IF(rozpis_final_tisk!L14>0,rozpis_final_tisk!L14) -> FALSE | M17: =IF(rozpis_final_tisk!M14>0,rozpis_final_tisk!M14) -> FALSE | N17: =IF(rozpis_final_tisk!N14>0,rozpis_final_tisk!N14) -> FALSE | O17: =IF(rozpis_final_tisk!O14>0,rozpis_final_tisk!O14) -> 914 | P17: =IF(rozpis_final_tisk!P14>0,rozpis_final_tisk!P14) -> 152.3333333 | X17: =IF(D17=rozpis_příprava!$E$20,F17+rozpis_final_tisk!$E$2,IF('celkové umístění'!D17<>rozpis_příprava!$E$20,F17)) -> 118 | Y17: =IF(D17=rozpis_příprava!$E$20,G17+rozpis_final_tisk!$E$2,IF('celkové umístění'!D17<>rozpis_příprava!$E$20,G17)) -> 158 | Z17: =IF(D17=rozpis_příprava!$E$20,H17+rozpis_final_tisk!$E$2,IF('celkové umístění'!D17<>rozpis_příprava!$E$20,H17)) -> 165 | AA17: =IF(D17=rozpis_příprava!$E$20,I17+rozpis_final_tisk!$E$2,IF('celkové umístění'!D17<>rozpis_příprava!$E$20,I17)) -> 124 | AB17: =IF(D17=rozpis_příprava!$E$20,J17+rozpis_final_tisk!$E$2,IF('celkové umístění'!D17<>rozpis_příprava!$E$20,J17)) -> 222 | AC17: =IF(D17=rozpis_příprava!$E$20,K17+rozpis_final_tisk!$E$2,IF('celkové umístění'!D17<>rozpis_příprava!$E$20,K17)) -> 0 | AD17: =IF(D17=rozpis_příprava!$E$20,L17+rozpis_final_tisk!$E$2,IF('celkové umístění'!D17<>rozpis_příprava!$E$20,L17)) -> 0 | AE17: =IF(D17=rozpis_příprava!$E$20,M17+rozpis_final_tisk!$E$2,IF('celkové umístění'!D17<>rozpis_příprava!$E$20,M17)) -> 0 | AG17: =IF(#REF!<>rozpis_final_tisk!$E$2,'celkové umístění'!#REF!,IF('celkové umístění'!#REF!=rozpis_final_tisk!$E$2,"text")) ->  | AH17: =IF(X17<>rozpis_final_tisk!$E$2,'celkové umístění'!X17,IF('celkové umístění'!X17=rozpis_final_tisk!$E$2,"text")) -> 118 | AI17: =IF(Y17<>rozpis_final_tisk!$E$2,'celkové umístění'!Y17,IF('celkové umístění'!Y17=rozpis_final_tisk!$E$2,"text")) -> 158 | AJ17: =IF(Z17<>rozpis_final_tisk!$E$2,'celkové umístění'!Z17,IF('celkové umístění'!Z17=rozpis_final_tisk!$E$2,"text")) -> 165 | AK17: =IF(AA17<>rozpis_final_tisk!$E$2,'celkové umístění'!AA17,IF('celkové umístění'!AA17=rozpis_final_tisk!$E$2,"text")) -> 124 | AL17: =IF(AB17<>rozpis_final_tisk!$E$2,'celkové umístění'!AB17,IF('celkové umístění'!AB17=rozpis_final_tisk!$E$2,"text")) -> 222 | AM17: =IF(AC17<>rozpis_final_tisk!$E$2,'celkové umístění'!AC17,IF('celkové umístění'!AC17=rozpis_final_tisk!$E$2,"text")) -> text | AN17: =IF(AD17<>rozpis_final_tisk!$E$2,'celkové umístění'!AD17,IF('celkové umístění'!AD17=rozpis_final_tisk!$E$2,"text")) -> text | AO17: =IF(AE17<>rozpis_final_tisk!$E$2,'celkové umístění'!AE17,IF('celkové umístění'!AE17=rozpis_final_tisk!$E$2,"text")) -> text | AR17: =IF(AQ17=MAX($AQ$10:$AQ$41),P17,0) ->  | AS17: =IF(AR17=MAX($AR$10:$AR$41),D17) ->  | AT17: =IF(O17=FALSE,"Na",MIN(AG17:AO17)) ->  | AU17: =IF(AT17=MIN($AT$10:$AT$41),P17,"Na") ->  | AV17: =IF(AU17=MIN($AU$10:$AU$41),D17) ->  | AY17: =IF(AX17<>FALSE,D17) ->  | AZ17: =IF(AY17<>rozpis_příprava!$E$20,IF(AY17<>FALSE,'celkové umístění'!C17)) ->  | BA17: =IF(#REF!>1,IF(#REF!<>FALSE,AZ17)) ->  | BH17: =IF(BG17<>FALSE,D17) ->  | BI17: =IF(BH17=rozpis_příprava!$E$20,'celkové umístění'!C17) ->  | BK17: =IF(#REF!=FALSE,BI17) ->  | BM17: 0
B18: 9. | C18: =rozpis_final_tisk!B102 -> David D. | D18: =rozpis_final_tisk!D102 -> M | E18: =IF(rozpis_final_tisk!E102>0,rozpis_final_tisk!E102) -> 139 | F18: =IF(rozpis_final_tisk!F102>0,rozpis_final_tisk!F102) -> 144 | G18: =IF(rozpis_final_tisk!G102>0,rozpis_final_tisk!G102) -> 152 | H18: =IF(rozpis_final_tisk!H102>0,rozpis_final_tisk!H102) -> 114 | I18: =IF(rozpis_final_tisk!I102>0,rozpis_final_tisk!I102) -> 167 | J18: =IF(rozpis_final_tisk!J102>0,rozpis_final_tisk!J102) -> FALSE | K18: =IF(rozpis_final_tisk!K102>0,rozpis_final_tisk!K102) -> FALSE | L18: =IF(rozpis_final_tisk!L102>0,rozpis_final_tisk!L102) -> FALSE | M18: =IF(rozpis_final_tisk!M102>0,rozpis_final_tisk!M102) -> FALSE | N18: =IF(rozpis_final_tisk!N102>0,rozpis_final_tisk!N102) -> FALSE | O18: =IF(rozpis_final_tisk!O102>0,rozpis_final_tisk!O102) -> 716 | P18: =IF(rozpis_final_tisk!P102>0,rozpis_final_tisk!P102) -> 143.2 | X18: =IF(D18=rozpis_příprava!$E$20,F18+rozpis_final_tisk!$E$2,IF('celkové umístění'!D18<>rozpis_příprava!$E$20,F18)) -> 144 | Y18: =IF(D18=rozpis_příprava!$E$20,G18+rozpis_final_tisk!$E$2,IF('celkové umístění'!D18<>rozpis_příprava!$E$20,G18)) -> 152 | Z18: =IF(D18=rozpis_příprava!$E$20,H18+rozpis_final_tisk!$E$2,IF('celkové umístění'!D18<>rozpis_příprava!$E$20,H18)) -> 114 | AA18: =IF(D18=rozpis_příprava!$E$20,I18+rozpis_final_tisk!$E$2,IF('celkové umístění'!D18<>rozpis_příprava!$E$20,I18)) -> 167 | AB18: =IF(D18=rozpis_příprava!$E$20,J18+rozpis_final_tisk!$E$2,IF('celkové umístění'!D18<>rozpis_příprava!$E$20,J18)) -> FALSE | AC18: =IF(D18=rozpis_příprava!$E$20,K18+rozpis_final_tisk!$E$2,IF('celkové umístění'!D18<>rozpis_příprava!$E$20,K18)) -> FALSE | AD18: =IF(D18=rozpis_příprava!$E$20,L18+rozpis_final_tisk!$E$2,IF('celkové umístění'!D18<>rozpis_příprava!$E$20,L18)) -> FALSE | AE18: =IF(D18=rozpis_příprava!$E$20,M18+rozpis_final_tisk!$E$2,IF('celkové umístění'!D18<>rozpis_příprava!$E$20,M18)) -> FALSE | AG18: =IF(#REF!<>rozpis_final_tisk!$E$2,'celkové umístění'!#REF!,IF('celkové umístění'!#REF!=rozpis_final_tisk!$E$2,"text")) ->  | AH18: =IF(X18<>rozpis_final_tisk!$E$2,'celkové umístění'!X18,IF('celkové umístění'!X18=rozpis_final_tisk!$E$2,"text")) -> 144 | AI18: =IF(Y18<>rozpis_final_tisk!$E$2,'celkové umístění'!Y18,IF('celkové umístění'!Y18=rozpis_final_tisk!$E$2,"text")) -> 152 | AJ18: =IF(Z18<>rozpis_final_tisk!$E$2,'celkové umístění'!Z18,IF('celkové umístění'!Z18=rozpis_final_tisk!$E$2,"text")) -> 114 | AK18: =IF(AA18<>rozpis_final_tisk!$E$2,'celkové umístění'!AA18,IF('celkové umístění'!AA18=rozpis_final_tisk!$E$2,"text")) -> 167 | AL18: =IF(AB18<>rozpis_final_tisk!$E$2,'celkové umístění'!AB18,IF('celkové umístění'!AB18=rozpis_final_tisk!$E$2,"text")) -> text | AM18: =IF(AC18<>rozpis_final_tisk!$E$2,'celkové umístění'!AC18,IF('celkové umístění'!AC18=rozpis_final_tisk!$E$2,"text")) -> text | AN18: =IF(AD18<>rozpis_final_tisk!$E$2,'celkové umístění'!AD18,IF('celkové umístění'!AD18=rozpis_final_tisk!$E$2,"text")) -> text | AO18: =IF(AE18<>rozpis_final_tisk!$E$2,'celkové umístění'!AE18,IF('celkové umístění'!AE18=rozpis_final_tisk!$E$2,"text")) -> text | AR18: =IF(AQ18=MAX($AQ$10:$AQ$41),P18,0) ->  | AS18: =IF(AR18=MAX($AR$10:$AR$41),D18) ->  | AT18: =IF(O18=FALSE,"Na",MIN(AG18:AO18)) ->  | AU18: =IF(AT18=MIN($AT$10:$AT$41),P18,"Na") ->  | AV18: =IF(AU18=MIN($AU$10:$AU$41),D18) ->  | AY18: =IF(AX18<>FALSE,D18) ->  | AZ18: =IF(AY18<>rozpis_příprava!$E$20,IF(AY18<>FALSE,'celkové umístění'!C18)) ->  | BA18: =IF(#REF!>1,IF(#REF!<>FALSE,AZ18)) ->  | BH18: =IF(BG18<>FALSE,D18) ->  | BI18: =IF(BH18=rozpis_příprava!$E$20,'celkové umístění'!C18) ->  | BK18: =IF(#REF!=FALSE,BI18) ->  | BM18: 0
B19: 10. | C19: =rozpis_final_tisk!B86 -> Mirek K. | D19: =rozpis_final_tisk!D86 -> M | E19: =IF(rozpis_final_tisk!E86>0,rozpis_final_tisk!E86) -> 139 | F19: =IF(rozpis_final_tisk!F86>0,rozpis_final_tisk!F86) -> 187 | G19: =IF(rozpis_final_tisk!G86>0,rozpis_final_tisk!G86) -> 125 | H19: =IF(rozpis_final_tisk!H86>0,rozpis_final_tisk!H86) -> 116 | I19: =IF(rozpis_final_tisk!I86>0,rozpis_final_tisk!I86) -> 126 | J19: =IF(rozpis_final_tisk!J86>0,rozpis_final_tisk!J86) -> 148 | K19: =IF(rozpis_final_tisk!K86>0,rozpis_final_tisk!K86) -> FALSE | L19: =IF(rozpis_final_tisk!L86>0,rozpis_final_tisk!L86) -> FALSE | M19: =IF(rozpis_final_tisk!M86>0,rozpis_final_tisk!M86) -> FALSE | N19: =IF(rozpis_final_tisk!N86>0,rozpis_final_tisk!N86) -> FALSE | O19: =IF(rozpis_final_tisk!O86>0,rozpis_final_tisk!O86) -> 841 | P19: =IF(rozpis_final_tisk!P86>0,rozpis_final_tisk!P86) -> 140.1666667 | X19: =IF(D19=rozpis_příprava!$E$20,F19+rozpis_final_tisk!$E$2,IF('celkové umístění'!D19<>rozpis_příprava!$E$20,F19)) -> 187 | Y19: =IF(D19=rozpis_příprava!$E$20,G19+rozpis_final_tisk!$E$2,IF('celkové umístění'!D19<>rozpis_příprava!$E$20,G19)) -> 125 | Z19: =IF(D19=rozpis_příprava!$E$20,H19+rozpis_final_tisk!$E$2,IF('celkové umístění'!D19<>rozpis_příprava!$E$20,H19)) -> 116 | AA19: =IF(D19=rozpis_příprava!$E$20,I19+rozpis_final_tisk!$E$2,IF('celkové umístění'!D19<>rozpis_příprava!$E$20,I19)) -> 126 | AB19: =IF(D19=rozpis_příprava!$E$20,J19+rozpis_final_tisk!$E$2,IF('celkové umístění'!D19<>rozpis_příprava!$E$20,J19)) -> 148 | AC19: =IF(D19=rozpis_příprava!$E$20,K19+rozpis_final_tisk!$E$2,IF('celkové umístění'!D19<>rozpis_příprava!$E$20,K19)) -> FALSE | AD19: =IF(D19=rozpis_příprava!$E$20,L19+rozpis_final_tisk!$E$2,IF('celkové umístění'!D19<>rozpis_příprava!$E$20,L19)) -> FALSE | AE19: =IF(D19=rozpis_příprava!$E$20,M19+rozpis_final_tisk!$E$2,IF('celkové umístění'!D19<>rozpis_příprava!$E$20,M19)) -> FALSE | AG19: =IF(#REF!<>rozpis_final_tisk!$E$2,'celkové umístění'!#REF!,IF('celkové umístění'!#REF!=rozpis_final_tisk!$E$2,"text")) ->  | AH19: =IF(X19<>rozpis_final_tisk!$E$2,'celkové umístění'!X19,IF('celkové umístění'!X19=rozpis_final_tisk!$E$2,"text")) -> 187 | AI19: =IF(Y19<>rozpis_final_tisk!$E$2,'celkové umístění'!Y19,IF('celkové umístění'!Y19=rozpis_final_tisk!$E$2,"text")) -> 125 | AJ19: =IF(Z19<>rozpis_final_tisk!$E$2,'celkové umístění'!Z19,IF('celkové umístění'!Z19=rozpis_final_tisk!$E$2,"text")) -> 116 | AK19: =IF(AA19<>rozpis_final_tisk!$E$2,'celkové umístění'!AA19,IF('celkové umístění'!AA19=rozpis_final_tisk!$E$2,"text")) -> 126 | AL19: =IF(AB19<>rozpis_final_tisk!$E$2,'celkové umístění'!AB19,IF('celkové umístění'!AB19=rozpis_final_tisk!$E$2,"text")) -> 148 | AM19: =IF(AC19<>rozpis_final_tisk!$E$2,'celkové umístění'!AC19,IF('celkové umístění'!AC19=rozpis_final_tisk!$E$2,"text")) -> text | AN19: =IF(AD19<>rozpis_final_tisk!$E$2,'celkové umístění'!AD19,IF('celkové umístění'!AD19=rozpis_final_tisk!$E$2,"text")) -> text | AO19: =IF(AE19<>rozpis_final_tisk!$E$2,'celkové umístění'!AE19,IF('celkové umístění'!AE19=rozpis_final_tisk!$E$2,"text")) -> text | AR19: =IF(AQ19=MAX($AQ$10:$AQ$41),P19,0) ->  | AS19: =IF(AR19=MAX($AR$10:$AR$41),D19) ->  | AT19: =IF(O19=FALSE,"Na",MIN(AG19:AO19)) ->  | AU19: =IF(AT19=MIN($AT$10:$AT$41),P19,"Na") ->  | AV19: =IF(AU19=MIN($AU$10:$AU$41),D19) ->  | AY19: =IF(AX19<>FALSE,D19) ->  | AZ19: =IF(AY19<>rozpis_příprava!$E$20,IF(AY19<>FALSE,'celkové umístění'!C19)) ->  | BA19: =IF(#REF!>1,IF(#REF!<>FALSE,AZ19)) ->  | BH19: =IF(BG19<>FALSE,D19) ->  | BI19: =IF(BH19=rozpis_příprava!$E$20,'celkové umístění'!C19) ->  | BK19: =IF(#REF!=FALSE,BI19) ->  | BM19: 0
B20: 11. | C20: =rozpis_final_tisk!B48 -> Lucka N. | D20: =rozpis_final_tisk!D48 -> Ž | E20: =IF(rozpis_final_tisk!E48>0,rozpis_final_tisk!E48) -> 107 | F20: =IF(rozpis_final_tisk!F48>0,rozpis_final_tisk!F48) -> 132 | G20: =IF(rozpis_final_tisk!G48>0,rozpis_final_tisk!G48) -> 80 | H20: =IF(rozpis_final_tisk!H48>0,rozpis_final_tisk!H48) -> 116 | I20: =IF(rozpis_final_tisk!I48>0,rozpis_final_tisk!I48) -> FALSE | J20: =IF(rozpis_final_tisk!J48>0,rozpis_final_tisk!J48) -> FALSE | K20: =IF(rozpis_final_tisk!K48>0,rozpis_final_tisk!K48) -> FALSE | L20: =IF(rozpis_final_tisk!L48>0,rozpis_final_tisk!L48) -> FALSE | M20: =IF(rozpis_final_tisk!M48>0,rozpis_final_tisk!M48) -> FALSE | N20: =IF(rozpis_final_tisk!N48>0,rozpis_final_tisk!N48) -> FALSE | O20: =IF(rozpis_final_tisk!O48>0,rozpis_final_tisk!O48) -> 435 | P20: =IF(rozpis_final_tisk!P48>0,rozpis_final_tisk!P48) -> 108.75 | X20: =IF(D20=rozpis_příprava!$E$20,F20+rozpis_final_tisk!$E$2,IF('celkové umístění'!D20<>rozpis_příprava!$E$20,F20)) -> 132 | Y20: =IF(D20=rozpis_příprava!$E$20,G20+rozpis_final_tisk!$E$2,IF('celkové umístění'!D20<>rozpis_příprava!$E$20,G20)) -> 80 | Z20: =IF(D20=rozpis_příprava!$E$20,H20+rozpis_final_tisk!$E$2,IF('celkové umístění'!D20<>rozpis_příprava!$E$20,H20)) -> 116 | AA20: =IF(D20=rozpis_příprava!$E$20,I20+rozpis_final_tisk!$E$2,IF('celkové umístění'!D20<>rozpis_příprava!$E$20,I20)) -> 0 | AB20: =IF(D20=rozpis_příprava!$E$20,J20+rozpis_final_tisk!$E$2,IF('celkové umístění'!D20<>rozpis_příprava!$E$20,J20)) -> 0 | AC20: =IF(D20=rozpis_příprava!$E$20,K20+rozpis_final_tisk!$E$2,IF('celkové umístění'!D20<>rozpis_příprava!$E$20,K20)) -> 0 | AD20: =IF(D20=rozpis_příprava!$E$20,L20+rozpis_final_tisk!$E$2,IF('celkové umístění'!D20<>rozpis_příprava!$E$20,L20)) -> 0 | AE20: =IF(D20=rozpis_příprava!$E$20,M20+rozpis_final_tisk!$E$2,IF('celkové umístění'!D20<>rozpis_příprava!$E$20,M20)) -> 0 | AG20: =IF(#REF!<>rozpis_final_tisk!$E$2,'celkové umístění'!#REF!,IF('celkové umístění'!#REF!=rozpis_final_tisk!$E$2,"text")) ->  | AH20: =IF(X20<>rozpis_final_tisk!$E$2,'celkové umístění'!X20,IF('celkové umístění'!X20=rozpis_final_tisk!$E$2,"text")) -> 132 | AI20: =IF(Y20<>rozpis_final_tisk!$E$2,'celkové umístění'!Y20,IF('celkové umístění'!Y20=rozpis_final_tisk!$E$2,"text")) -> 80 | AJ20: =IF(Z20<>rozpis_final_tisk!$E$2,'celkové umístění'!Z20,IF('celkové umístění'!Z20=rozpis_final_tisk!$E$2,"text")) -> 116 | AK20: =IF(AA20<>rozpis_final_tisk!$E$2,'celkové umístění'!AA20,IF('celkové umístění'!AA20=rozpis_final_tisk!$E$2,"text")) -> text | AL20: =IF(AB20<>rozpis_final_tisk!$E$2,'celkové umístění'!AB20,IF('celkové umístění'!AB20=rozpis_final_tisk!$E$2,"text")) -> text | AM20: =IF(AC20<>rozpis_final_tisk!$E$2,'celkové umístění'!AC20,IF('celkové umístění'!AC20=rozpis_final_tisk!$E$2,"text")) -> text | AN20: =IF(AD20<>rozpis_final_tisk!$E$2,'celkové umístění'!AD20,IF('celkové umístění'!AD20=rozpis_final_tisk!$E$2,"text")) -> text | AO20: =IF(AE20<>rozpis_final_tisk!$E$2,'celkové umístění'!AE20,IF('celkové umístění'!AE20=rozpis_final_tisk!$E$2,"text")) -> text | AR20: =IF(AQ20=MAX($AQ$10:$AQ$41),P20,0) ->  | AS20: =IF(AR20=MAX($AR$10:$AR$41),D20) ->  | AT20: =IF(O20=FALSE,"Na",MIN(AG20:AO20)) ->  | AU20: =IF(AT20=MIN($AT$10:$AT$41),P20,"Na") ->  | AV20: =IF(AU20=MIN($AU$10:$AU$41),D20) ->  | AY20: =IF(AX20<>FALSE,D20) ->  | AZ20: =IF(AY20<>rozpis_příprava!$E$20,IF(AY20<>FALSE,'celkové umístění'!C20)) ->  | BA20: =IF(#REF!>1,IF(#REF!<>FALSE,AZ20)) ->  | BH20: =IF(BG20<>FALSE,D20) ->  | BI20: =IF(BH20=rozpis_příprava!$E$20,'celkové umístění'!C20) ->  | BK20: =IF(#REF!=FALSE,BI20) ->  | BM20: 0
B21: 12. | C21: =rozpis_final_tisk!B33 -> Jitka M. | D21: =rozpis_final_tisk!D33 -> Ž | E21: =IF(rozpis_final_tisk!E33>0,rozpis_final_tisk!E33) -> 63 | F21: =IF(rozpis_final_tisk!F33>0,rozpis_final_tisk!F33) -> 92 | G21: =IF(rozpis_final_tisk!G33>0,rozpis_final_tisk!G33) -> 102 | H21: =IF(rozpis_final_tisk!H33>0,rozpis_final_tisk!H33) -> 120 | I21: =IF(rozpis_final_tisk!I33>0,rozpis_final_tisk!I33) -> 112 | J21: =IF(rozpis_final_tisk!J33>0,rozpis_final_tisk!J33) -> 155 | K21: =IF(rozpis_final_tisk!K33>0,rozpis_final_tisk!K33) -> FALSE | L21: =IF(rozpis_final_tisk!L33>0,rozpis_final_tisk!L33) -> FALSE | M21: =IF(rozpis_final_tisk!M33>0,rozpis_final_tisk!M33) -> FALSE | N21: =IF(rozpis_final_tisk!N33>0,rozpis_final_tisk!N33) -> FALSE | O21: =IF(rozpis_final_tisk!O33>0,rozpis_final_tisk!O33) -> 644 | P21: =IF(rozpis_final_tisk!P33>0,rozpis_final_tisk!P33) -> 107.3333333 | X21: =IF(D21=rozpis_příprava!$E$20,F21+rozpis_final_tisk!$E$2,IF('celkové umístění'!D21<>rozpis_příprava!$E$20,F21)) -> 92 | Y21: =IF(D21=rozpis_příprava!$E$20,G21+rozpis_final_tisk!$E$2,IF('celkové umístění'!D21<>rozpis_příprava!$E$20,G21)) -> 102 | Z21: =IF(D21=rozpis_příprava!$E$20,H21+rozpis_final_tisk!$E$2,IF('celkové umístění'!D21<>rozpis_příprava!$E$20,H21)) -> 120 | AA21: =IF(D21=rozpis_příprava!$E$20,I21+rozpis_final_tisk!$E$2,IF('celkové umístění'!D21<>rozpis_příprava!$E$20,I21)) -> 112 | AB21: =IF(D21=rozpis_příprava!$E$20,J21+rozpis_final_tisk!$E$2,IF('celkové umístění'!D21<>rozpis_příprava!$E$20,J21)) -> 155 | AC21: =IF(D21=rozpis_příprava!$E$20,K21+rozpis_final_tisk!$E$2,IF('celkové umístění'!D21<>rozpis_příprava!$E$20,K21)) -> 0 | AD21: =IF(D21=rozpis_příprava!$E$20,L21+rozpis_final_tisk!$E$2,IF('celkové umístění'!D21<>rozpis_příprava!$E$20,L21)) -> 0 | AE21: =IF(D21=rozpis_příprava!$E$20,M21+rozpis_final_tisk!$E$2,IF('celkové umístění'!D21<>rozpis_příprava!$E$20,M21)) -> 0 | AG21: =IF(#REF!<>rozpis_final_tisk!$E$2,'celkové umístění'!#REF!,IF('celkové umístění'!#REF!=rozpis_final_tisk!$E$2,"text")) ->  | AH21: =IF(X21<>rozpis_final_tisk!$E$2,'celkové umístění'!X21,IF('celkové umístění'!X21=rozpis_final_tisk!$E$2,"text")) -> 92 | AI21: =IF(Y21<>rozpis_final_tisk!$E$2,'celkové umístění'!Y21,IF('celkové umístění'!Y21=rozpis_final_tisk!$E$2,"text")) -> 102 | AJ21: =IF(Z21<>rozpis_final_tisk!$E$2,'celkové umístění'!Z21,IF('celkové umístění'!Z21=rozpis_final_tisk!$E$2,"text")) -> 120 | AK21: =IF(AA21<>rozpis_final_tisk!$E$2,'celkové umístění'!AA21,IF('celkové umístění'!AA21=rozpis_final_tisk!$E$2,"text")) -> 112 | AL21: =IF(AB21<>rozpis_final_tisk!$E$2,'celkové umístění'!AB21,IF('celkové umístění'!AB21=rozpis_final_tisk!$E$2,"text")) -> 155 | AM21: =IF(AC21<>rozpis_final_tisk!$E$2,'celkové umístění'!AC21,IF('celkové umístění'!AC21=rozpis_final_tisk!$E$2,"text")) -> text | AN21: =IF(AD21<>rozpis_final_tisk!$E$2,'celkové umístění'!AD21,IF('celkové umístění'!AD21=rozpis_final_tisk!$E$2,"text")) -> text | AO21: =IF(AE21<>rozpis_final_tisk!$E$2,'celkové umístění'!AE21,IF('celkové umístění'!AE21=rozpis_final_tisk!$E$2,"text")) -> text | AR21: =IF(AQ21=MAX($AQ$10:$AQ$41),P21,0) ->  | AS21: =IF(AR21=MAX($AR$10:$AR$41),D21) ->  | AT21: =IF(O21=FALSE,"Na",MIN(AG21:AO21)) ->  | AU21: =IF(AT21=MIN($AT$10:$AT$41),P21,"Na") ->  | AV21: =IF(AU21=MIN($AU$10:$AU$41),D21) ->  | AY21: =IF(AX21<>FALSE,D21) ->  | AZ21: =IF(AY21<>rozpis_příprava!$E$20,IF(AY21<>FALSE,'celkové umístění'!C21)) ->  | BA21: =IF(#REF!>1,IF(#REF!<>FALSE,AZ21)) ->  | BH21: =IF(BG21<>FALSE,D21) ->  | BI21: =IF(BH21=rozpis_příprava!$E$20,'celkové umístění'!C21) ->  | BK21: =IF(#REF!=FALSE,BI21) ->  | BM21: 0
B22: 13. | C22: =rozpis_final_tisk!B16 -> Ivana V. | D22: =rozpis_final_tisk!D16 -> Ž | E22: =IF(rozpis_final_tisk!E16>0,rozpis_final_tisk!E16) -> 77 | F22: =IF(rozpis_final_tisk!F16>0,rozpis_final_tisk!F16) -> 107 | G22: =IF(rozpis_final_tisk!G16>0,rozpis_final_tisk!G16) -> 69 | H22: =IF(rozpis_final_tisk!H16>0,rozpis_final_tisk!H16) -> 97 | I22: =IF(rozpis_final_tisk!I16>0,rozpis_final_tisk!I16) -> 84 | J22: =IF(rozpis_final_tisk!J16>0,rozpis_final_tisk!J16) -> FALSE | K22: =IF(rozpis_final_tisk!K16>0,rozpis_final_tisk!K16) -> FALSE | L22: =IF(rozpis_final_tisk!L16>0,rozpis_final_tisk!L16) -> FALSE | M22: =IF(rozpis_final_tisk!M16>0,rozpis_final_tisk!M16) -> FALSE | N22: =IF(rozpis_final_tisk!N16>0,rozpis_final_tisk!N16) -> FALSE | O22: =IF(rozpis_final_tisk!O16>0,rozpis_final_tisk!O16) -> 434 | P22: =IF(rozpis_final_tisk!P16>0,rozpis_final_tisk!P16) -> 86.8 | X22: =IF(D22=rozpis_příprava!$E$20,F22+rozpis_final_tisk!$E$2,IF('celkové umístění'!D22<>rozpis_příprava!$E$20,F22)) -> 107 | Y22: =IF(D22=rozpis_příprava!$E$20,G22+rozpis_final_tisk!$E$2,IF('celkové umístění'!D22<>rozpis_příprava!$E$20,G22)) -> 69 | Z22: =IF(D22=rozpis_příprava!$E$20,H22+rozpis_final_tisk!$E$2,IF('celkové umístění'!D22<>rozpis_příprava!$E$20,H22)) -> 97 | AA22: =IF(D22=rozpis_příprava!$E$20,I22+rozpis_final_tisk!$E$2,IF('celkové umístění'!D22<>rozpis_příprava!$E$20,I22)) -> 84 | AB22: =IF(D22=rozpis_příprava!$E$20,J22+rozpis_final_tisk!$E$2,IF('celkové umístění'!D22<>rozpis_příprava!$E$20,J22)) -> 0 | AC22: =IF(D22=rozpis_příprava!$E$20,K22+rozpis_final_tisk!$E$2,IF('celkové umístění'!D22<>rozpis_příprava!$E$20,K22)) -> 0 | AD22: =IF(D22=rozpis_příprava!$E$20,L22+rozpis_final_tisk!$E$2,IF('celkové umístění'!D22<>rozpis_příprava!$E$20,L22)) -> 0 | AE22: =IF(D22=rozpis_příprava!$E$20,M22+rozpis_final_tisk!$E$2,IF('celkové umístění'!D22<>rozpis_příprava!$E$20,M22)) -> 0 | AG22: =IF(#REF!<>rozpis_final_tisk!$E$2,'celkové umístění'!#REF!,IF('celkové umístění'!#REF!=rozpis_final_tisk!$E$2,"text")) ->  | AH22: =IF(X22<>rozpis_final_tisk!$E$2,'celkové umístění'!X22,IF('celkové umístění'!X22=rozpis_final_tisk!$E$2,"text")) -> 107 | AI22: =IF(Y22<>rozpis_final_tisk!$E$2,'celkové umístění'!Y22,IF('celkové umístění'!Y22=rozpis_final_tisk!$E$2,"text")) -> 69 | AJ22: =IF(Z22<>rozpis_final_tisk!$E$2,'celkové umístění'!Z22,IF('celkové umístění'!Z22=rozpis_final_tisk!$E$2,"text")) -> 97 | AK22: =IF(AA22<>rozpis_final_tisk!$E$2,'celkové umístění'!AA22,IF('celkové umístění'!AA22=rozpis_final_tisk!$E$2,"text")) -> 84 | AL22: =IF(AB22<>rozpis_final_tisk!$E$2,'celkové umístění'!AB22,IF('celkové umístění'!AB22=rozpis_final_tisk!$E$2,"text")) -> text | AM22: =IF(AC22<>rozpis_final_tisk!$E$2,'celkové umístění'!AC22,IF('celkové umístění'!AC22=rozpis_final_tisk!$E$2,"text")) -> text | AN22: =IF(AD22<>rozpis_final_tisk!$E$2,'celkové umístění'!AD22,IF('celkové umístění'!AD22=rozpis_final_tisk!$E$2,"text")) -> text | AO22: =IF(AE22<>rozpis_final_tisk!$E$2,'celkové umístění'!AE22,IF('celkové umístění'!AE22=rozpis_final_tisk!$E$2,"text")) -> text | AR22: =IF(AQ22=MAX($AQ$10:$AQ$41),P22,0) ->  | AS22: =IF(AR22=MAX($AR$10:$AR$41),D22) ->  | AT22: =IF(O22=FALSE,"Na",MIN(AG22:AO22)) ->  | AU22: =IF(AT22=MIN($AT$10:$AT$41),P22,"Na") ->  | AV22: =IF(AU22=MIN($AU$10:$AU$41),D22) ->  | AY22: =IF(AX22<>FALSE,D22) ->  | AZ22: =IF(AY22<>rozpis_příprava!$E$20,IF(AY22<>FALSE,'celkové umístění'!C22)) ->  | BA22: =IF(#REF!>1,IF(#REF!<>FALSE,AZ22)) ->  | BH22: =IF(BG22<>FALSE,D22) ->  | BI22: =IF(BH22=rozpis_příprava!$E$20,'celkové umístění'!C22) ->  | BK22: =IF(#REF!=FALSE,BI22) ->  | BM22: 0
B23: 14. | C23: =rozpis_final_tisk!B15 -> Vlaďka C. | D23: =rozpis_final_tisk!D15 -> Ž | E23: =IF(rozpis_final_tisk!E15>0,rozpis_final_tisk!E15) -> 82 | F23: =IF(rozpis_final_tisk!F15>0,rozpis_final_tisk!F15) -> 94 | G23: =IF(rozpis_final_tisk!G15>0,rozpis_final_tisk!G15) -> 98 | H23: =IF(rozpis_final_tisk!H15>0,rozpis_final_tisk!H15) -> 58 | I23: =IF(rozpis_final_tisk!I15>0,rozpis_final_tisk!I15) -> 97 | J23: =IF(rozpis_final_tisk!J15>0,rozpis_final_tisk!J15) -> FALSE | K23: =IF(rozpis_final_tisk!K15>0,rozpis_final_tisk!K15) -> FALSE | L23: =IF(rozpis_final_tisk!L15>0,rozpis_final_tisk!L15) -> FALSE | M23: =IF(rozpis_final_tisk!M15>0,rozpis_final_tisk!M15) -> FALSE | N23: =IF(rozpis_final_tisk!N15>0,rozpis_final_tisk!N15) -> FALSE | O23: =IF(rozpis_final_tisk!O15>0,rozpis_final_tisk!O15) -> 429 | P23: =IF(rozpis_final_tisk!P15>0,rozpis_final_tisk!P15) -> 85.8 | X23: =IF(D23=rozpis_příprava!$E$20,F23+rozpis_final_tisk!$E$2,IF('celkové umístění'!D23<>rozpis_příprava!$E$20,F23)) -> 94 | Y23: =IF(D23=rozpis_příprava!$E$20,G23+rozpis_final_tisk!$E$2,IF('celkové umístění'!D23<>rozpis_příprava!$E$20,G23)) -> 98 | Z23: =IF(D23=rozpis_příprava!$E$20,H23+rozpis_final_tisk!$E$2,IF('celkové umístění'!D23<>rozpis_příprava!$E$20,H23)) -> 58 | AA23: =IF(D23=rozpis_příprava!$E$20,I23+rozpis_final_tisk!$E$2,IF('celkové umístění'!D23<>rozpis_příprava!$E$20,I23)) -> 97 | AB23: =IF(D23=rozpis_příprava!$E$20,J23+rozpis_final_tisk!$E$2,IF('celkové umístění'!D23<>rozpis_příprava!$E$20,J23)) -> 0 | AC23: =IF(D23=rozpis_příprava!$E$20,K23+rozpis_final_tisk!$E$2,IF('celkové umístění'!D23<>rozpis_příprava!$E$20,K23)) -> 0 | AD23: =IF(D23=rozpis_příprava!$E$20,L23+rozpis_final_tisk!$E$2,IF('celkové umístění'!D23<>rozpis_příprava!$E$20,L23)) -> 0 | AE23: =IF(D23=rozpis_příprava!$E$20,M23+rozpis_final_tisk!$E$2,IF('celkové umístění'!D23<>rozpis_příprava!$E$20,M23)) -> 0 | AG23: =IF(#REF!<>rozpis_final_tisk!$E$2,'celkové umístění'!#REF!,IF('celkové umístění'!#REF!=rozpis_final_tisk!$E$2,"text")) ->  | AH23: =IF(X23<>rozpis_final_tisk!$E$2,'celkové umístění'!X23,IF('celkové umístění'!X23=rozpis_final_tisk!$E$2,"text")) -> 94 | AI23: =IF(Y23<>rozpis_final_tisk!$E$2,'celkové umístění'!Y23,IF('celkové umístění'!Y23=rozpis_final_tisk!$E$2,"text")) -> 98 | AJ23: =IF(Z23<>rozpis_final_tisk!$E$2,'celkové umístění'!Z23,IF('celkové umístění'!Z23=rozpis_final_tisk!$E$2,"text")) -> 58 | AK23: =IF(AA23<>rozpis_final_tisk!$E$2,'celkové umístění'!AA23,IF('celkové umístění'!AA23=rozpis_final_tisk!$E$2,"text")) -> 97 | AL23: =IF(AB23<>rozpis_final_tisk!$E$2,'celkové umístění'!AB23,IF('celkové umístění'!AB23=rozpis_final_tisk!$E$2,"text")) -> text | AM23: =IF(AC23<>rozpis_final_tisk!$E$2,'celkové umístění'!AC23,IF('celkové umístění'!AC23=rozpis_final_tisk!$E$2,"text")) -> text | AN23: =IF(AD23<>rozpis_final_tisk!$E$2,'celkové umístění'!AD23,IF('celkové umístění'!AD23=rozpis_final_tisk!$E$2,"text")) -> text | AO23: =IF(AE23<>rozpis_final_tisk!$E$2,'celkové umístění'!AE23,IF('celkové umístění'!AE23=rozpis_final_tisk!$E$2,"text")) -> text | AR23: =IF(AQ23=MAX($AQ$10:$AQ$41),P23,0) ->  | AS23: =IF(AR23=MAX($AR$10:$AR$41),D23) ->  | AT23: =IF(O23=FALSE,"Na",MIN(AG23:AO23)) ->  | AU23: =IF(AT23=MIN($AT$10:$AT$41),P23,"Na") ->  | AV23: =IF(AU23=MIN($AU$10:$AU$41),D23) ->  | AY23: =IF(AX23<>FALSE,D23) ->  | AZ23: =IF(AY23<>rozpis_příprava!$E$20,IF(AY23<>FALSE,'celkové umístění'!C23)) ->  | BA23: =IF(#REF!>1,IF(#REF!<>FALSE,AZ23)) ->  | BH23: =IF(BG23<>FALSE,D23) ->  | BI23: =IF(BH23=rozpis_příprava!$E$20,'celkové umístění'!C23) ->  | BK23: =IF(#REF!=FALSE,BI23) ->  | BM23: 0
B24: 15. | C24: =rozpis_final_tisk!B34 -> Ilona K. | D24: =rozpis_final_tisk!D34 -> Ž | E24: =IF(rozpis_final_tisk!E34>0,rozpis_final_tisk!E34) -> 88 | F24: =IF(rozpis_final_tisk!F34>0,rozpis_final_tisk!F34) -> 73 | G24: =IF(rozpis_final_tisk!G34>0,rozpis_final_tisk!G34) -> 115 | H24: =IF(rozpis_final_tisk!H34>0,rozpis_final_tisk!H34) -> 46 | I24: =IF(rozpis_final_tisk!I34>0,rozpis_final_tisk!I34) -> 64 | J24: =IF(rozpis_final_tisk!J34>0,rozpis_final_tisk!J34) -> 89 | K24: =IF(rozpis_final_tisk!K34>0,rozpis_final_tisk!K34) -> FALSE | L24: =IF(rozpis_final_tisk!L34>0,rozpis_final_tisk!L34) -> FALSE | M24: =IF(rozpis_final_tisk!M34>0,rozpis_final_tisk!M34) -> FALSE | N24: =IF(rozpis_final_tisk!N34>0,rozpis_final_tisk!N34) -> FALSE | O24: =IF(rozpis_final_tisk!O34>0,rozpis_final_tisk!O34) -> 475 | P24: =IF(rozpis_final_tisk!P34>0,rozpis_final_tisk!P34) -> 79.16666667 | X24: =IF(D24=rozpis_příprava!$E$20,F24+rozpis_final_tisk!$E$2,IF('celkové umístění'!D24<>rozpis_příprava!$E$20,F24)) -> 73 | Y24: =IF(D24=rozpis_příprava!$E$20,G24+rozpis_final_tisk!$E$2,IF('celkové umístění'!D24<>rozpis_příprava!$E$20,G24)) -> 115 | Z24: =IF(D24=rozpis_příprava!$E$20,H24+rozpis_final_tisk!$E$2,IF('celkové umístění'!D24<>rozpis_příprava!$E$20,H24)) -> 46 | AA24: =IF(D24=rozpis_příprava!$E$20,I24+rozpis_final_tisk!$E$2,IF('celkové umístění'!D24<>rozpis_příprava!$E$20,I24)) -> 64 | AB24: =IF(D24=rozpis_příprava!$E$20,J24+rozpis_final_tisk!$E$2,IF('celkové umístění'!D24<>rozpis_příprava!$E$20,J24)) -> 89 | AC24: =IF(D24=rozpis_příprava!$E$20,K24+rozpis_final_tisk!$E$2,IF('celkové umístění'!D24<>rozpis_příprava!$E$20,K24)) -> 0 | AD24: =IF(D24=rozpis_příprava!$E$20,L24+rozpis_final_tisk!$E$2,IF('celkové umístění'!D24<>rozpis_příprava!$E$20,L24)) -> 0 | AE24: =IF(D24=rozpis_příprava!$E$20,M24+rozpis_final_tisk!$E$2,IF('celkové umístění'!D24<>rozpis_příprava!$E$20,M24)) -> 0 | AG24: =IF(#REF!<>rozpis_final_tisk!$E$2,'celkové umístění'!#REF!,IF('celkové umístění'!#REF!=rozpis_final_tisk!$E$2,"text")) ->  | AH24: =IF(X24<>rozpis_final_tisk!$E$2,'celkové umístění'!X24,IF('celkové umístění'!X24=rozpis_final_tisk!$E$2,"text")) -> 73 | AI24: =IF(Y24<>rozpis_final_tisk!$E$2,'celkové umístění'!Y24,IF('celkové umístění'!Y24=rozpis_final_tisk!$E$2,"text")) -> 115 | AJ24: =IF(Z24<>rozpis_final_tisk!$E$2,'celkové umístění'!Z24,IF('celkové umístění'!Z24=rozpis_final_tisk!$E$2,"text")) -> 46 | AK24: =IF(AA24<>rozpis_final_tisk!$E$2,'celkové umístění'!AA24,IF('celkové umístění'!AA24=rozpis_final_tisk!$E$2,"text")) -> 64 | AL24: =IF(AB24<>rozpis_final_tisk!$E$2,'celkové umístění'!AB24,IF('celkové umístění'!AB24=rozpis_final_tisk!$E$2,"text")) -> 89 | AM24: =IF(AC24<>rozpis_final_tisk!$E$2,'celkové umístění'!AC24,IF('celkové umístění'!AC24=rozpis_final_tisk!$E$2,"text")) -> text | AN24: =IF(AD24<>rozpis_final_tisk!$E$2,'celkové umístění'!AD24,IF('celkové umístění'!AD24=rozpis_final_tisk!$E$2,"text")) -> text | AO24: =IF(AE24<>rozpis_final_tisk!$E$2,'celkové umístění'!AE24,IF('celkové umístění'!AE24=rozpis_final_tisk!$E$2,"text")) -> text | AR24: =IF(AQ24=MAX($AQ$10:$AQ$41),P24,0) ->  | AS24: =IF(AR24=MAX($AR$10:$AR$41),D24) ->  | AT24: =IF(O24=FALSE,"Na",MIN(AG24:AO24)) ->  | AU24: =IF(AT24=MIN($AT$10:$AT$41),P24,"Na") ->  | AV24: =IF(AU24=MIN($AU$10:$AU$41),D24) ->  | AY24: =IF(AX24<>FALSE,D24) ->  | AZ24: =IF(AY24<>rozpis_příprava!$E$20,IF(AY24<>FALSE,'celkové umístění'!C24)) ->  | BA24: =IF(#REF!>1,IF(#REF!<>FALSE,AZ24)) ->  | BH24: =IF(BG24<>FALSE,D24) ->  | BI24: =IF(BH24=rozpis_příprava!$E$20,'celkové umístění'!C24) ->  | BK24: =IF(#REF!=FALSE,BI24) ->  | BM24: 0
B25: 16. | C25: =rozpis_final_tisk!B31 -> Mirka M. | D25: =rozpis_final_tisk!D31 -> Ž | E25: =IF(rozpis_final_tisk!E31>0,rozpis_final_tisk!E31) -> 79 | F25: =IF(rozpis_final_tisk!F31>0,rozpis_final_tisk!F31) -> 53 | G25: =IF(rozpis_final_tisk!G31>0,rozpis_final_tisk!G31) -> 97 | H25: =IF(rozpis_final_tisk!H31>0,rozpis_final_tisk!H31) -> 72 | I25: =IF(rozpis_final_tisk!I31>0,rozpis_final_tisk!I31) -> 90 | J25: =IF(rozpis_final_tisk!J31>0,rozpis_final_tisk!J31) -> FALSE | K25: =IF(rozpis_final_tisk!K31>0,rozpis_final_tisk!K31) -> FALSE | L25: =IF(rozpis_final_tisk!L31>0,rozpis_final_tisk!L31) -> FALSE | M25: =IF(rozpis_final_tisk!M31>0,rozpis_final_tisk!M31) -> FALSE | N25: =IF(rozpis_final_tisk!N31>0,rozpis_final_tisk!N31) -> FALSE | O25: =IF(rozpis_final_tisk!O31>0,rozpis_final_tisk!O31) -> 391 | P25: =IF(rozpis_final_tisk!P31>0,rozpis_final_tisk!P31) -> 78.2 | X25: =IF(D25=rozpis_příprava!$E$20,F25+rozpis_final_tisk!$E$2,IF('celkové umístění'!D25<>rozpis_příprava!$E$20,F25)) -> 53 | Y25: =IF(D25=rozpis_příprava!$E$20,G25+rozpis_final_tisk!$E$2,IF('celkové umístění'!D25<>rozpis_příprava!$E$20,G25)) -> 97 | Z25: =IF(D25=rozpis_příprava!$E$20,H25+rozpis_final_tisk!$E$2,IF('celkové umístění'!D25<>rozpis_příprava!$E$20,H25)) -> 72 | AA25: =IF(D25=rozpis_příprava!$E$20,I25+rozpis_final_tisk!$E$2,IF('celkové umístění'!D25<>rozpis_příprava!$E$20,I25)) -> 90 | AB25: =IF(D25=rozpis_příprava!$E$20,J25+rozpis_final_tisk!$E$2,IF('celkové umístění'!D25<>rozpis_příprava!$E$20,J25)) -> 0 | AC25: =IF(D25=rozpis_příprava!$E$20,K25+rozpis_final_tisk!$E$2,IF('celkové umístění'!D25<>rozpis_příprava!$E$20,K25)) -> 0 | AD25: =IF(D25=rozpis_příprava!$E$20,L25+rozpis_final_tisk!$E$2,IF('celkové umístění'!D25<>rozpis_příprava!$E$20,L25)) -> 0 | AE25: =IF(D25=rozpis_příprava!$E$20,M25+rozpis_final_tisk!$E$2,IF('celkové umístění'!D25<>rozpis_příprava!$E$20,M25)) -> 0 | AG25: =IF(#REF!<>rozpis_final_tisk!$E$2,'celkové umístění'!#REF!,IF('celkové umístění'!#REF!=rozpis_final_tisk!$E$2,"text")) ->  | AH25: =IF(X25<>rozpis_final_tisk!$E$2,'celkové umístění'!X25,IF('celkové umístění'!X25=rozpis_final_tisk!$E$2,"text")) -> 53 | AI25: =IF(Y25<>rozpis_final_tisk!$E$2,'celkové umístění'!Y25,IF('celkové umístění'!Y25=rozpis_final_tisk!$E$2,"text")) -> 97 | AJ25: =IF(Z25<>rozpis_final_tisk!$E$2,'celkové umístění'!Z25,IF('celkové umístění'!Z25=rozpis_final_tisk!$E$2,"text")) -> 72 | AK25: =IF(AA25<>rozpis_final_tisk!$E$2,'celkové umístění'!AA25,IF('celkové umístění'!AA25=rozpis_final_tisk!$E$2,"text")) -> 90 | AL25: =IF(AB25<>rozpis_final_tisk!$E$2,'celkové umístění'!AB25,IF('celkové umístění'!AB25=rozpis_final_tisk!$E$2,"text")) -> text | AM25: =IF(AC25<>rozpis_final_tisk!$E$2,'celkové umístění'!AC25,IF('celkové umístění'!AC25=rozpis_final_tisk!$E$2,"text")) -> text | AN25: =IF(AD25<>rozpis_final_tisk!$E$2,'celkové umístění'!AD25,IF('celkové umístění'!AD25=rozpis_final_tisk!$E$2,"text")) -> text | AO25: =IF(AE25<>rozpis_final_tisk!$E$2,'celkové umístění'!AE25,IF('celkové umístění'!AE25=rozpis_final_tisk!$E$2,"text")) -> text | AR25: =IF(AQ25=MAX($AQ$10:$AQ$41),P25,0) ->  | AS25: =IF(AR25=MAX($AR$10:$AR$41),D25) ->  | AT25: =IF(O25=FALSE,"Na",MIN(AG25:AO25)) ->  | AU25: =IF(AT25=MIN($AT$10:$AT$41),P25,"Na") ->  | AV25: =IF(AU25=MIN($AU$10:$AU$41),D25) ->  | AY25: =IF(AX25<>FALSE,D25) ->  | AZ25: =IF(AY25<>rozpis_příprava!$E$20,IF(AY25<>FALSE,'celkové umístění'!C25)) ->  | BA25: =IF(#REF!>1,IF(#REF!<>FALSE,AZ25)) ->  | BH25: =IF(BG25<>FALSE,D25) ->  | BI25: =IF(BH25=rozpis_příprava!$E$20,'celkové umístění'!C25) ->  | BK25: =IF(#REF!=FALSE,BI25) ->  | BM25: 0
B26: 17. | C26: =rozpis_final_tisk!B66 -> 0 | D26: =rozpis_final_tisk!D66 -> 0 | E26: =IF(rozpis_final_tisk!E66>0,rozpis_final_tisk!E66) -> FALSE | F26: =IF(rozpis_final_tisk!F66>0,rozpis_final_tisk!F66) -> FALSE | G26: =IF(rozpis_final_tisk!G66>0,rozpis_final_tisk!G66) -> FALSE | H26: =IF(rozpis_final_tisk!H66>0,rozpis_final_tisk!H66) -> FALSE | I26: =IF(rozpis_final_tisk!I66>0,rozpis_final_tisk!I66) -> FALSE | J26: =IF(rozpis_final_tisk!J66>0,rozpis_final_tisk!J66) -> FALSE | K26: =IF(rozpis_final_tisk!K66>0,rozpis_final_tisk!K66) -> FALSE | L26: =IF(rozpis_final_tisk!L66>0,rozpis_final_tisk!L66) -> FALSE | M26: =IF(rozpis_final_tisk!M66>0,rozpis_final_tisk!M66) -> FALSE | N26: =IF(rozpis_final_tisk!N66>0,rozpis_final_tisk!N66) -> FALSE | O26: =IF(rozpis_final_tisk!O66>0,rozpis_final_tisk!O66) -> FALSE | P26: =IF(rozpis_final_tisk!P66>0,rozpis_final_tisk!P66) ->  | X26: =IF(D26=rozpis_příprava!$E$20,F26+rozpis_final_tisk!$E$2,IF('celkové umístění'!D26<>rozpis_příprava!$E$20,F26)) -> FALSE | Y26: =IF(D26=rozpis_příprava!$E$20,G26+rozpis_final_tisk!$E$2,IF('celkové umístění'!D26<>rozpis_příprava!$E$20,G26)) -> FALSE | Z26: =IF(D26=rozpis_příprava!$E$20,H26+rozpis_final_tisk!$E$2,IF('celkové umístění'!D26<>rozpis_příprava!$E$20,H26)) -> FALSE | AA26: =IF(D26=rozpis_příprava!$E$20,I26+rozpis_final_tisk!$E$2,IF('celkové umístění'!D26<>rozpis_příprava!$E$20,I26)) -> FALSE | AB26: =IF(D26=rozpis_příprava!$E$20,J26+rozpis_final_tisk!$E$2,IF('celkové umístění'!D26<>rozpis_příprava!$E$20,J26)) -> FALSE | AC26: =IF(D26=rozpis_příprava!$E$20,K26+rozpis_final_tisk!$E$2,IF('celkové umístění'!D26<>rozpis_příprava!$E$20,K26)) -> FALSE | AD26: =IF(D26=rozpis_příprava!$E$20,L26+rozpis_final_tisk!$E$2,IF('celkové umístění'!D26<>rozpis_příprava!$E$20,L26)) -> FALSE | AE26: =IF(D26=rozpis_příprava!$E$20,M26+rozpis_final_tisk!$E$2,IF('celkové umístění'!D26<>rozpis_příprava!$E$20,M26)) -> FALSE | AG26: =IF(#REF!<>rozpis_final_tisk!$E$2,'celkové umístění'!#REF!,IF('celkové umístění'!#REF!=rozpis_final_tisk!$E$2,"text")) ->  | AH26: =IF(X26<>rozpis_final_tisk!$E$2,'celkové umístění'!X26,IF('celkové umístění'!X26=rozpis_final_tisk!$E$2,"text")) -> text | AI26: =IF(Y26<>rozpis_final_tisk!$E$2,'celkové umístění'!Y26,IF('celkové umístění'!Y26=rozpis_final_tisk!$E$2,"text")) -> text | AJ26: =IF(Z26<>rozpis_final_tisk!$E$2,'celkové umístění'!Z26,IF('celkové umístění'!Z26=rozpis_final_tisk!$E$2,"text")) -> text | AK26: =IF(AA26<>rozpis_final_tisk!$E$2,'celkové umístění'!AA26,IF('celkové umístění'!AA26=rozpis_final_tisk!$E$2,"text")) -> text | AL26: =IF(AB26<>rozpis_final_tisk!$E$2,'celkové umístění'!AB26,IF('celkové umístění'!AB26=rozpis_final_tisk!$E$2,"text")) -> text | AM26: =IF(AC26<>rozpis_final_tisk!$E$2,'celkové umístění'!AC26,IF('celkové umístění'!AC26=rozpis_final_tisk!$E$2,"text")) -> text | AN26: =IF(AD26<>rozpis_final_tisk!$E$2,'celkové umístění'!AD26,IF('celkové umístění'!AD26=rozpis_final_tisk!$E$2,"text")) -> text | AO26: =IF(AE26<>rozpis_final_tisk!$E$2,'celkové umístění'!AE26,IF('celkové umístění'!AE26=rozpis_final_tisk!$E$2,"text")) -> text | AR26: =IF(AQ26=MAX($AQ$10:$AQ$41),P26,0) ->  | AS26: =IF(AR26=MAX($AR$10:$AR$41),D26) ->  | AT26: =IF(O26=FALSE,"Na",MIN(AG26:AO26)) -> Na | AU26: =IF(AT26=MIN($AT$10:$AT$41),P26,"Na") ->  | AV26: =IF(AU26=MIN($AU$10:$AU$41),D26) ->  | AY26: =IF(AX26<>FALSE,D26) ->  | AZ26: =IF(AY26<>rozpis_příprava!$E$20,IF(AY26<>FALSE,'celkové umístění'!C26)) ->  | BA26: =IF(#REF!>1,IF(#REF!<>FALSE,AZ26)) ->  | BH26: =IF(BG26<>FALSE,D26) ->  | BI26: =IF(BH26=rozpis_příprava!$E$20,'celkové umístění'!C26) ->  | BK26: =IF(#REF!=FALSE,BI26) ->  | BM26: 0
B27: 18. | C27: =rozpis_final_tisk!B101 -> 0 | D27: =rozpis_final_tisk!D101 -> 0 | E27: =IF(rozpis_final_tisk!E101>0,rozpis_final_tisk!E101) -> FALSE | F27: =IF(rozpis_final_tisk!F101>0,rozpis_final_tisk!F101) -> FALSE | G27: =IF(rozpis_final_tisk!G101>0,rozpis_final_tisk!G101) -> FALSE | H27: =IF(rozpis_final_tisk!H101>0,rozpis_final_tisk!H101) -> FALSE | I27: =IF(rozpis_final_tisk!I101>0,rozpis_final_tisk!I101) -> FALSE | J27: =IF(rozpis_final_tisk!J101>0,rozpis_final_tisk!J101) -> FALSE | K27: =IF(rozpis_final_tisk!K101>0,rozpis_final_tisk!K101) -> FALSE | L27: =IF(rozpis_final_tisk!L101>0,rozpis_final_tisk!L101) -> FALSE | M27: =IF(rozpis_final_tisk!M101>0,rozpis_final_tisk!M101) -> FALSE | N27: =IF(rozpis_final_tisk!N101>0,rozpis_final_tisk!N101) -> FALSE | O27: =IF(rozpis_final_tisk!O101>0,rozpis_final_tisk!O101) -> FALSE | P27: =IF(rozpis_final_tisk!P101>0,rozpis_final_tisk!P101) ->  | X27: =IF(D27=rozpis_příprava!$E$20,F27+rozpis_final_tisk!$E$2,IF('celkové umístění'!D27<>rozpis_příprava!$E$20,F27)) -> FALSE | Y27: =IF(D27=rozpis_příprava!$E$20,G27+rozpis_final_tisk!$E$2,IF('celkové umístění'!D27<>rozpis_příprava!$E$20,G27)) -> FALSE | Z27: =IF(D27=rozpis_příprava!$E$20,H27+rozpis_final_tisk!$E$2,IF('celkové umístění'!D27<>rozpis_příprava!$E$20,H27)) -> FALSE | AA27: =IF(D27=rozpis_příprava!$E$20,I27+rozpis_final_tisk!$E$2,IF('celkové umístění'!D27<>rozpis_příprava!$E$20,I27)) -> FALSE | AB27: =IF(D27=rozpis_příprava!$E$20,J27+rozpis_final_tisk!$E$2,IF('celkové umístění'!D27<>rozpis_příprava!$E$20,J27)) -> FALSE | AC27: =IF(D27=rozpis_příprava!$E$20,K27+rozpis_final_tisk!$E$2,IF('celkové umístění'!D27<>rozpis_příprava!$E$20,K27)) -> FALSE | AD27: =IF(D27=rozpis_příprava!$E$20,L27+rozpis_final_tisk!$E$2,IF('celkové umístění'!D27<>rozpis_příprava!$E$20,L27)) -> FALSE | AE27: =IF(D27=rozpis_příprava!$E$20,M27+rozpis_final_tisk!$E$2,IF('celkové umístění'!D27<>rozpis_příprava!$E$20,M27)) -> FALSE | AG27: =IF(#REF!<>rozpis_final_tisk!$E$2,'celkové umístění'!#REF!,IF('celkové umístění'!#REF!=rozpis_final_tisk!$E$2,"text")) ->  | AH27: =IF(X27<>rozpis_final_tisk!$E$2,'celkové umístění'!X27,IF('celkové umístění'!X27=rozpis_final_tisk!$E$2,"text")) -> text | AI27: =IF(Y27<>rozpis_final_tisk!$E$2,'celkové umístění'!Y27,IF('celkové umístění'!Y27=rozpis_final_tisk!$E$2,"text")) -> text | AJ27: =IF(Z27<>rozpis_final_tisk!$E$2,'celkové umístění'!Z27,IF('celkové umístění'!Z27=rozpis_final_tisk!$E$2,"text")) -> text | AK27: =IF(AA27<>rozpis_final_tisk!$E$2,'celkové umístění'!AA27,IF('celkové umístění'!AA27=rozpis_final_tisk!$E$2,"text")) -> text | AL27: =IF(AB27<>rozpis_final_tisk!$E$2,'celkové umístění'!AB27,IF('celkové umístění'!AB27=rozpis_final_tisk!$E$2,"text")) -> text | AM27: =IF(AC27<>rozpis_final_tisk!$E$2,'celkové umístění'!AC27,IF('celkové umístění'!AC27=rozpis_final_tisk!$E$2,"text")) -> text | AN27: =IF(AD27<>rozpis_final_tisk!$E$2,'celkové umístění'!AD27,IF('celkové umístění'!AD27=rozpis_final_tisk!$E$2,"text")) -> text | AO27: =IF(AE27<>rozpis_final_tisk!$E$2,'celkové umístění'!AE27,IF('celkové umístění'!AE27=rozpis_final_tisk!$E$2,"text")) -> text | AR27: =IF(AQ27=MAX($AQ$10:$AQ$41),P27,0) ->  | AS27: =IF(AR27=MAX($AR$10:$AR$41),D27) ->  | AT27: =IF(O27=FALSE,"Na",MIN(AG27:AO27)) -> Na | AU27: =IF(AT27=MIN($AT$10:$AT$41),P27,"Na") ->  | AV27: =IF(AU27=MIN($AU$10:$AU$41),D27) ->  | AY27: =IF(AX27<>FALSE,D27) ->  | AZ27: =IF(AY27<>rozpis_příprava!$E$20,IF(AY27<>FALSE,'celkové umístění'!C27)) ->  | BA27: =IF(#REF!>1,IF(#REF!<>FALSE,AZ27)) ->  | BH27: =IF(BG27<>FALSE,D27) ->  | BI27: =IF(BH27=rozpis_příprava!$E$20,'celkové umístění'!C27) ->  | BK27: =IF(#REF!=FALSE,BI27) ->  | BM27: 0
B28: 19. | C28: =rozpis_final_tisk!B68 -> 0 | D28: =rozpis_final_tisk!D68 -> 0 | E28: =IF(rozpis_final_tisk!E68>0,rozpis_final_tisk!E68) -> FALSE | F28: =IF(rozpis_final_tisk!F68>0,rozpis_final_tisk!F68) -> FALSE | G28: =IF(rozpis_final_tisk!G68>0,rozpis_final_tisk!G68) -> FALSE | H28: =IF(rozpis_final_tisk!H68>0,rozpis_final_tisk!H68) -> FALSE | I28: =IF(rozpis_final_tisk!I68>0,rozpis_final_tisk!I68) -> FALSE | J28: =IF(rozpis_final_tisk!J68>0,rozpis_final_tisk!J68) -> FALSE | K28: =IF(rozpis_final_tisk!K68>0,rozpis_final_tisk!K68) -> FALSE | L28: =IF(rozpis_final_tisk!L68>0,rozpis_final_tisk!L68) -> FALSE | M28: =IF(rozpis_final_tisk!M68>0,rozpis_final_tisk!M68) -> FALSE | N28: =IF(rozpis_final_tisk!N68>0,rozpis_final_tisk!N68) -> FALSE | O28: =IF(rozpis_final_tisk!O68>0,rozpis_final_tisk!O68) -> FALSE | P28: =IF(rozpis_final_tisk!P68>0,rozpis_final_tisk!P68) ->  | X28: =IF(D28=rozpis_příprava!$E$20,F28+rozpis_final_tisk!$E$2,IF('celkové umístění'!D28<>rozpis_příprava!$E$20,F28)) -> FALSE | Y28: =IF(D28=rozpis_příprava!$E$20,G28+rozpis_final_tisk!$E$2,IF('celkové umístění'!D28<>rozpis_příprava!$E$20,G28)) -> FALSE | Z28: =IF(D28=rozpis_příprava!$E$20,H28+rozpis_final_tisk!$E$2,IF('celkové umístění'!D28<>rozpis_příprava!$E$20,H28)) -> FALSE | AA28: =IF(D28=rozpis_příprava!$E$20,I28+rozpis_final_tisk!$E$2,IF('celkové umístění'!D28<>rozpis_příprava!$E$20,I28)) -> FALSE | AB28: =IF(D28=rozpis_příprava!$E$20,J28+rozpis_final_tisk!$E$2,IF('celkové umístění'!D28<>rozpis_příprava!$E$20,J28)) -> FALSE | AC28: =IF(D28=rozpis_příprava!$E$20,K28+rozpis_final_tisk!$E$2,IF('celkové umístění'!D28<>rozpis_příprava!$E$20,K28)) -> FALSE | AD28: =IF(D28=rozpis_příprava!$E$20,L28+rozpis_final_tisk!$E$2,IF('celkové umístění'!D28<>rozpis_příprava!$E$20,L28)) -> FALSE | AE28: =IF(D28=rozpis_příprava!$E$20,M28+rozpis_final_tisk!$E$2,IF('celkové umístění'!D28<>rozpis_příprava!$E$20,M28)) -> FALSE | AG28: =IF(#REF!<>rozpis_final_tisk!$E$2,'celkové umístění'!#REF!,IF('celkové umístění'!#REF!=rozpis_final_tisk!$E$2,"text")) ->  | AH28: =IF(X28<>rozpis_final_tisk!$E$2,'celkové umístění'!X28,IF('celkové umístění'!X28=rozpis_final_tisk!$E$2,"text")) -> text | AI28: =IF(Y28<>rozpis_final_tisk!$E$2,'celkové umístění'!Y28,IF('celkové umístění'!Y28=rozpis_final_tisk!$E$2,"text")) -> text | AJ28: =IF(Z28<>rozpis_final_tisk!$E$2,'celkové umístění'!Z28,IF('celkové umístění'!Z28=rozpis_final_tisk!$E$2,"text")) -> text | AK28: =IF(AA28<>rozpis_final_tisk!$E$2,'celkové umístění'!AA28,IF('celkové umístění'!AA28=rozpis_final_tisk!$E$2,"text")) -> text | AL28: =IF(AB28<>rozpis_final_tisk!$E$2,'celkové umístění'!AB28,IF('celkové umístění'!AB28=rozpis_final_tisk!$E$2,"text")) -> text | AM28: =IF(AC28<>rozpis_final_tisk!$E$2,'celkové umístění'!AC28,IF('celkové umístění'!AC28=rozpis_final_tisk!$E$2,"text")) -> text | AN28: =IF(AD28<>rozpis_final_tisk!$E$2,'celkové umístění'!AD28,IF('celkové umístění'!AD28=rozpis_final_tisk!$E$2,"text")) -> text | AO28: =IF(AE28<>rozpis_final_tisk!$E$2,'celkové umístění'!AE28,IF('celkové umístění'!AE28=rozpis_final_tisk!$E$2,"text")) -> text | AR28: =IF(AQ28=MAX($AQ$10:$AQ$41),P28,0) ->  | AS28: =IF(AR28=MAX($AR$10:$AR$41),D28) ->  | AT28: =IF(O28=FALSE,"Na",MIN(AG28:AO28)) -> Na | AU28: =IF(AT28=MIN($AT$10:$AT$41),P28,"Na") ->  | AV28: =IF(AU28=MIN($AU$10:$AU$41),D28) ->  | AY28: =IF(AX28<>FALSE,D28) ->  | AZ28: =IF(AY28<>rozpis_příprava!$E$20,IF(AY28<>FALSE,'celkové umístění'!C28)) ->  | BA28: =IF(#REF!>1,IF(#REF!<>FALSE,AZ28)) ->  | BH28: =IF(BG28<>FALSE,D28) ->  | BI28: =IF(BH28=rozpis_příprava!$E$20,'celkové umístění'!C28) ->  | BK28: =IF(#REF!=FALSE,BI28) ->  | BM28: 0
B29: 20. | C29: =rozpis_final_tisk!B67 -> 0 | D29: =rozpis_final_tisk!D67 -> 0 | E29: =IF(rozpis_final_tisk!E67>0,rozpis_final_tisk!E67) -> FALSE | F29: =IF(rozpis_final_tisk!F67>0,rozpis_final_tisk!F67) -> FALSE | G29: =IF(rozpis_final_tisk!G67>0,rozpis_final_tisk!G67) -> FALSE | H29: =IF(rozpis_final_tisk!H67>0,rozpis_final_tisk!H67) -> FALSE | I29: =IF(rozpis_final_tisk!I67>0,rozpis_final_tisk!I67) -> FALSE | J29: =IF(rozpis_final_tisk!J67>0,rozpis_final_tisk!J67) -> FALSE | K29: =IF(rozpis_final_tisk!K67>0,rozpis_final_tisk!K67) -> FALSE | L29: =IF(rozpis_final_tisk!L67>0,rozpis_final_tisk!L67) -> FALSE | M29: =IF(rozpis_final_tisk!M67>0,rozpis_final_tisk!M67) -> FALSE | N29: =IF(rozpis_final_tisk!N67>0,rozpis_final_tisk!N67) -> FALSE | O29: =IF(rozpis_final_tisk!O67>0,rozpis_final_tisk!O67) -> FALSE | P29: =IF(rozpis_final_tisk!P67>0,rozpis_final_tisk!P67) ->  | X29: =IF(D29=rozpis_příprava!$E$20,F29+rozpis_final_tisk!$E$2,IF('celkové umístění'!D29<>rozpis_příprava!$E$20,F29)) -> FALSE | Y29: =IF(D29=rozpis_příprava!$E$20,G29+rozpis_final_tisk!$E$2,IF('celkové umístění'!D29<>rozpis_příprava!$E$20,G29)) -> FALSE | Z29: =IF(D29=rozpis_příprava!$E$20,H29+rozpis_final_tisk!$E$2,IF('celkové umístění'!D29<>rozpis_příprava!$E$20,H29)) -> FALSE | AA29: =IF(D29=rozpis_příprava!$E$20,I29+rozpis_final_tisk!$E$2,IF('celkové umístění'!D29<>rozpis_příprava!$E$20,I29)) -> FALSE | AB29: =IF(D29=rozpis_příprava!$E$20,J29+rozpis_final_tisk!$E$2,IF('celkové umístění'!D29<>rozpis_příprava!$E$20,J29)) -> FALSE | AC29: =IF(D29=rozpis_příprava!$E$20,K29+rozpis_final_tisk!$E$2,IF('celkové umístění'!D29<>rozpis_příprava!$E$20,K29)) -> FALSE | AD29: =IF(D29=rozpis_příprava!$E$20,L29+rozpis_final_tisk!$E$2,IF('celkové umístění'!D29<>rozpis_příprava!$E$20,L29)) -> FALSE | AE29: =IF(D29=rozpis_příprava!$E$20,M29+rozpis_final_tisk!$E$2,IF('celkové umístění'!D29<>rozpis_příprava!$E$20,M29)) -> FALSE | AG29: =IF(#REF!<>rozpis_final_tisk!$E$2,'celkové umístění'!#REF!,IF('celkové umístění'!#REF!=rozpis_final_tisk!$E$2,"text")) ->  | AH29: =IF(X29<>rozpis_final_tisk!$E$2,'celkové umístění'!X29,IF('celkové umístění'!X29=rozpis_final_tisk!$E$2,"text")) -> text | AI29: =IF(Y29<>rozpis_final_tisk!$E$2,'celkové umístění'!Y29,IF('celkové umístění'!Y29=rozpis_final_tisk!$E$2,"text")) -> text | AJ29: =IF(Z29<>rozpis_final_tisk!$E$2,'celkové umístění'!Z29,IF('celkové umístění'!Z29=rozpis_final_tisk!$E$2,"text")) -> text | AK29: =IF(AA29<>rozpis_final_tisk!$E$2,'celkové umístění'!AA29,IF('celkové umístění'!AA29=rozpis_final_tisk!$E$2,"text")) -> text | AL29: =IF(AB29<>rozpis_final_tisk!$E$2,'celkové umístění'!AB29,IF('celkové umístění'!AB29=rozpis_final_tisk!$E$2,"text")) -> text | AM29: =IF(AC29<>rozpis_final_tisk!$E$2,'celkové umístění'!AC29,IF('celkové umístění'!AC29=rozpis_final_tisk!$E$2,"text")) -> text | AN29: =IF(AD29<>rozpis_final_tisk!$E$2,'celkové umístění'!AD29,IF('celkové umístění'!AD29=rozpis_final_tisk!$E$2,"text")) -> text | AO29: =IF(AE29<>rozpis_final_tisk!$E$2,'celkové umístění'!AE29,IF('celkové umístění'!AE29=rozpis_final_tisk!$E$2,"text")) -> text | AR29: =IF(AQ29=MAX($AQ$10:$AQ$41),P29,0) ->  | AS29: =IF(AR29=MAX($AR$10:$AR$41),D29) ->  | AT29: =IF(O29=FALSE,"Na",MIN(AG29:AO29)) -> Na | AU29: =IF(AT29=MIN($AT$10:$AT$41),P29,"Na") ->  | AV29: =IF(AU29=MIN($AU$10:$AU$41),D29) ->  | AY29: =IF(AX29<>FALSE,D29) ->  | AZ29: =IF(AY29<>rozpis_příprava!$E$20,IF(AY29<>FALSE,'celkové umístění'!C29)) ->  | BA29: =IF(#REF!>1,IF(#REF!<>FALSE,AZ29)) ->  | BH29: =IF(BG29<>FALSE,D29) ->  | BI29: =IF(BH29=rozpis_příprava!$E$20,'celkové umístění'!C29) ->  | BK29: =IF(#REF!=FALSE,BI29) ->  | BM29: 0
B30: 21. | C30: =rozpis_final_tisk!B69 -> 0 | D30: =rozpis_final_tisk!D69 -> 0 | E30: =IF(rozpis_final_tisk!E69>0,rozpis_final_tisk!E69) -> FALSE | F30: =IF(rozpis_final_tisk!F69>0,rozpis_final_tisk!F69) -> FALSE | G30: =IF(rozpis_final_tisk!G69>0,rozpis_final_tisk!G69) -> FALSE | H30: =IF(rozpis_final_tisk!H69>0,rozpis_final_tisk!H69) -> FALSE | I30: =IF(rozpis_final_tisk!I69>0,rozpis_final_tisk!I69) -> FALSE | J30: =IF(rozpis_final_tisk!J69>0,rozpis_final_tisk!J69) -> FALSE | K30: =IF(rozpis_final_tisk!K69>0,rozpis_final_tisk!K69) -> FALSE | L30: =IF(rozpis_final_tisk!L69>0,rozpis_final_tisk!L69) -> FALSE | M30: =IF(rozpis_final_tisk!M69>0,rozpis_final_tisk!M69) -> FALSE | N30: =IF(rozpis_final_tisk!N69>0,rozpis_final_tisk!N69) -> FALSE | O30: =IF(rozpis_final_tisk!O69>0,rozpis_final_tisk!O69) -> FALSE | P30: =IF(rozpis_final_tisk!P69>0,rozpis_final_tisk!P69) ->  | X30: =IF(D30=rozpis_příprava!$E$20,F30+rozpis_final_tisk!$E$2,IF('celkové umístění'!D30<>rozpis_příprava!$E$20,F30)) -> FALSE | Y30: =IF(D30=rozpis_příprava!$E$20,G30+rozpis_final_tisk!$E$2,IF('celkové umístění'!D30<>rozpis_příprava!$E$20,G30)) -> FALSE | Z30: =IF(D30=rozpis_příprava!$E$20,H30+rozpis_final_tisk!$E$2,IF('celkové umístění'!D30<>rozpis_příprava!$E$20,H30)) -> FALSE | AA30: =IF(D30=rozpis_příprava!$E$20,I30+rozpis_final_tisk!$E$2,IF('celkové umístění'!D30<>rozpis_příprava!$E$20,I30)) -> FALSE | AB30: =IF(D30=rozpis_příprava!$E$20,J30+rozpis_final_tisk!$E$2,IF('celkové umístění'!D30<>rozpis_příprava!$E$20,J30)) -> FALSE | AC30: =IF(D30=rozpis_příprava!$E$20,K30+rozpis_final_tisk!$E$2,IF('celkové umístění'!D30<>rozpis_příprava!$E$20,K30)) -> FALSE | AD30: =IF(D30=rozpis_příprava!$E$20,L30+rozpis_final_tisk!$E$2,IF('celkové umístění'!D30<>rozpis_příprava!$E$20,L30)) -> FALSE | AE30: =IF(D30=rozpis_příprava!$E$20,M30+rozpis_final_tisk!$E$2,IF('celkové umístění'!D30<>rozpis_příprava!$E$20,M30)) -> FALSE | AG30: =IF(#REF!<>rozpis_final_tisk!$E$2,'celkové umístění'!#REF!,IF('celkové umístění'!#REF!=rozpis_final_tisk!$E$2,"text")) ->  | AH30: =IF(X30<>rozpis_final_tisk!$E$2,'celkové umístění'!X30,IF('celkové umístění'!X30=rozpis_final_tisk!$E$2,"text")) -> text | AI30: =IF(Y30<>rozpis_final_tisk!$E$2,'celkové umístění'!Y30,IF('celkové umístění'!Y30=rozpis_final_tisk!$E$2,"text")) -> text | AJ30: =IF(Z30<>rozpis_final_tisk!$E$2,'celkové umístění'!Z30,IF('celkové umístění'!Z30=rozpis_final_tisk!$E$2,"text")) -> text | AK30: =IF(AA30<>rozpis_final_tisk!$E$2,'celkové umístění'!AA30,IF('celkové umístění'!AA30=rozpis_final_tisk!$E$2,"text")) -> text | AL30: =IF(AB30<>rozpis_final_tisk!$E$2,'celkové umístění'!AB30,IF('celkové umístění'!AB30=rozpis_final_tisk!$E$2,"text")) -> text | AM30: =IF(AC30<>rozpis_final_tisk!$E$2,'celkové umístění'!AC30,IF('celkové umístění'!AC30=rozpis_final_tisk!$E$2,"text")) -> text | AN30: =IF(AD30<>rozpis_final_tisk!$E$2,'celkové umístění'!AD30,IF('celkové umístění'!AD30=rozpis_final_tisk!$E$2,"text")) -> text | AO30: =IF(AE30<>rozpis_final_tisk!$E$2,'celkové umístění'!AE30,IF('celkové umístění'!AE30=rozpis_final_tisk!$E$2,"text")) -> text | AR30: =IF(AQ30=MAX($AQ$10:$AQ$41),P30,0) ->  | AS30: =IF(AR30=MAX($AR$10:$AR$41),D30) ->  | AT30: =IF(O30=FALSE,"Na",MIN(AG30:AO30)) -> Na | AU30: =IF(AT30=MIN($AT$10:$AT$41),P30,"Na") ->  | AV30: =IF(AU30=MIN($AU$10:$AU$41),D30) ->  | AY30: =IF(AX30<>FALSE,D30) ->  | AZ30: =IF(AY30<>rozpis_příprava!$E$20,IF(AY30<>FALSE,'celkové umístění'!C30)) ->  | BA30: =IF(#REF!>1,IF(#REF!<>FALSE,AZ30)) ->  | BH30: =IF(BG30<>FALSE,D30) ->  | BI30: =IF(BH30=rozpis_příprava!$E$20,'celkové umístění'!C30) ->  | BK30: =IF(#REF!=FALSE,BI30) ->  | BM30: 0
B31: 22. | C31: =rozpis_final_tisk!B49 -> 0 | D31: =rozpis_final_tisk!D49 -> 0 | E31: =IF(rozpis_final_tisk!E49>0,rozpis_final_tisk!E49) -> FALSE | F31: =IF(rozpis_final_tisk!F49>0,rozpis_final_tisk!F49) -> FALSE | G31: =IF(rozpis_final_tisk!G49>0,rozpis_final_tisk!G49) -> FALSE | H31: =IF(rozpis_final_tisk!H49>0,rozpis_final_tisk!H49) -> FALSE | I31: =IF(rozpis_final_tisk!I49>0,rozpis_final_tisk!I49) -> FALSE | J31: =IF(rozpis_final_tisk!J49>0,rozpis_final_tisk!J49) -> FALSE | K31: =IF(rozpis_final_tisk!K49>0,rozpis_final_tisk!K49) -> FALSE | L31: =IF(rozpis_final_tisk!L49>0,rozpis_final_tisk!L49) -> FALSE | M31: =IF(rozpis_final_tisk!M49>0,rozpis_final_tisk!M49) -> FALSE | N31: =IF(rozpis_final_tisk!N49>0,rozpis_final_tisk!N49) -> FALSE | O31: =IF(rozpis_final_tisk!O49>0,rozpis_final_tisk!O49) -> FALSE | P31: =IF(rozpis_final_tisk!P49>0,rozpis_final_tisk!P49) ->  | X31: =IF(D31=rozpis_příprava!$E$20,F31+rozpis_final_tisk!$E$2,IF('celkové umístění'!D31<>rozpis_příprava!$E$20,F31)) -> FALSE | Y31: =IF(D31=rozpis_příprava!$E$20,G31+rozpis_final_tisk!$E$2,IF('celkové umístění'!D31<>rozpis_příprava!$E$20,G31)) -> FALSE | Z31: =IF(D31=rozpis_příprava!$E$20,H31+rozpis_final_tisk!$E$2,IF('celkové umístění'!D31<>rozpis_příprava!$E$20,H31)) -> FALSE | AA31: =IF(D31=rozpis_příprava!$E$20,I31+rozpis_final_tisk!$E$2,IF('celkové umístění'!D31<>rozpis_příprava!$E$20,I31)) -> FALSE | AB31: =IF(D31=rozpis_příprava!$E$20,J31+rozpis_final_tisk!$E$2,IF('celkové umístění'!D31<>rozpis_příprava!$E$20,J31)) -> FALSE | AC31: =IF(D31=rozpis_příprava!$E$20,K31+rozpis_final_tisk!$E$2,IF('celkové umístění'!D31<>rozpis_příprava!$E$20,K31)) -> FALSE | AD31: =IF(D31=rozpis_příprava!$E$20,L31+rozpis_final_tisk!$E$2,IF('celkové umístění'!D31<>rozpis_příprava!$E$20,L31)) -> FALSE | AE31: =IF(D31=rozpis_příprava!$E$20,M31+rozpis_final_tisk!$E$2,IF('celkové umístění'!D31<>rozpis_příprava!$E$20,M31)) -> FALSE | AG31: =IF(#REF!<>rozpis_final_tisk!$E$2,'celkové umístění'!#REF!,IF('celkové umístění'!#REF!=rozpis_final_tisk!$E$2,"text")) ->  | AH31: =IF(X31<>rozpis_final_tisk!$E$2,'celkové umístění'!X31,IF('celkové umístění'!X31=rozpis_final_tisk!$E$2,"text")) -> text | AI31: =IF(Y31<>rozpis_final_tisk!$E$2,'celkové umístění'!Y31,IF('celkové umístění'!Y31=rozpis_final_tisk!$E$2,"text")) -> text | AJ31: =IF(Z31<>rozpis_final_tisk!$E$2,'celkové umístění'!Z31,IF('celkové umístění'!Z31=rozpis_final_tisk!$E$2,"text")) -> text | AK31: =IF(AA31<>rozpis_final_tisk!$E$2,'celkové umístění'!AA31,IF('celkové umístění'!AA31=rozpis_final_tisk!$E$2,"text")) -> text | AL31: =IF(AB31<>rozpis_final_tisk!$E$2,'celkové umístění'!AB31,IF('celkové umístění'!AB31=rozpis_final_tisk!$E$2,"text")) -> text | AM31: =IF(AC31<>rozpis_final_tisk!$E$2,'celkové umístění'!AC31,IF('celkové umístění'!AC31=rozpis_final_tisk!$E$2,"text")) -> text | AN31: =IF(AD31<>rozpis_final_tisk!$E$2,'celkové umístění'!AD31,IF('celkové umístění'!AD31=rozpis_final_tisk!$E$2,"text")) -> text | AO31: =IF(AE31<>rozpis_final_tisk!$E$2,'celkové umístění'!AE31,IF('celkové umístění'!AE31=rozpis_final_tisk!$E$2,"text")) -> text | AR31: =IF(AQ31=MAX($AQ$10:$AQ$41),P31,0) ->  | AS31: =IF(AR31=MAX($AR$10:$AR$41),D31) ->  | AT31: =IF(O31=FALSE,"Na",MIN(AG31:AO31)) -> Na | AU31: =IF(AT31=MIN($AT$10:$AT$41),P31,"Na") ->  | AV31: =IF(AU31=MIN($AU$10:$AU$41),D31) ->  | AY31: =IF(AX31<>FALSE,D31) ->  | AZ31: =IF(AY31<>rozpis_příprava!$E$20,IF(AY31<>FALSE,'celkové umístění'!C31)) ->  | BA31: =IF(#REF!>1,IF(#REF!<>FALSE,AZ31)) ->  | BH31: =IF(BG31<>FALSE,D31) ->  | BI31: =IF(BH31=rozpis_příprava!$E$20,'celkové umístění'!C31) ->  | BK31: =IF(#REF!=FALSE,BI31) ->  | BM31: 0
B32: 23. | C32: =rozpis_final_tisk!B51 -> 0 | D32: =rozpis_final_tisk!D51 -> 0 | E32: =IF(rozpis_final_tisk!E51>0,rozpis_final_tisk!E51) -> FALSE | F32: =IF(rozpis_final_tisk!F51>0,rozpis_final_tisk!F51) -> FALSE | G32: =IF(rozpis_final_tisk!G51>0,rozpis_final_tisk!G51) -> FALSE | H32: =IF(rozpis_final_tisk!H51>0,rozpis_final_tisk!H51) -> FALSE | I32: =IF(rozpis_final_tisk!I51>0,rozpis_final_tisk!I51) -> FALSE | J32: =IF(rozpis_final_tisk!J51>0,rozpis_final_tisk!J51) -> FALSE | K32: =IF(rozpis_final_tisk!K51>0,rozpis_final_tisk!K51) -> FALSE | L32: =IF(rozpis_final_tisk!L51>0,rozpis_final_tisk!L51) -> FALSE | M32: =IF(rozpis_final_tisk!M51>0,rozpis_final_tisk!M51) -> FALSE | N32: =IF(rozpis_final_tisk!N51>0,rozpis_final_tisk!N51) -> FALSE | O32: =IF(rozpis_final_tisk!O51>0,rozpis_final_tisk!O51) -> FALSE | P32: =IF(rozpis_final_tisk!P51>0,rozpis_final_tisk!P51) ->  | X32: =IF(D32=rozpis_příprava!$E$20,F32+rozpis_final_tisk!$E$2,IF('celkové umístění'!D32<>rozpis_příprava!$E$20,F32)) -> FALSE | Y32: =IF(D32=rozpis_příprava!$E$20,G32+rozpis_final_tisk!$E$2,IF('celkové umístění'!D32<>rozpis_příprava!$E$20,G32)) -> FALSE | Z32: =IF(D32=rozpis_příprava!$E$20,H32+rozpis_final_tisk!$E$2,IF('celkové umístění'!D32<>rozpis_příprava!$E$20,H32)) -> FALSE | AA32: =IF(D32=rozpis_příprava!$E$20,I32+rozpis_final_tisk!$E$2,IF('celkové umístění'!D32<>rozpis_příprava!$E$20,I32)) -> FALSE | AB32: =IF(D32=rozpis_příprava!$E$20,J32+rozpis_final_tisk!$E$2,IF('celkové umístění'!D32<>rozpis_příprava!$E$20,J32)) -> FALSE | AC32: =IF(D32=rozpis_příprava!$E$20,K32+rozpis_final_tisk!$E$2,IF('celkové umístění'!D32<>rozpis_příprava!$E$20,K32)) -> FALSE | AD32: =IF(D32=rozpis_příprava!$E$20,L32+rozpis_final_tisk!$E$2,IF('celkové umístění'!D32<>rozpis_příprava!$E$20,L32)) -> FALSE | AE32: =IF(D32=rozpis_příprava!$E$20,M32+rozpis_final_tisk!$E$2,IF('celkové umístění'!D32<>rozpis_příprava!$E$20,M32)) -> FALSE | AG32: =IF(#REF!<>rozpis_final_tisk!$E$2,'celkové umístění'!#REF!,IF('celkové umístění'!#REF!=rozpis_final_tisk!$E$2,"text")) ->  | AH32: =IF(X32<>rozpis_final_tisk!$E$2,'celkové umístění'!X32,IF('celkové umístění'!X32=rozpis_final_tisk!$E$2,"text")) -> text | AI32: =IF(Y32<>rozpis_final_tisk!$E$2,'celkové umístění'!Y32,IF('celkové umístění'!Y32=rozpis_final_tisk!$E$2,"text")) -> text | AJ32: =IF(Z32<>rozpis_final_tisk!$E$2,'celkové umístění'!Z32,IF('celkové umístění'!Z32=rozpis_final_tisk!$E$2,"text")) -> text | AK32: =IF(AA32<>rozpis_final_tisk!$E$2,'celkové umístění'!AA32,IF('celkové umístění'!AA32=rozpis_final_tisk!$E$2,"text")) -> text | AL32: =IF(AB32<>rozpis_final_tisk!$E$2,'celkové umístění'!AB32,IF('celkové umístění'!AB32=rozpis_final_tisk!$E$2,"text")) -> text | AM32: =IF(AC32<>rozpis_final_tisk!$E$2,'celkové umístění'!AC32,IF('celkové umístění'!AC32=rozpis_final_tisk!$E$2,"text")) -> text | AN32: =IF(AD32<>rozpis_final_tisk!$E$2,'celkové umístění'!AD32,IF('celkové umístění'!AD32=rozpis_final_tisk!$E$2,"text")) -> text | AO32: =IF(AE32<>rozpis_final_tisk!$E$2,'celkové umístění'!AE32,IF('celkové umístění'!AE32=rozpis_final_tisk!$E$2,"text")) -> text | AR32: =IF(AQ32=MAX($AQ$10:$AQ$41),P32,0) ->  | AS32: =IF(AR32=MAX($AR$10:$AR$41),D32) ->  | AT32: =IF(O32=FALSE,"Na",MIN(AG32:AO32)) -> Na | AU32: =IF(AT32=MIN($AT$10:$AT$41),P32,"Na") ->  | AV32: =IF(AU32=MIN($AU$10:$AU$41),D32) ->  | AY32: =IF(AX32<>FALSE,D32) ->  | AZ32: =IF(AY32<>rozpis_příprava!$E$20,IF(AY32<>FALSE,'celkové umístění'!C32)) ->  | BA32: =IF(#REF!>1,IF(#REF!<>FALSE,AZ32)) ->  | BH32: =IF(BG32<>FALSE,D32) ->  | BI32: =IF(BH32=rozpis_příprava!$E$20,'celkové umístění'!C32) ->  | BK32: =IF(#REF!=FALSE,BI32) ->  | BM32: 0
B33: 24. | C33: =rozpis_final_tisk!B50 -> 0 | D33: =rozpis_final_tisk!D50 -> 0 | E33: =IF(rozpis_final_tisk!E50>0,rozpis_final_tisk!E50) -> FALSE | F33: =IF(rozpis_final_tisk!F50>0,rozpis_final_tisk!F50) -> FALSE | G33: =IF(rozpis_final_tisk!G50>0,rozpis_final_tisk!G50) -> FALSE | H33: =IF(rozpis_final_tisk!H50>0,rozpis_final_tisk!H50) -> FALSE | I33: =IF(rozpis_final_tisk!I50>0,rozpis_final_tisk!I50) -> FALSE | J33: =IF(rozpis_final_tisk!J50>0,rozpis_final_tisk!J50) -> FALSE | K33: =IF(rozpis_final_tisk!K50>0,rozpis_final_tisk!K50) -> FALSE | L33: =IF(rozpis_final_tisk!L50>0,rozpis_final_tisk!L50) -> FALSE | M33: =IF(rozpis_final_tisk!M50>0,rozpis_final_tisk!M50) -> FALSE | N33: =IF(rozpis_final_tisk!N50>0,rozpis_final_tisk!N50) -> FALSE | O33: =IF(rozpis_final_tisk!O50>0,rozpis_final_tisk!O50) -> FALSE | P33: =IF(rozpis_final_tisk!P50>0,rozpis_final_tisk!P50) ->  | X33: =IF(D33=rozpis_příprava!$E$20,F33+rozpis_final_tisk!$E$2,IF('celkové umístění'!D33<>rozpis_příprava!$E$20,F33)) -> FALSE | Y33: =IF(D33=rozpis_příprava!$E$20,G33+rozpis_final_tisk!$E$2,IF('celkové umístění'!D33<>rozpis_příprava!$E$20,G33)) -> FALSE | Z33: =IF(D33=rozpis_příprava!$E$20,H33+rozpis_final_tisk!$E$2,IF('celkové umístění'!D33<>rozpis_příprava!$E$20,H33)) -> FALSE | AA33: =IF(D33=rozpis_příprava!$E$20,I33+rozpis_final_tisk!$E$2,IF('celkové umístění'!D33<>rozpis_příprava!$E$20,I33)) -> FALSE | AB33: =IF(D33=rozpis_příprava!$E$20,J33+rozpis_final_tisk!$E$2,IF('celkové umístění'!D33<>rozpis_příprava!$E$20,J33)) -> FALSE | AC33: =IF(D33=rozpis_příprava!$E$20,K33+rozpis_final_tisk!$E$2,IF('celkové umístění'!D33<>rozpis_příprava!$E$20,K33)) -> FALSE | AD33: =IF(D33=rozpis_příprava!$E$20,L33+rozpis_final_tisk!$E$2,IF('celkové umístění'!D33<>rozpis_příprava!$E$20,L33)) -> FALSE | AE33: =IF(D33=rozpis_příprava!$E$20,M33+rozpis_final_tisk!$E$2,IF('celkové umístění'!D33<>rozpis_příprava!$E$20,M33)) -> FALSE | AG33: =IF(#REF!<>rozpis_final_tisk!$E$2,'celkové umístění'!#REF!,IF('celkové umístění'!#REF!=rozpis_final_tisk!$E$2,"text")) ->  | AH33: =IF(X33<>rozpis_final_tisk!$E$2,'celkové umístění'!X33,IF('celkové umístění'!X33=rozpis_final_tisk!$E$2,"text")) -> text | AI33: =IF(Y33<>rozpis_final_tisk!$E$2,'celkové umístění'!Y33,IF('celkové umístění'!Y33=rozpis_final_tisk!$E$2,"text")) -> text | AJ33: =IF(Z33<>rozpis_final_tisk!$E$2,'celkové umístění'!Z33,IF('celkové umístění'!Z33=rozpis_final_tisk!$E$2,"text")) -> text | AK33: =IF(AA33<>rozpis_final_tisk!$E$2,'celkové umístění'!AA33,IF('celkové umístění'!AA33=rozpis_final_tisk!$E$2,"text")) -> text | AL33: =IF(AB33<>rozpis_final_tisk!$E$2,'celkové umístění'!AB33,IF('celkové umístění'!AB33=rozpis_final_tisk!$E$2,"text")) -> text | AM33: =IF(AC33<>rozpis_final_tisk!$E$2,'celkové umístění'!AC33,IF('celkové umístění'!AC33=rozpis_final_tisk!$E$2,"text")) -> text | AN33: =IF(AD33<>rozpis_final_tisk!$E$2,'celkové umístění'!AD33,IF('celkové umístění'!AD33=rozpis_final_tisk!$E$2,"text")) -> text | AO33: =IF(AE33<>rozpis_final_tisk!$E$2,'celkové umístění'!AE33,IF('celkové umístění'!AE33=rozpis_final_tisk!$E$2,"text")) -> text | AR33: =IF(AQ33=MAX($AQ$10:$AQ$41),P33,0) ->  | AS33: =IF(AR33=MAX($AR$10:$AR$41),D33) ->  | AT33: =IF(O33=FALSE,"Na",MIN(AG33:AO33)) -> Na | AU33: =IF(AT33=MIN($AT$10:$AT$41),P33,"Na") ->  | AV33: =IF(AU33=MIN($AU$10:$AU$41),D33) ->  | AY33: =IF(AX33<>FALSE,D33) ->  | AZ33: =IF(AY33<>rozpis_příprava!$E$20,IF(AY33<>FALSE,'celkové umístění'!C33)) ->  | BA33: =IF(#REF!>1,IF(#REF!<>FALSE,AZ33)) ->  | BH33: =IF(BG33<>FALSE,D33) ->  | BI33: =IF(BH33=rozpis_příprava!$E$20,'celkové umístění'!C33) ->  | BK33: =IF(#REF!=FALSE,BI33) ->  | BM33: 0
B34: 25. | C34: =rozpis_final_tisk!B139 -> 0 | D34: =rozpis_final_tisk!D139 -> 0 | E34: =IF(rozpis_final_tisk!E139>0,rozpis_final_tisk!E139) -> FALSE | F34: =IF(rozpis_final_tisk!F139>0,rozpis_final_tisk!F139) -> FALSE | G34: =IF(rozpis_final_tisk!G139>0,rozpis_final_tisk!G139) -> FALSE | H34: =IF(rozpis_final_tisk!H139>0,rozpis_final_tisk!H139) -> FALSE | I34: =IF(rozpis_final_tisk!I139>0,rozpis_final_tisk!I139) -> FALSE | J34: =IF(rozpis_final_tisk!J139>0,rozpis_final_tisk!J139) -> FALSE | K34: =IF(rozpis_final_tisk!K139>0,rozpis_final_tisk!K139) -> FALSE | L34: =IF(rozpis_final_tisk!L139>0,rozpis_final_tisk!L139) -> FALSE | M34: =IF(rozpis_final_tisk!M139>0,rozpis_final_tisk!M139) -> FALSE | N34: =IF(rozpis_final_tisk!N139>0,rozpis_final_tisk!N139) -> FALSE | O34: =IF(rozpis_final_tisk!O139>0,rozpis_final_tisk!O139) -> FALSE | P34: =IF(rozpis_final_tisk!P139>0,rozpis_final_tisk!P139) ->  | X34: =IF(D34=rozpis_příprava!$E$20,F34+rozpis_final_tisk!$E$2,IF('celkové umístění'!D34<>rozpis_příprava!$E$20,F34)) -> FALSE | Y34: =IF(D34=rozpis_příprava!$E$20,G34+rozpis_final_tisk!$E$2,IF('celkové umístění'!D34<>rozpis_příprava!$E$20,G34)) -> FALSE | Z34: =IF(D34=rozpis_příprava!$E$20,H34+rozpis_final_tisk!$E$2,IF('celkové umístění'!D34<>rozpis_příprava!$E$20,H34)) -> FALSE | AA34: =IF(D34=rozpis_příprava!$E$20,I34+rozpis_final_tisk!$E$2,IF('celkové umístění'!D34<>rozpis_příprava!$E$20,I34)) -> FALSE | AB34: =IF(D34=rozpis_příprava!$E$20,J34+rozpis_final_tisk!$E$2,IF('celkové umístění'!D34<>rozpis_příprava!$E$20,J34)) -> FALSE | AC34: =IF(D34=rozpis_příprava!$E$20,K34+rozpis_final_tisk!$E$2,IF('celkové umístění'!D34<>rozpis_příprava!$E$20,K34)) -> FALSE | AD34: =IF(D34=rozpis_příprava!$E$20,L34+rozpis_final_tisk!$E$2,IF('celkové umístění'!D34<>rozpis_příprava!$E$20,L34)) -> FALSE | AE34: =IF(D34=rozpis_příprava!$E$20,M34+rozpis_final_tisk!$E$2,IF('celkové umístění'!D34<>rozpis_příprava!$E$20,M34)) -> FALSE | AG34: =IF(#REF!<>rozpis_final_tisk!$E$2,'celkové umístění'!#REF!,IF('celkové umístění'!#REF!=rozpis_final_tisk!$E$2,"text")) ->  | AH34: =IF(X34<>rozpis_final_tisk!$E$2,'celkové umístění'!X34,IF('celkové umístění'!X34=rozpis_final_tisk!$E$2,"text")) -> text | AI34: =IF(Y34<>rozpis_final_tisk!$E$2,'celkové umístění'!Y34,IF('celkové umístění'!Y34=rozpis_final_tisk!$E$2,"text")) -> text | AJ34: =IF(Z34<>rozpis_final_tisk!$E$2,'celkové umístění'!Z34,IF('celkové umístění'!Z34=rozpis_final_tisk!$E$2,"text")) -> text | AK34: =IF(AA34<>rozpis_final_tisk!$E$2,'celkové umístění'!AA34,IF('celkové umístění'!AA34=rozpis_final_tisk!$E$2,"text")) -> text | AL34: =IF(AB34<>rozpis_final_tisk!$E$2,'celkové umístění'!AB34,IF('celkové umístění'!AB34=rozpis_final_tisk!$E$2,"text")) -> text | AM34: =IF(AC34<>rozpis_final_tisk!$E$2,'celkové umístění'!AC34,IF('celkové umístění'!AC34=rozpis_final_tisk!$E$2,"text")) -> text | AN34: =IF(AD34<>rozpis_final_tisk!$E$2,'celkové umístění'!AD34,IF('celkové umístění'!AD34=rozpis_final_tisk!$E$2,"text")) -> text | AO34: =IF(AE34<>rozpis_final_tisk!$E$2,'celkové umístění'!AE34,IF('celkové umístění'!AE34=rozpis_final_tisk!$E$2,"text")) -> text | AR34: =IF(AQ34=MAX($AQ$10:$AQ$41),P34,0) ->  | AS34: =IF(AR34=MAX($AR$10:$AR$41),D34) ->  | AT34: =IF(O34=FALSE,"Na",MIN(AG34:AO34)) -> Na | AU34: =IF(AT34=MIN($AT$10:$AT$41),P34,"Na") ->  | AV34: =IF(AU34=MIN($AU$10:$AU$41),D34) ->  | AY34: =IF(AX34<>FALSE,D34) ->  | AZ34: =IF(AY34<>rozpis_příprava!$E$20,IF(AY34<>FALSE,'celkové umístění'!C34)) ->  | BA34: =IF(#REF!>1,IF(#REF!<>FALSE,AZ34)) ->  | BH34: =IF(BG34<>FALSE,D34) ->  | BI34: =IF(BH34=rozpis_příprava!$E$20,'celkové umístění'!C34) ->  | BK34: =IF(#REF!=FALSE,BI34) ->  | BM34: 0
B35: 26. | C35: =rozpis_final_tisk!B136 -> 0 | D35: =rozpis_final_tisk!D136 -> 0 | E35: =IF(rozpis_final_tisk!E136>0,rozpis_final_tisk!E136) -> FALSE | F35: =IF(rozpis_final_tisk!F136>0,rozpis_final_tisk!F136) -> FALSE | G35: =IF(rozpis_final_tisk!G136>0,rozpis_final_tisk!G136) -> FALSE | H35: =IF(rozpis_final_tisk!H136>0,rozpis_final_tisk!H136) -> FALSE | I35: =IF(rozpis_final_tisk!I136>0,rozpis_final_tisk!I136) -> FALSE | J35: =IF(rozpis_final_tisk!J136>0,rozpis_final_tisk!J136) -> FALSE | K35: =IF(rozpis_final_tisk!K136>0,rozpis_final_tisk!K136) -> FALSE | L35: =IF(rozpis_final_tisk!L136>0,rozpis_final_tisk!L136) -> FALSE | M35: =IF(rozpis_final_tisk!M136>0,rozpis_final_tisk!M136) -> FALSE | N35: =IF(rozpis_final_tisk!N136>0,rozpis_final_tisk!N136) -> FALSE | O35: =IF(rozpis_final_tisk!O136>0,rozpis_final_tisk!O136) -> FALSE | P35: =IF(rozpis_final_tisk!P136>0,rozpis_final_tisk!P136) ->  | X35: =IF(D35=rozpis_příprava!$E$20,F35+rozpis_final_tisk!$E$2,IF('celkové umístění'!D35<>rozpis_příprava!$E$20,F35)) -> FALSE | Y35: =IF(D35=rozpis_příprava!$E$20,G35+rozpis_final_tisk!$E$2,IF('celkové umístění'!D35<>rozpis_příprava!$E$20,G35)) -> FALSE | Z35: =IF(D35=rozpis_příprava!$E$20,H35+rozpis_final_tisk!$E$2,IF('celkové umístění'!D35<>rozpis_příprava!$E$20,H35)) -> FALSE | AA35: =IF(D35=rozpis_příprava!$E$20,I35+rozpis_final_tisk!$E$2,IF('celkové umístění'!D35<>rozpis_příprava!$E$20,I35)) -> FALSE | AB35: =IF(D35=rozpis_příprava!$E$20,J35+rozpis_final_tisk!$E$2,IF('celkové umístění'!D35<>rozpis_příprava!$E$20,J35)) -> FALSE | AC35: =IF(D35=rozpis_příprava!$E$20,K35+rozpis_final_tisk!$E$2,IF('celkové umístění'!D35<>rozpis_příprava!$E$20,K35)) -> FALSE | AD35: =IF(D35=rozpis_příprava!$E$20,L35+rozpis_final_tisk!$E$2,IF('celkové umístění'!D35<>rozpis_příprava!$E$20,L35)) -> FALSE | AE35: =IF(D35=rozpis_příprava!$E$20,M35+rozpis_final_tisk!$E$2,IF('celkové umístění'!D35<>rozpis_příprava!$E$20,M35)) -> FALSE | AG35: =IF(#REF!<>rozpis_final_tisk!$E$2,'celkové umístění'!#REF!,IF('celkové umístění'!#REF!=rozpis_final_tisk!$E$2,"text")) ->  | AH35: =IF(X35<>rozpis_final_tisk!$E$2,'celkové umístění'!X35,IF('celkové umístění'!X35=rozpis_final_tisk!$E$2,"text")) -> text | AI35: =IF(Y35<>rozpis_final_tisk!$E$2,'celkové umístění'!Y35,IF('celkové umístění'!Y35=rozpis_final_tisk!$E$2,"text")) -> text | AJ35: =IF(Z35<>rozpis_final_tisk!$E$2,'celkové umístění'!Z35,IF('celkové umístění'!Z35=rozpis_final_tisk!$E$2,"text")) -> text | AK35: =IF(AA35<>rozpis_final_tisk!$E$2,'celkové umístění'!AA35,IF('celkové umístění'!AA35=rozpis_final_tisk!$E$2,"text")) -> text | AL35: =IF(AB35<>rozpis_final_tisk!$E$2,'celkové umístění'!AB35,IF('celkové umístění'!AB35=rozpis_final_tisk!$E$2,"text")) -> text | AM35: =IF(AC35<>rozpis_final_tisk!$E$2,'celkové umístění'!AC35,IF('celkové umístění'!AC35=rozpis_final_tisk!$E$2,"text")) -> text | AN35: =IF(AD35<>rozpis_final_tisk!$E$2,'celkové umístění'!AD35,IF('celkové umístění'!AD35=rozpis_final_tisk!$E$2,"text")) -> text | AO35: =IF(AE35<>rozpis_final_tisk!$E$2,'celkové umístění'!AE35,IF('celkové umístění'!AE35=rozpis_final_tisk!$E$2,"text")) -> text | AR35: =IF(AQ35=MAX($AQ$10:$AQ$41),P35,0) ->  | AS35: =IF(AR35=MAX($AR$10:$AR$41),D35) ->  | AT35: =IF(O35=FALSE,"Na",MIN(AG35:AO35)) -> Na | AU35: =IF(AT35=MIN($AT$10:$AT$41),P35,"Na") ->  | AV35: =IF(AU35=MIN($AU$10:$AU$41),D35) ->  | AY35: =IF(AX35<>FALSE,D35) ->  | AZ35: =IF(AY35<>rozpis_příprava!$E$20,IF(AY35<>FALSE,'celkové umístění'!C35)) ->  | BA35: =IF(#REF!>1,IF(#REF!<>FALSE,AZ35)) ->  | BH35: =IF(BG35<>FALSE,D35) ->  | BI35: =IF(BH35=rozpis_příprava!$E$20,'celkové umístění'!C35) ->  | BK35: =IF(#REF!=FALSE,BI35) ->  | BM35: 0
B36: 27. | C36: =rozpis_final_tisk!B119 -> 0 | D36: =rozpis_final_tisk!D119 -> 0 | E36: =IF(rozpis_final_tisk!E119>0,rozpis_final_tisk!E119) -> FALSE | F36: =IF(rozpis_final_tisk!F119>0,rozpis_final_tisk!F119) -> FALSE | G36: =IF(rozpis_final_tisk!G119>0,rozpis_final_tisk!G119) -> FALSE | H36: =IF(rozpis_final_tisk!H119>0,rozpis_final_tisk!H119) -> FALSE | I36: =IF(rozpis_final_tisk!I119>0,rozpis_final_tisk!I119) -> FALSE | J36: =IF(rozpis_final_tisk!J119>0,rozpis_final_tisk!J119) -> FALSE | K36: =IF(rozpis_final_tisk!K119>0,rozpis_final_tisk!K119) -> FALSE | L36: =IF(rozpis_final_tisk!L119>0,rozpis_final_tisk!L119) -> FALSE | M36: =IF(rozpis_final_tisk!M119>0,rozpis_final_tisk!M119) -> FALSE | N36: =IF(rozpis_final_tisk!N119>0,rozpis_final_tisk!N119) -> FALSE | O36: =IF(rozpis_final_tisk!O119>0,rozpis_final_tisk!O119) -> FALSE | P36: =IF(rozpis_final_tisk!P119>0,rozpis_final_tisk!P119) ->  | X36: =IF(D36=rozpis_příprava!$E$20,F36+rozpis_final_tisk!$E$2,IF('celkové umístění'!D36<>rozpis_příprava!$E$20,F36)) -> FALSE | Y36: =IF(D36=rozpis_příprava!$E$20,G36+rozpis_final_tisk!$E$2,IF('celkové umístění'!D36<>rozpis_příprava!$E$20,G36)) -> FALSE | Z36: =IF(D36=rozpis_příprava!$E$20,H36+rozpis_final_tisk!$E$2,IF('celkové umístění'!D36<>rozpis_příprava!$E$20,H36)) -> FALSE | AA36: =IF(D36=rozpis_příprava!$E$20,I36+rozpis_final_tisk!$E$2,IF('celkové umístění'!D36<>rozpis_příprava!$E$20,I36)) -> FALSE | AB36: =IF(D36=rozpis_příprava!$E$20,J36+rozpis_final_tisk!$E$2,IF('celkové umístění'!D36<>rozpis_příprava!$E$20,J36)) -> FALSE | AC36: =IF(D36=rozpis_příprava!$E$20,K36+rozpis_final_tisk!$E$2,IF('celkové umístění'!D36<>rozpis_příprava!$E$20,K36)) -> FALSE | AD36: =IF(D36=rozpis_příprava!$E$20,L36+rozpis_final_tisk!$E$2,IF('celkové umístění'!D36<>rozpis_příprava!$E$20,L36)) -> FALSE | AE36: =IF(D36=rozpis_příprava!$E$20,M36+rozpis_final_tisk!$E$2,IF('celkové umístění'!D36<>rozpis_příprava!$E$20,M36)) -> FALSE | AG36: =IF(#REF!<>rozpis_final_tisk!$E$2,'celkové umístění'!#REF!,IF('celkové umístění'!#REF!=rozpis_final_tisk!$E$2,"text")) ->  | AH36: =IF(X36<>rozpis_final_tisk!$E$2,'celkové umístění'!X36,IF('celkové umístění'!X36=rozpis_final_tisk!$E$2,"text")) -> text | AI36: =IF(Y36<>rozpis_final_tisk!$E$2,'celkové umístění'!Y36,IF('celkové umístění'!Y36=rozpis_final_tisk!$E$2,"text")) -> text | AJ36: =IF(Z36<>rozpis_final_tisk!$E$2,'celkové umístění'!Z36,IF('celkové umístění'!Z36=rozpis_final_tisk!$E$2,"text")) -> text | AK36: =IF(AA36<>rozpis_final_tisk!$E$2,'celkové umístění'!AA36,IF('celkové umístění'!AA36=rozpis_final_tisk!$E$2,"text")) -> text | AL36: =IF(AB36<>rozpis_final_tisk!$E$2,'celkové umístění'!AB36,IF('celkové umístění'!AB36=rozpis_final_tisk!$E$2,"text")) -> text | AM36: =IF(AC36<>rozpis_final_tisk!$E$2,'celkové umístění'!AC36,IF('celkové umístění'!AC36=rozpis_final_tisk!$E$2,"text")) -> text | AN36: =IF(AD36<>rozpis_final_tisk!$E$2,'celkové umístění'!AD36,IF('celkové umístění'!AD36=rozpis_final_tisk!$E$2,"text")) -> text | AO36: =IF(AE36<>rozpis_final_tisk!$E$2,'celkové umístění'!AE36,IF('celkové umístění'!AE36=rozpis_final_tisk!$E$2,"text")) -> text | AR36: =IF(AQ36=MAX($AQ$10:$AQ$41),P36,0) ->  | AS36: =IF(AR36=MAX($AR$10:$AR$41),D36) ->  | AT36: =IF(O36=FALSE,"Na",MIN(AG36:AO36)) -> Na | AU36: =IF(AT36=MIN($AT$10:$AT$41),P36,"Na") ->  | AV36: =IF(AU36=MIN($AU$10:$AU$41),D36) ->  | AY36: =IF(AX36<>FALSE,D36) ->  | AZ36: =IF(AY36<>rozpis_příprava!$E$20,IF(AY36<>FALSE,'celkové umístění'!C36)) ->  | BA36: =IF(#REF!>1,IF(#REF!<>FALSE,AZ36)) ->  | BH36: =IF(BG36<>FALSE,D36) ->  | BI36: =IF(BH36=rozpis_příprava!$E$20,'celkové umístění'!C36) ->  | BK36: =IF(#REF!=FALSE,BI36) ->  | BM36: 0
B37: 28. | C37: =rozpis_final_tisk!B118 -> 0 | D37: =rozpis_final_tisk!D118 -> 0 | E37: =IF(rozpis_final_tisk!E118>0,rozpis_final_tisk!E118) -> FALSE | F37: =IF(rozpis_final_tisk!F118>0,rozpis_final_tisk!F118) -> FALSE | G37: =IF(rozpis_final_tisk!G118>0,rozpis_final_tisk!G118) -> FALSE | H37: =IF(rozpis_final_tisk!H118>0,rozpis_final_tisk!H118) -> FALSE | I37: =IF(rozpis_final_tisk!I118>0,rozpis_final_tisk!I118) -> FALSE | J37: =IF(rozpis_final_tisk!J118>0,rozpis_final_tisk!J118) -> FALSE | K37: =IF(rozpis_final_tisk!K118>0,rozpis_final_tisk!K118) -> FALSE | L37: =IF(rozpis_final_tisk!L118>0,rozpis_final_tisk!L118) -> FALSE | M37: =IF(rozpis_final_tisk!M118>0,rozpis_final_tisk!M118) -> FALSE | N37: =IF(rozpis_final_tisk!N118>0,rozpis_final_tisk!N118) -> FALSE | O37: =IF(rozpis_final_tisk!O118>0,rozpis_final_tisk!O118) -> FALSE | P37: =IF(rozpis_final_tisk!P118>0,rozpis_final_tisk!P118) ->  | X37: =IF(D37=rozpis_příprava!$E$20,F37+rozpis_final_tisk!$E$2,IF('celkové umístění'!D37<>rozpis_příprava!$E$20,F37)) -> FALSE | Y37: =IF(D37=rozpis_příprava!$E$20,G37+rozpis_final_tisk!$E$2,IF('celkové umístění'!D37<>rozpis_příprava!$E$20,G37)) -> FALSE | Z37: =IF(D37=rozpis_příprava!$E$20,H37+rozpis_final_tisk!$E$2,IF('celkové umístění'!D37<>rozpis_příprava!$E$20,H37)) -> FALSE | AA37: =IF(D37=rozpis_příprava!$E$20,I37+rozpis_final_tisk!$E$2,IF('celkové umístění'!D37<>rozpis_příprava!$E$20,I37)) -> FALSE | AB37: =IF(D37=rozpis_příprava!$E$20,J37+rozpis_final_tisk!$E$2,IF('celkové umístění'!D37<>rozpis_příprava!$E$20,J37)) -> FALSE | AC37: =IF(D37=rozpis_příprava!$E$20,K37+rozpis_final_tisk!$E$2,IF('celkové umístění'!D37<>rozpis_příprava!$E$20,K37)) -> FALSE | AD37: =IF(D37=rozpis_příprava!$E$20,L37+rozpis_final_tisk!$E$2,IF('celkové umístění'!D37<>rozpis_příprava!$E$20,L37)) -> FALSE | AE37: =IF(D37=rozpis_příprava!$E$20,M37+rozpis_final_tisk!$E$2,IF('celkové umístění'!D37<>rozpis_příprava!$E$20,M37)) -> FALSE | AG37: =IF(#REF!<>rozpis_final_tisk!$E$2,'celkové umístění'!#REF!,IF('celkové umístění'!#REF!=rozpis_final_tisk!$E$2,"text")) ->  | AH37: =IF(X37<>rozpis_final_tisk!$E$2,'celkové umístění'!X37,IF('celkové umístění'!X37=rozpis_final_tisk!$E$2,"text")) -> text | AI37: =IF(Y37<>rozpis_final_tisk!$E$2,'celkové umístění'!Y37,IF('celkové umístění'!Y37=rozpis_final_tisk!$E$2,"text")) -> text | AJ37: =IF(Z37<>rozpis_final_tisk!$E$2,'celkové umístění'!Z37,IF('celkové umístění'!Z37=rozpis_final_tisk!$E$2,"text")) -> text | AK37: =IF(AA37<>rozpis_final_tisk!$E$2,'celkové umístění'!AA37,IF('celkové umístění'!AA37=rozpis_final_tisk!$E$2,"text")) -> text | AL37: =IF(AB37<>rozpis_final_tisk!$E$2,'celkové umístění'!AB37,IF('celkové umístění'!AB37=rozpis_final_tisk!$E$2,"text")) -> text | AM37: =IF(AC37<>rozpis_final_tisk!$E$2,'celkové umístění'!AC37,IF('celkové umístění'!AC37=rozpis_final_tisk!$E$2,"text")) -> text | AN37: =IF(AD37<>rozpis_final_tisk!$E$2,'celkové umístění'!AD37,IF('celkové umístění'!AD37=rozpis_final_tisk!$E$2,"text")) -> text | AO37: =IF(AE37<>rozpis_final_tisk!$E$2,'celkové umístění'!AE37,IF('celkové umístění'!AE37=rozpis_final_tisk!$E$2,"text")) -> text | AR37: =IF(AQ37=MAX($AQ$10:$AQ$41),P37,0) ->  | AS37: =IF(AR37=MAX($AR$10:$AR$41),D37) ->  | AT37: =IF(O37=FALSE,"Na",MIN(AG37:AO37)) -> Na | AU37: =IF(AT37=MIN($AT$10:$AT$41),P37,"Na") ->  | AV37: =IF(AU37=MIN($AU$10:$AU$41),D37) ->  | AY37: =IF(AX37<>FALSE,D37) ->  | AZ37: =IF(AY37<>rozpis_příprava!$E$20,IF(AY37<>FALSE,'celkové umístění'!C37)) ->  | BA37: =IF(#REF!>1,IF(#REF!<>FALSE,AZ37)) ->  | BH37: =IF(BG37<>FALSE,D37) ->  | BI37: =IF(BH37=rozpis_příprava!$E$20,'celkové umístění'!C37) ->  | BK37: =IF(#REF!=FALSE,BI37) ->  | BM37: 0
B38: 29. | C38: =rozpis_final_tisk!B138 -> 0 | D38: =rozpis_final_tisk!D138 -> 0 | E38: =IF(rozpis_final_tisk!E138>0,rozpis_final_tisk!E138) -> FALSE | F38: =IF(rozpis_final_tisk!F138>0,rozpis_final_tisk!F138) -> FALSE | G38: =IF(rozpis_final_tisk!G138>0,rozpis_final_tisk!G138) -> FALSE | H38: =IF(rozpis_final_tisk!H138>0,rozpis_final_tisk!H138) -> FALSE | I38: =IF(rozpis_final_tisk!I138>0,rozpis_final_tisk!I138) -> FALSE | J38: =IF(rozpis_final_tisk!J138>0,rozpis_final_tisk!J138) -> FALSE | K38: =IF(rozpis_final_tisk!K138>0,rozpis_final_tisk!K138) -> FALSE | L38: =IF(rozpis_final_tisk!L138>0,rozpis_final_tisk!L138) -> FALSE | M38: =IF(rozpis_final_tisk!M138>0,rozpis_final_tisk!M138) -> FALSE | N38: =IF(rozpis_final_tisk!N138>0,rozpis_final_tisk!N138) -> FALSE | O38: =IF(rozpis_final_tisk!O138>0,rozpis_final_tisk!O138) -> FALSE | P38: =IF(rozpis_final_tisk!P138>0,rozpis_final_tisk!P138) ->  | X38: =IF(D38=rozpis_příprava!$E$20,F38+rozpis_final_tisk!$E$2,IF('celkové umístění'!D38<>rozpis_příprava!$E$20,F38)) -> FALSE | Y38: =IF(D38=rozpis_příprava!$E$20,G38+rozpis_final_tisk!$E$2,IF('celkové umístění'!D38<>rozpis_příprava!$E$20,G38)) -> FALSE | Z38: =IF(D38=rozpis_příprava!$E$20,H38+rozpis_final_tisk!$E$2,IF('celkové umístění'!D38<>rozpis_příprava!$E$20,H38)) -> FALSE | AA38: =IF(D38=rozpis_příprava!$E$20,I38+rozpis_final_tisk!$E$2,IF('celkové umístění'!D38<>rozpis_příprava!$E$20,I38)) -> FALSE | AB38: =IF(D38=rozpis_příprava!$E$20,J38+rozpis_final_tisk!$E$2,IF('celkové umístění'!D38<>rozpis_příprava!$E$20,J38)) -> FALSE | AC38: =IF(D38=rozpis_příprava!$E$20,K38+rozpis_final_tisk!$E$2,IF('celkové umístění'!D38<>rozpis_příprava!$E$20,K38)) -> FALSE | AD38: =IF(D38=rozpis_příprava!$E$20,L38+rozpis_final_tisk!$E$2,IF('celkové umístění'!D38<>rozpis_příprava!$E$20,L38)) -> FALSE | AE38: =IF(D38=rozpis_příprava!$E$20,M38+rozpis_final_tisk!$E$2,IF('celkové umístění'!D38<>rozpis_příprava!$E$20,M38)) -> FALSE | AG38: =IF(#REF!<>rozpis_final_tisk!$E$2,'celkové umístění'!#REF!,IF('celkové umístění'!#REF!=rozpis_final_tisk!$E$2,"text")) ->  | AH38: =IF(X38<>rozpis_final_tisk!$E$2,'celkové umístění'!X38,IF('celkové umístění'!X38=rozpis_final_tisk!$E$2,"text")) -> text | AI38: =IF(Y38<>rozpis_final_tisk!$E$2,'celkové umístění'!Y38,IF('celkové umístění'!Y38=rozpis_final_tisk!$E$2,"text")) -> text | AJ38: =IF(Z38<>rozpis_final_tisk!$E$2,'celkové umístění'!Z38,IF('celkové umístění'!Z38=rozpis_final_tisk!$E$2,"text")) -> text | AK38: =IF(AA38<>rozpis_final_tisk!$E$2,'celkové umístění'!AA38,IF('celkové umístění'!AA38=rozpis_final_tisk!$E$2,"text")) -> text | AL38: =IF(AB38<>rozpis_final_tisk!$E$2,'celkové umístění'!AB38,IF('celkové umístění'!AB38=rozpis_final_tisk!$E$2,"text")) -> text | AM38: =IF(AC38<>rozpis_final_tisk!$E$2,'celkové umístění'!AC38,IF('celkové umístění'!AC38=rozpis_final_tisk!$E$2,"text")) -> text | AN38: =IF(AD38<>rozpis_final_tisk!$E$2,'celkové umístění'!AD38,IF('celkové umístění'!AD38=rozpis_final_tisk!$E$2,"text")) -> text | AO38: =IF(AE38<>rozpis_final_tisk!$E$2,'celkové umístění'!AE38,IF('celkové umístění'!AE38=rozpis_final_tisk!$E$2,"text")) -> text | AR38: =IF(AQ38=MAX($AQ$10:$AQ$41),P38,0) ->  | AS38: =IF(AR38=MAX($AR$10:$AR$41),D38) ->  | AT38: =IF(O38=FALSE,"Na",MIN(AG38:AO38)) -> Na | AU38: =IF(AT38=MIN($AT$10:$AT$41),P38,"Na") ->  | AV38: =IF(AU38=MIN($AU$10:$AU$41),D38) ->  | AY38: =IF(AX38<>FALSE,D38) ->  | AZ38: =IF(AY38<>rozpis_příprava!$E$20,IF(AY38<>FALSE,'celkové umístění'!C38)) ->  | BA38: =IF(#REF!>1,IF(#REF!<>FALSE,AZ38)) ->  | BH38: =IF(BG38<>FALSE,D38) ->  | BI38: =IF(BH38=rozpis_příprava!$E$20,'celkové umístění'!C38) ->  | BK38: =IF(#REF!=FALSE,BI38) ->  | BM38: 0
B39: 30. | C39: =rozpis_final_tisk!B137 -> 0 | D39: =rozpis_final_tisk!D137 -> 0 | E39: =IF(rozpis_final_tisk!E137>0,rozpis_final_tisk!E137) -> FALSE | F39: =IF(rozpis_final_tisk!F137>0,rozpis_final_tisk!F137) -> FALSE | G39: =IF(rozpis_final_tisk!G137>0,rozpis_final_tisk!G137) -> FALSE | H39: =IF(rozpis_final_tisk!H137>0,rozpis_final_tisk!H137) -> FALSE | I39: =IF(rozpis_final_tisk!I137>0,rozpis_final_tisk!I137) -> FALSE | J39: =IF(rozpis_final_tisk!J137>0,rozpis_final_tisk!J137) -> FALSE | K39: =IF(rozpis_final_tisk!K137>0,rozpis_final_tisk!K137) -> FALSE | L39: =IF(rozpis_final_tisk!L137>0,rozpis_final_tisk!L137) -> FALSE | M39: =IF(rozpis_final_tisk!M137>0,rozpis_final_tisk!M137) -> FALSE | N39: =IF(rozpis_final_tisk!N137>0,rozpis_final_tisk!N137) -> FALSE | O39: =IF(rozpis_final_tisk!O137>0,rozpis_final_tisk!O137) -> FALSE | P39: =IF(rozpis_final_tisk!P137>0,rozpis_final_tisk!P137) ->  | X39: =IF(D39=rozpis_příprava!$E$20,F39+rozpis_final_tisk!$E$2,IF('celkové umístění'!D39<>rozpis_příprava!$E$20,F39)) -> FALSE | Y39: =IF(D39=rozpis_příprava!$E$20,G39+rozpis_final_tisk!$E$2,IF('celkové umístění'!D39<>rozpis_příprava!$E$20,G39)) -> FALSE | Z39: =IF(D39=rozpis_příprava!$E$20,H39+rozpis_final_tisk!$E$2,IF('celkové umístění'!D39<>rozpis_příprava!$E$20,H39)) -> FALSE | AA39: =IF(D39=rozpis_příprava!$E$20,I39+rozpis_final_tisk!$E$2,IF('celkové umístění'!D39<>rozpis_příprava!$E$20,I39)) -> FALSE | AB39: =IF(D39=rozpis_příprava!$E$20,J39+rozpis_final_tisk!$E$2,IF('celkové umístění'!D39<>rozpis_příprava!$E$20,J39)) -> FALSE | AC39: =IF(D39=rozpis_příprava!$E$20,K39+rozpis_final_tisk!$E$2,IF('celkové umístění'!D39<>rozpis_příprava!$E$20,K39)) -> FALSE | AD39: =IF(D39=rozpis_příprava!$E$20,L39+rozpis_final_tisk!$E$2,IF('celkové umístění'!D39<>rozpis_příprava!$E$20,L39)) -> FALSE | AE39: =IF(D39=rozpis_příprava!$E$20,M39+rozpis_final_tisk!$E$2,IF('celkové umístění'!D39<>rozpis_příprava!$E$20,M39)) -> FALSE | AG39: =IF(#REF!<>rozpis_final_tisk!$E$2,'celkové umístění'!#REF!,IF('celkové umístění'!#REF!=rozpis_final_tisk!$E$2,"text")) ->  | AH39: =IF(X39<>rozpis_final_tisk!$E$2,'celkové umístění'!X39,IF('celkové umístění'!X39=rozpis_final_tisk!$E$2,"text")) -> text | AI39: =IF(Y39<>rozpis_final_tisk!$E$2,'celkové umístění'!Y39,IF('celkové umístění'!Y39=rozpis_final_tisk!$E$2,"text")) -> text | AJ39: =IF(Z39<>rozpis_final_tisk!$E$2,'celkové umístění'!Z39,IF('celkové umístění'!Z39=rozpis_final_tisk!$E$2,"text")) -> text | AK39: =IF(AA39<>rozpis_final_tisk!$E$2,'celkové umístění'!AA39,IF('celkové umístění'!AA39=rozpis_final_tisk!$E$2,"text")) -> text | AL39: =IF(AB39<>rozpis_final_tisk!$E$2,'celkové umístění'!AB39,IF('celkové umístění'!AB39=rozpis_final_tisk!$E$2,"text")) -> text | AM39: =IF(AC39<>rozpis_final_tisk!$E$2,'celkové umístění'!AC39,IF('celkové umístění'!AC39=rozpis_final_tisk!$E$2,"text")) -> text | AN39: =IF(AD39<>rozpis_final_tisk!$E$2,'celkové umístění'!AD39,IF('celkové umístění'!AD39=rozpis_final_tisk!$E$2,"text")) -> text | AO39: =IF(AE39<>rozpis_final_tisk!$E$2,'celkové umístění'!AE39,IF('celkové umístění'!AE39=rozpis_final_tisk!$E$2,"text")) -> text | AR39: =IF(AQ39=MAX($AQ$10:$AQ$41),P39,0) ->  | AS39: =IF(AR39=MAX($AR$10:$AR$41),D39) ->  | AT39: =IF(O39=FALSE,"Na",MIN(AG39:AO39)) -> Na | AU39: =IF(AT39=MIN($AT$10:$AT$41),P39,"Na") ->  | AV39: =IF(AU39=MIN($AU$10:$AU$41),D39) ->  | AY39: =IF(AX39<>FALSE,D39) ->  | AZ39: =IF(AY39<>rozpis_příprava!$E$20,IF(AY39<>FALSE,'celkové umístění'!C39)) ->  | BA39: =IF(#REF!>1,IF(#REF!<>FALSE,AZ39)) ->  | BH39: =IF(BG39<>FALSE,D39) ->  | BI39: =IF(BH39=rozpis_příprava!$E$20,'celkové umístění'!C39) ->  | BK39: =IF(#REF!=FALSE,BI39) ->  | BM39: 0
B40: 31. | C40: =rozpis_final_tisk!B121 -> 0 | D40: =rozpis_final_tisk!D121 -> 0 | E40: =IF(rozpis_final_tisk!E121>0,rozpis_final_tisk!E121) -> FALSE | F40: =IF(rozpis_final_tisk!F121>0,rozpis_final_tisk!F121) -> FALSE | G40: =IF(rozpis_final_tisk!G121>0,rozpis_final_tisk!G121) -> FALSE | H40: =IF(rozpis_final_tisk!H121>0,rozpis_final_tisk!H121) -> FALSE | I40: =IF(rozpis_final_tisk!I121>0,rozpis_final_tisk!I121) -> FALSE | J40: =IF(rozpis_final_tisk!J121>0,rozpis_final_tisk!J121) -> FALSE | K40: =IF(rozpis_final_tisk!K121>0,rozpis_final_tisk!K121) -> FALSE | L40: =IF(rozpis_final_tisk!L121>0,rozpis_final_tisk!L121) -> FALSE | M40: =IF(rozpis_final_tisk!M121>0,rozpis_final_tisk!M121) -> FALSE | N40: =IF(rozpis_final_tisk!N121>0,rozpis_final_tisk!N121) -> FALSE | O40: =IF(rozpis_final_tisk!O121>0,rozpis_final_tisk!O121) -> FALSE | P40: =IF(rozpis_final_tisk!P121>0,rozpis_final_tisk!P121) ->  | X40: =IF(D40=rozpis_příprava!$E$20,F40+rozpis_final_tisk!$E$2,IF('celkové umístění'!D40<>rozpis_příprava!$E$20,F40)) -> FALSE | Y40: =IF(D40=rozpis_příprava!$E$20,G40+rozpis_final_tisk!$E$2,IF('celkové umístění'!D40<>rozpis_příprava!$E$20,G40)) -> FALSE | Z40: =IF(D40=rozpis_příprava!$E$20,H40+rozpis_final_tisk!$E$2,IF('celkové umístění'!D40<>rozpis_příprava!$E$20,H40)) -> FALSE | AA40: =IF(D40=rozpis_příprava!$E$20,I40+rozpis_final_tisk!$E$2,IF('celkové umístění'!D40<>rozpis_příprava!$E$20,I40)) -> FALSE | AB40: =IF(D40=rozpis_příprava!$E$20,J40+rozpis_final_tisk!$E$2,IF('celkové umístění'!D40<>rozpis_příprava!$E$20,J40)) -> FALSE | AC40: =IF(D40=rozpis_příprava!$E$20,K40+rozpis_final_tisk!$E$2,IF('celkové umístění'!D40<>rozpis_příprava!$E$20,K40)) -> FALSE | AD40: =IF(D40=rozpis_příprava!$E$20,L40+rozpis_final_tisk!$E$2,IF('celkové umístění'!D40<>rozpis_příprava!$E$20,L40)) -> FALSE | AE40: =IF(D40=rozpis_příprava!$E$20,M40+rozpis_final_tisk!$E$2,IF('celkové umístění'!D40<>rozpis_příprava!$E$20,M40)) -> FALSE | AG40: =IF(#REF!<>rozpis_final_tisk!$E$2,'celkové umístění'!#REF!,IF('celkové umístění'!#REF!=rozpis_final_tisk!$E$2,"text")) ->  | AH40: =IF(X40<>rozpis_final_tisk!$E$2,'celkové umístění'!X40,IF('celkové umístění'!X40=rozpis_final_tisk!$E$2,"text")) -> text | AI40: =IF(Y40<>rozpis_final_tisk!$E$2,'celkové umístění'!Y40,IF('celkové umístění'!Y40=rozpis_final_tisk!$E$2,"text")) -> text | AJ40: =IF(Z40<>rozpis_final_tisk!$E$2,'celkové umístění'!Z40,IF('celkové umístění'!Z40=rozpis_final_tisk!$E$2,"text")) -> text | AK40: =IF(AA40<>rozpis_final_tisk!$E$2,'celkové umístění'!AA40,IF('celkové umístění'!AA40=rozpis_final_tisk!$E$2,"text")) -> text | AL40: =IF(AB40<>rozpis_final_tisk!$E$2,'celkové umístění'!AB40,IF('celkové umístění'!AB40=rozpis_final_tisk!$E$2,"text")) -> text | AM40: =IF(AC40<>rozpis_final_tisk!$E$2,'celkové umístění'!AC40,IF('celkové umístění'!AC40=rozpis_final_tisk!$E$2,"text")) -> text | AN40: =IF(AD40<>rozpis_final_tisk!$E$2,'celkové umístění'!AD40,IF('celkové umístění'!AD40=rozpis_final_tisk!$E$2,"text")) -> text | AO40: =IF(AE40<>rozpis_final_tisk!$E$2,'celkové umístění'!AE40,IF('celkové umístění'!AE40=rozpis_final_tisk!$E$2,"text")) -> text | AR40: =IF(AQ40=MAX($AQ$10:$AQ$41),P40,0) ->  | AS40: =IF(AR40=MAX($AR$10:$AR$41),D40) ->  | AT40: =IF(O40=FALSE,"Na",MIN(AG40:AO40)) -> Na | AU40: =IF(AT40=MIN($AT$10:$AT$41),P40,"Na") ->  | AV40: =IF(AU40=MIN($AU$10:$AU$41),D40) ->  | AY40: =IF(AX40<>FALSE,D40) ->  | AZ40: =IF(AY40<>rozpis_příprava!$E$20,IF(AY40<>FALSE,'celkové umístění'!C40)) ->  | BA40: =IF(#REF!>1,IF(#REF!<>FALSE,AZ40)) ->  | BH40: =IF(BG40<>FALSE,D40) ->  | BI40: =IF(BH40=rozpis_příprava!$E$20,'celkové umístění'!C40) ->  | BK40: =IF(#REF!=FALSE,BI40) ->  | BM40: 0
B41: 32. | C41: =rozpis_final_tisk!B120 -> 0 | D41: =rozpis_final_tisk!D120 -> 0 | E41: =IF(rozpis_final_tisk!E120>0,rozpis_final_tisk!E120) -> FALSE | F41: =IF(rozpis_final_tisk!F120>0,rozpis_final_tisk!F120) -> FALSE | G41: =IF(rozpis_final_tisk!G120>0,rozpis_final_tisk!G120) -> FALSE | H41: =IF(rozpis_final_tisk!H120>0,rozpis_final_tisk!H120) -> FALSE | I41: =IF(rozpis_final_tisk!I120>0,rozpis_final_tisk!I120) -> FALSE | J41: =IF(rozpis_final_tisk!J120>0,rozpis_final_tisk!J120) -> FALSE | K41: =IF(rozpis_final_tisk!K120>0,rozpis_final_tisk!K120) -> FALSE | L41: =IF(rozpis_final_tisk!L120>0,rozpis_final_tisk!L120) -> FALSE | M41: =IF(rozpis_final_tisk!M120>0,rozpis_final_tisk!M120) -> FALSE | N41: =IF(rozpis_final_tisk!N120>0,rozpis_final_tisk!N120) -> FALSE | O41: =IF(rozpis_final_tisk!O120>0,rozpis_final_tisk!O120) -> FALSE | P41: =IF(rozpis_final_tisk!P120>0,rozpis_final_tisk!P120) ->  | X41: =IF(D41=rozpis_příprava!$E$20,F41+rozpis_final_tisk!$E$2,IF('celkové umístění'!D41<>rozpis_příprava!$E$20,F41)) -> FALSE | Y41: =IF(D41=rozpis_příprava!$E$20,G41+rozpis_final_tisk!$E$2,IF('celkové umístění'!D41<>rozpis_příprava!$E$20,G41)) -> FALSE | Z41: =IF(D41=rozpis_příprava!$E$20,H41+rozpis_final_tisk!$E$2,IF('celkové umístění'!D41<>rozpis_příprava!$E$20,H41)) -> FALSE | AA41: =IF(D41=rozpis_příprava!$E$20,I41+rozpis_final_tisk!$E$2,IF('celkové umístění'!D41<>rozpis_příprava!$E$20,I41)) -> FALSE | AB41: =IF(D41=rozpis_příprava!$E$20,J41+rozpis_final_tisk!$E$2,IF('celkové umístění'!D41<>rozpis_příprava!$E$20,J41)) -> FALSE | AC41: =IF(D41=rozpis_příprava!$E$20,K41+rozpis_final_tisk!$E$2,IF('celkové umístění'!D41<>rozpis_příprava!$E$20,K41)) -> FALSE | AD41: =IF(D41=rozpis_příprava!$E$20,L41+rozpis_final_tisk!$E$2,IF('celkové umístění'!D41<>rozpis_příprava!$E$20,L41)) -> FALSE | AE41: =IF(D41=rozpis_příprava!$E$20,M41+rozpis_final_tisk!$E$2,IF('celkové umístění'!D41<>rozpis_příprava!$E$20,M41)) -> FALSE | AG41: =IF(#REF!<>rozpis_final_tisk!$E$2,'celkové umístění'!#REF!,IF('celkové umístění'!#REF!=rozpis_final_tisk!$E$2,"text")) ->  | AH41: =IF(X41<>rozpis_final_tisk!$E$2,'celkové umístění'!X41,IF('celkové umístění'!X41=rozpis_final_tisk!$E$2,"text")) -> text | AI41: =IF(Y41<>rozpis_final_tisk!$E$2,'celkové umístění'!Y41,IF('celkové umístění'!Y41=rozpis_final_tisk!$E$2,"text")) -> text | AJ41: =IF(Z41<>rozpis_final_tisk!$E$2,'celkové umístění'!Z41,IF('celkové umístění'!Z41=rozpis_final_tisk!$E$2,"text")) -> text | AK41: =IF(AA41<>rozpis_final_tisk!$E$2,'celkové umístění'!AA41,IF('celkové umístění'!AA41=rozpis_final_tisk!$E$2,"text")) -> text | AL41: =IF(AB41<>rozpis_final_tisk!$E$2,'celkové umístění'!AB41,IF('celkové umístění'!AB41=rozpis_final_tisk!$E$2,"text")) -> text | AM41: =IF(AC41<>rozpis_final_tisk!$E$2,'celkové umístění'!AC41,IF('celkové umístění'!AC41=rozpis_final_tisk!$E$2,"text")) -> text | AN41: =IF(AD41<>rozpis_final_tisk!$E$2,'celkové umístění'!AD41,IF('celkové umístění'!AD41=rozpis_final_tisk!$E$2,"text")) -> text | AO41: =IF(AE41<>rozpis_final_tisk!$E$2,'celkové umístění'!AE41,IF('celkové umístění'!AE41=rozpis_final_tisk!$E$2,"text")) -> text | AR41: =IF(AQ41=MAX($AQ$10:$AQ$41),P41,0) ->  | AS41: =IF(AR41=MAX($AR$10:$AR$41),D41) ->  | AT41: =IF(O41=FALSE,"Na",MIN(AG41:AO41)) -> Na | AU41: =IF(AT41=MIN($AT$10:$AT$41),P41,"Na") ->  | AV41: =IF(AU41=MIN($AU$10:$AU$41),D41) ->  | AY41: =IF(AX41<>FALSE,D41) ->  | AZ41: =IF(AY41<>rozpis_příprava!$E$20,IF(AY41<>FALSE,'celkové umístění'!C41)) ->  | BA41: =IF(#REF!>1,IF(#REF!<>FALSE,AZ41)) ->  | BH41: =IF(BG41<>FALSE,D41) ->  | BI41: =IF(BH41=rozpis_příprava!$E$20,'celkové umístění'!C41) ->  | BK41: =IF(#REF!=FALSE,BI41) ->  | BM41: 0
BM42: 0
BM43: 0
BM44: 0
BM45: 0
BM46: 0
BM47: 0
BM48: 0
BM49: 0
BM50: 0
BM51: 0
BM52: 0
BM53: 0
BM54: 0
BM55: 0
BM56: 0
BM57: 0
BM58: 0
BM59: 0
BM60: 0
BM61: 0
BM62: 0
BM63: 0
BM64: 0
BM65: 0
BM66: 0
BM67: 0
BM68: 0
BM69: 0
BM70: 0
BM71: 0
BM72: 0
BM73: 0
B74: Součet | E74: =SUM(E10:E41) -> 2214 | F74: 2009 | G74: 2221 | H74: 2110 | I74: 2153 | J74: 1092 | K74: 0 | L74: 0 | M74: 0 | O74: =IF(SUM(E74:M74)=0,"",SUM(E74:M74)) -> 11799 | AU74: Slouží ke stanovení MAX a MIN her jednotlivých hráčů. V případě shody MAX a MIN výsledků u více hráčů VYBERE toho hráče, který v případě MAX her má vyšší celkový průměrný výsledek než druhý hráč a v případě MIN her má nižší průměrný výsledek než druhý hráč.
B75: Průměr | E75: =IFERROR(AVERAGE(E10:E41),"") -> 138.375 | F75: 125.5625 | G75: 138.8125 | H75: 131.875 | I75: 143.5333333 | J75: 156 | P75: =IF(O74="","",AVERAGE(E10:M41)) -> 137.1976744 | BE75: Pomocné tabulky, které zachovávají pouze jedinečné hodnoty jednotlivých hráčů v případě shodného výsledku ve vícero hrách - neslouží již k žádné funkci přenesení hodnot v tomto souboru. Ponecháno zde pouze jako příklad k jinému využití.
B78: KATEGORIE "M" a "P"
B79: Pořadí | C79: Jméno | D79: kat. | E79: 1. hra | F79: 2. hra | G79: 3.hra | H79: 4. hra | I79: 5. hra | J79: 6. hra | K79: 7. hra | L79: 8. hra | M79: 9. hra | N79: HK | O79: SOUČET | P79: PRŮMĚR | AU79: MAX | AX79: MIN
B80: 1. | C80: =INDIRECT("C"&SMALL(IF($D$10:$D$73=$D80,ROW($D$10:$D$73),""),ROW()-79)) -> Mojka V. | D80: =IFERROR(INDIRECT("D"&SMALL(IF($D$10:$D$73<>"ž",ROW($D$10:$D$73),""),ROW()-79)),"") -> P | E80: =N(INDIRECT("E"&SMALL(IF($D$10:$D$73=$D80,ROW($D$10:$D$73),""),ROW()-79))) -> 158 | F80: =N(INDIRECT("F"&SMALL(IF($D$10:$D$73=$D80,ROW($D$10:$D$73),""),ROW()-79))) -> 146 | G80: =N(INDIRECT("G"&SMALL(IF($D$10:$D$73=$D80,ROW($D$10:$D$73),""),ROW()-79))) -> 214 | H80: =N(INDIRECT("H"&SMALL(IF($D$10:$D$73=$D80,ROW($D$10:$D$73),""),ROW()-79))) -> 179 | I80: =N(INDIRECT("I"&SMALL(IF($D$10:$D$73=$D80,ROW($D$10:$D$73),""),ROW()-79))) -> 223 | J80: =N(INDIRECT("J"&SMALL(IF($D$10:$D$73=$D80,ROW($D$10:$D$73),""),ROW()-79))) -> 0 | K80: =N(INDIRECT("K"&SMALL(IF($D$10:$D$73=$D80,ROW($D$10:$D$73),""),ROW()-79))) -> 0 | L80: =N(INDIRECT("L"&SMALL(IF($D$10:$D$73=$D80,ROW($D$10:$D$73),""),ROW()-79))) -> 0 | M80: =N(INDIRECT("M"&SMALL(IF($D$10:$D$73=$D80,ROW($D$10:$D$73),""),ROW()-79))) -> 0 | N80: =N(INDIRECT("N"&SMALL(IF($D$10:$D$73=$D80,ROW($D$10:$D$73),""),ROW()-79))) -> 0 | O80: =N(INDIRECT("O"&SMALL(IF($D$10:$D$73=$D80,ROW($D$10:$D$73),""),ROW()-79))) -> 920 | P80: =N(INDIRECT("P"&SMALL(IF($D$10:$D$73=$D80,ROW($D$10:$D$73),""),ROW()-79))) -> 184 | X80: =IF(F80=0,"",F80) -> 146 | Y80: =IF(G80=0,"",G80) -> 214 | Z80: =IF(H80=0,"",H80) -> 179 | AA80: =IF(I80=0,"",I80) -> 223 | AB80: =IF(J80=0,"",J80) ->  | AC80: =IF(K80=0,"",K80) ->  | AD80: =IF(L80=0,"",L80) ->  | AE80: =IF(M80=0,"",M80) ->  | AU80: =MAX(X80:AE80) -> 223 | AV80: =IF(AU80=MAX($AU$80:$AU$89),P80,0) ->  | AX80: =IF(O80=0,"Na",MIN(X80:AE80)) -> 146 | AY80: =IF(AX80=MIN(AX$80:AX$89),P80,"Na") ->  | BE80: =IFERROR(INDEX(E80:M80, MATCH(0, COUNTIF($BD80:BD80, E80:M80), 0)),"") -> 158 | BF80: =IFERROR(INDEX(E80:M80, MATCH(0, COUNTIF($BD80:BE80, E80:M80), 0)),"") -> 146 | BG80: =IFERROR(INDEX(E80:M80, MATCH(0, COUNTIF($BD80:BF80, E80:M80), 0)),"") -> 214 | BH80: =IFERROR(INDEX(E80:M80, MATCH(0, COUNTIF($BD80:BG80, E80:M80), 0)),"") -> 179 | BI80: =IFERROR(INDEX(E80:M80, MATCH(0, COUNTIF($BD80:BH80, E80:M80), 0)),"") -> 223 | BJ80: =IFERROR(INDEX(E80:M80, MATCH(0, COUNTIF($BD80:BI80, E80:M80), 0)),"") -> 0 | BK80: =IFERROR(INDEX(E80:M80, MATCH(0, COUNTIF($BD80:BJ80, E80:M80), 0)),"") ->  | BL80: =IFERROR(INDEX(E80:M80, MATCH(0, COUNTIF($BD80:BK80, E80:M80), 0)),"") ->  | BM80: =IFERROR(INDEX(E80:M80, MATCH(0, COUNTIF($BD80:BL80, E80:M80), 0)),"") -> 
B81: 2. | C81: =INDIRECT("C"&SMALL(IF($D$10:$D$73=$D81,ROW($D$10:$D$73),""),ROW()-79)) -> David D. | D81: =IFERROR(INDIRECT("D"&SMALL(IF($D$10:$D$73<>"ž",ROW($D$10:$D$73),""),ROW()-79)),"") -> M | E81: =N(INDIRECT("E"&SMALL(IF($D$10:$D$73=$D81,ROW($D$10:$D$73),""),ROW()-79))) -> 139 | F81: =N(INDIRECT("F"&SMALL(IF($D$10:$D$73=$D81,ROW($D$10:$D$73),""),ROW()-79))) -> 144 | G81: =N(INDIRECT("G"&SMALL(IF($D$10:$D$73=$D81,ROW($D$10:$D$73),""),ROW()-79))) -> 152 | H81: =N(INDIRECT("H"&SMALL(IF($D$10:$D$73=$D81,ROW($D$10:$D$73),""),ROW()-79))) -> 114 | I81: =N(INDIRECT("I"&SMALL(IF($D$10:$D$73=$D81,ROW($D$10:$D$73),""),ROW()-79))) -> 167 | J81: =N(INDIRECT("J"&SMALL(IF($D$10:$D$73=$D81,ROW($D$10:$D$73),""),ROW()-79))) -> 0 | K81: =N(INDIRECT("K"&SMALL(IF($D$10:$D$73=$D81,ROW($D$10:$D$73),""),ROW()-79))) -> 0 | L81: =N(INDIRECT("L"&SMALL(IF($D$10:$D$73=$D81,ROW($D$10:$D$73),""),ROW()-79))) -> 0 | M81: =N(INDIRECT("M"&SMALL(IF($D$10:$D$73=$D81,ROW($D$10:$D$73),""),ROW()-79))) -> 0 | N81: =N(INDIRECT("N"&SMALL(IF($D$10:$D$73=$D81,ROW($D$10:$D$73),""),ROW()-79))) -> 0 | O81: =N(INDIRECT("O"&SMALL(IF($D$10:$D$73=$D81,ROW($D$10:$D$73),""),ROW()-79))) -> 716 | P81: =N(INDIRECT("P"&SMALL(IF($D$10:$D$73=$D81,ROW($D$10:$D$73),""),ROW()-79))) -> 143.2 | X81: =IF(F81=0,"",F81) -> 144 | Y81: =IF(G81=0,"",G81) -> 152 | Z81: =IF(H81=0,"",H81) -> 114 | AA81: =IF(I81=0,"",I81) -> 167 | AB81: =IF(J81=0,"",J81) ->  | AC81: =IF(K81=0,"",K81) ->  | AD81: =IF(L81=0,"",L81) ->  | AE81: =IF(M81=0,"",M81) ->  | AU81: =MAX(X81:AE81) -> 167 | AV81: =IF(AU81=MAX($AU$80:$AU$89),P81,0) ->  | AX81: =IF(O81=0,"Na",MIN(X81:AE81)) -> 114 | AY81: =IF(AX81=MIN(AX$80:AX$89),P81,"Na") ->  | BE81: =IFERROR(INDEX(E81:M81, MATCH(0, COUNTIF($BD81:BD81, E81:M81), 0)),"") -> 139 | BF81: =IFERROR(INDEX(E81:M81, MATCH(0, COUNTIF($BD81:BE81, E81:M81), 0)),"") -> 144 | BG81: =IFERROR(INDEX(E81:M81, MATCH(0, COUNTIF($BD81:BF81, E81:M81), 0)),"") -> 152 | BH81: =IFERROR(INDEX(E81:M81, MATCH(0, COUNTIF($BD81:BG81, E81:M81), 0)),"") -> 114 | BI81: =IFERROR(INDEX(E81:M81, MATCH(0, COUNTIF($BD81:BH81, E81:M81), 0)),"") -> 167 | BJ81: =IFERROR(INDEX(E81:M81, MATCH(0, COUNTIF($BD81:BI81, E81:M81), 0)),"") -> 0 | BK81: =IFERROR(INDEX(E81:M81, MATCH(0, COUNTIF($BD81:BJ81, E81:M81), 0)),"") ->  | BL81: =IFERROR(INDEX(E81:M81, MATCH(0, COUNTIF($BD81:BK81, E81:M81), 0)),"") ->  | BM81: =IFERROR(INDEX(E81:M81, MATCH(0, COUNTIF($BD81:BL81, E81:M81), 0)),"") -> 
B82: 3. | C82: =INDIRECT("C"&SMALL(IF($D$10:$D$73=$D82,ROW($D$10:$D$73),""),ROW()-79)) -> Honza R. | D82: =IFERROR(INDIRECT("D"&SMALL(IF($D$10:$D$73<>"ž",ROW($D$10:$D$73),""),ROW()-79)),"") -> P | E82: =N(INDIRECT("E"&SMALL(IF($D$10:$D$73=$D82,ROW($D$10:$D$73),""),ROW()-79))) -> 186 | F82: =N(INDIRECT("F"&SMALL(IF($D$10:$D$73=$D82,ROW($D$10:$D$73),""),ROW()-79))) -> 145 | G82: =N(INDIRECT("G"&SMALL(IF($D$10:$D$73=$D82,ROW($D$10:$D$73),""),ROW()-79))) -> 179 | H82: =N(INDIRECT("H"&SMALL(IF($D$10:$D$73=$D82,ROW($D$10:$D$73),""),ROW()-79))) -> 158 | I82: =N(INDIRECT("I"&SMALL(IF($D$10:$D$73=$D82,ROW($D$10:$D$73),""),ROW()-79))) -> 152 | J82: =N(INDIRECT("J"&SMALL(IF($D$10:$D$73=$D82,ROW($D$10:$D$73),""),ROW()-79))) -> 160 | K82: =N(INDIRECT("K"&SMALL(IF($D$10:$D$73=$D82,ROW($D$10:$D$73),""),ROW()-79))) -> 0 | L82: =N(INDIRECT("L"&SMALL(IF($D$10:$D$73=$D82,ROW($D$10:$D$73),""),ROW()-79))) -> 0 | M82: =N(INDIRECT("M"&SMALL(IF($D$10:$D$73=$D82,ROW($D$10:$D$73),""),ROW()-79))) -> 0 | N82: =N(INDIRECT("N"&SMALL(IF($D$10:$D$73=$D82,ROW($D$10:$D$73),""),ROW()-79))) -> 0 | O82: =N(INDIRECT("O"&SMALL(IF($D$10:$D$73=$D82,ROW($D$10:$D$73),""),ROW()-79))) -> 980 | P82: =N(INDIRECT("P"&SMALL(IF($D$10:$D$73=$D82,ROW($D$10:$D$73),""),ROW()-79))) -> 163.3333333 | X82: =IF(F82=0,"",F82) -> 145 | Y82: =IF(G82=0,"",G82) -> 179 | Z82: =IF(H82=0,"",H82) -> 158 | AA82: =IF(I82=0,"",I82) -> 152 | AB82: =IF(J82=0,"",J82) -> 160 | AC82: =IF(K82=0,"",K82) ->  | AD82: =IF(L82=0,"",L82) ->  | AE82: =IF(M82=0,"",M82) ->  | AU82: =MAX(X82:AE82) -> 179 | AV82: =IF(AU82=MAX($AU$80:$AU$89),P82,0) ->  | AX82: =IF(O82=0,"Na",MIN(X82:AE82)) -> 145 | AY82: =IF(AX82=MIN(AX$80:AX$89),P82,"Na") ->  | BE82: =IFERROR(INDEX(E82:M82, MATCH(0, COUNTIF($BD82:BD82, E82:M82), 0)),"") -> 186 | BF82: =IFERROR(INDEX(E82:M82, MATCH(0, COUNTIF($BD82:BE82, E82:M82), 0)),"") -> 145 | BG82: =IFERROR(INDEX(E82:M82, MATCH(0, COUNTIF($BD82:BF82, E82:M82), 0)),"") -> 179 | BH82: =IFERROR(INDEX(E82:M82, MATCH(0, COUNTIF($BD82:BG82, E82:M82), 0)),"") -> 158 | BI82: =IFERROR(INDEX(E82:M82, MATCH(0, COUNTIF($BD82:BH82, E82:M82), 0)),"") -> 152 | BJ82: =IFERROR(INDEX(E82:M82, MATCH(0, COUNTIF($BD82:BI82, E82:M82), 0)),"") -> 160 | BK82: =IFERROR(INDEX(E82:M82, MATCH(0, COUNTIF($BD82:BJ82, E82:M82), 0)),"") -> 0 | BL82: =IFERROR(INDEX(E82:M82, MATCH(0, COUNTIF($BD82:BK82, E82:M82), 0)),"") ->  | BM82: =IFERROR(INDEX(E82:M82, MATCH(0, COUNTIF($BD82:BL82, E82:M82), 0)),"") -> 
B83: 4. | C83: =INDIRECT("C"&SMALL(IF($D$10:$D$73=$D83,ROW($D$10:$D$73),""),ROW()-79)) -> Jarda H. | D83: =IFERROR(INDIRECT("D"&SMALL(IF($D$10:$D$73<>"ž",ROW($D$10:$D$73),""),ROW()-79)),"") -> P | E83: =N(INDIRECT("E"&SMALL(IF($D$10:$D$73=$D83,ROW($D$10:$D$73),""),ROW()-79))) -> 170 | F83: =N(INDIRECT("F"&SMALL(IF($D$10:$D$73=$D83,ROW($D$10:$D$73),""),ROW()-79))) -> 150 | G83: =N(INDIRECT("G"&SMALL(IF($D$10:$D$73=$D83,ROW($D$10:$D$73),""),ROW()-79))) -> 201 | H83: =N(INDIRECT("H"&SMALL(IF($D$10:$D$73=$D83,ROW($D$10:$D$73),""),ROW()-79))) -> 141 | I83: =N(INDIRECT("I"&SMALL(IF($D$10:$D$73=$D83,ROW($D$10:$D$73),""),ROW()-79))) -> 145 | J83: =N(INDIRECT("J"&SMALL(IF($D$10:$D$73=$D83,ROW($D$10:$D$73),""),ROW()-79))) -> 0 | K83: =N(INDIRECT("K"&SMALL(IF($D$10:$D$73=$D83,ROW($D$10:$D$73),""),ROW()-79))) -> 0 | L83: =N(INDIRECT("L"&SMALL(IF($D$10:$D$73=$D83,ROW($D$10:$D$73),""),ROW()-79))) -> 0 | M83: =N(INDIRECT("M"&SMALL(IF($D$10:$D$73=$D83,ROW($D$10:$D$73),""),ROW()-79))) -> 0 | N83: =N(INDIRECT("N"&SMALL(IF($D$10:$D$73=$D83,ROW($D$10:$D$73),""),ROW()-79))) -> 0 | O83: =N(INDIRECT("O"&SMALL(IF($D$10:$D$73=$D83,ROW($D$10:$D$73),""),ROW()-79))) -> 807 | P83: =N(INDIRECT("P"&SMALL(IF($D$10:$D$73=$D83,ROW($D$10:$D$73),""),ROW()-79))) -> 161.4 | X83: =IF(F83=0,"",F83) -> 150 | Y83: =IF(G83=0,"",G83) -> 201 | Z83: =IF(H83=0,"",H83) -> 141 | AA83: =IF(I83=0,"",I83) -> 145 | AB83: =IF(J83=0,"",J83) ->  | AC83: =IF(K83=0,"",K83) ->  | AD83: =IF(L83=0,"",L83) ->  | AE83: =IF(M83=0,"",M83) ->  | AU83: =MAX(X83:AE83) -> 201 | AV83: =IF(AU83=MAX($AU$80:$AU$89),P83,0) ->  | AX83: =IF(O83=0,"Na",MIN(X83:AE83)) -> 141 | AY83: =IF(AX83=MIN(AX$80:AX$89),P83,"Na") ->  | BE83: =IFERROR(INDEX(E83:M83, MATCH(0, COUNTIF($BD83:BD83, E83:M83), 0)),"") -> 170 | BF83: =IFERROR(INDEX(E83:M83, MATCH(0, COUNTIF($BD83:BE83, E83:M83), 0)),"") -> 150 | BG83: =IFERROR(INDEX(E83:M83, MATCH(0, COUNTIF($BD83:BF83, E83:M83), 0)),"") -> 201 | BH83: =IFERROR(INDEX(E83:M83, MATCH(0, COUNTIF($BD83:BG83, E83:M83), 0)),"") -> 141 | BI83: =IFERROR(INDEX(E83:M83, MATCH(0, COUNTIF($BD83:BH83, E83:M83), 0)),"") -> 145 | BJ83: =IFERROR(INDEX(E83:M83, MATCH(0, COUNTIF($BD83:BI83, E83:M83), 0)),"") -> 0 | BK83: =IFERROR(INDEX(E83:M83, MATCH(0, COUNTIF($BD83:BJ83, E83:M83), 0)),"") ->  | BL83: =IFERROR(INDEX(E83:M83, MATCH(0, COUNTIF($BD83:BK83, E83:M83), 0)),"") ->  | BM83: =IFERROR(INDEX(E83:M83, MATCH(0, COUNTIF($BD83:BL83, E83:M83), 0)),"") -> 
B84: 5. | C84: =INDIRECT("C"&SMALL(IF($D$10:$D$73=$D84,ROW($D$10:$D$73),""),ROW()-79)) ->  | D84: =IFERROR(INDIRECT("D"&SMALL(IF($D$10:$D$73<>"ž",ROW($D$10:$D$73),""),ROW()-79)),"") -> P | E84: =N(INDIRECT("E"&SMALL(IF($D$10:$D$73=$D84,ROW($D$10:$D$73),""),ROW()-79))) ->  | F84: =N(INDIRECT("F"&SMALL(IF($D$10:$D$73=$D84,ROW($D$10:$D$73),""),ROW()-79))) ->  | G84: =N(INDIRECT("G"&SMALL(IF($D$10:$D$73=$D84,ROW($D$10:$D$73),""),ROW()-79))) ->  | H84: =N(INDIRECT("H"&SMALL(IF($D$10:$D$73=$D84,ROW($D$10:$D$73),""),ROW()-79))) ->  | I84: =N(INDIRECT("I"&SMALL(IF($D$10:$D$73=$D84,ROW($D$10:$D$73),""),ROW()-79))) ->  | J84: =N(INDIRECT("J"&SMALL(IF($D$10:$D$73=$D84,ROW($D$10:$D$73),""),ROW()-79))) ->  | K84: =N(INDIRECT("K"&SMALL(IF($D$10:$D$73=$D84,ROW($D$10:$D$73),""),ROW()-79))) ->  | L84: =N(INDIRECT("L"&SMALL(IF($D$10:$D$73=$D84,ROW($D$10:$D$73),""),ROW()-79))) ->  | M84: =N(INDIRECT("M"&SMALL(IF($D$10:$D$73=$D84,ROW($D$10:$D$73),""),ROW()-79))) ->  | N84: =N(INDIRECT("N"&SMALL(IF($D$10:$D$73=$D84,ROW($D$10:$D$73),""),ROW()-79))) ->  | O84: =N(INDIRECT("O"&SMALL(IF($D$10:$D$73=$D84,ROW($D$10:$D$73),""),ROW()-79))) ->  | P84: =N(INDIRECT("P"&SMALL(IF($D$10:$D$73=$D84,ROW($D$10:$D$73),""),ROW()-79))) ->  | X84: =IF(F84=0,"",F84) ->  | Y84: =IF(G84=0,"",G84) ->  | Z84: =IF(H84=0,"",H84) ->  | AA84: =IF(I84=0,"",I84) ->  | AB84: =IF(J84=0,"",J84) ->  | AC84: =IF(K84=0,"",K84) ->  | AD84: =IF(L84=0,"",L84) ->  | AE84: =IF(M84=0,"",M84) ->  | AU84: =MAX(X84:AE84) ->  | AV84: =IF(AU84=MAX($AU$80:$AU$89),P84,0) ->  | AX84: =IF(O84=0,"Na",MIN(X84:AE84)) ->  | AY84: =IF(AX84=MIN(AX$80:AX$89),P84,"Na") ->  | BE84: =IFERROR(INDEX(E84:M84, MATCH(0, COUNTIF($BD84:BD84, E84:M84), 0)),"") ->  | BF84: =IFERROR(INDEX(E84:M84, MATCH(0, COUNTIF($BD84:BE84, E84:M84), 0)),"") ->  | BG84: =IFERROR(INDEX(E84:M84, MATCH(0, COUNTIF($BD84:BF84, E84:M84), 0)),"") ->  | BH84: =IFERROR(INDEX(E84:M84, MATCH(0, COUNTIF($BD84:BG84, E84:M84), 0)),"") ->  | BI84: =IFERROR(INDEX(E84:M84, MATCH(0, COUNTIF($BD84:BH84, E84:M84), 0)),"") ->  | BJ84: =IFERROR(INDEX(E84:M84, MATCH(0, COUNTIF($BD84:BI84, E84:M84), 0)),"") ->  | BK84: =IFERROR(INDEX(E84:M84, MATCH(0, COUNTIF($BD84:BJ84, E84:M84), 0)),"") ->  | BL84: =IFERROR(INDEX(E84:M84, MATCH(0, COUNTIF($BD84:BK84, E84:M84), 0)),"") ->  | BM84: =IFERROR(INDEX(E84:M84, MATCH(0, COUNTIF($BD84:BL84, E84:M84), 0)),"") -> 
B85: 6. | C85: =INDIRECT("C"&SMALL(IF($D$10:$D$73=$D85,ROW($D$10:$D$73),""),ROW()-79)) ->  | D85: =IFERROR(INDIRECT("D"&SMALL(IF($D$10:$D$73<>"ž",ROW($D$10:$D$73),""),ROW()-79)),"") -> M | E85: =N(INDIRECT("E"&SMALL(IF($D$10:$D$73=$D85,ROW($D$10:$D$73),""),ROW()-79))) ->  | F85: =N(INDIRECT("F"&SMALL(IF($D$10:$D$73=$D85,ROW($D$10:$D$73),""),ROW()-79))) ->  | G85: =N(INDIRECT("G"&SMALL(IF($D$10:$D$73=$D85,ROW($D$10:$D$73),""),ROW()-79))) ->  | H85: =N(INDIRECT("H"&SMALL(IF($D$10:$D$73=$D85,ROW($D$10:$D$73),""),ROW()-79))) ->  | I85: =N(INDIRECT("I"&SMALL(IF($D$10:$D$73=$D85,ROW($D$10:$D$73),""),ROW()-79))) ->  | J85: =N(INDIRECT("J"&SMALL(IF($D$10:$D$73=$D85,ROW($D$10:$D$73),""),ROW()-79))) ->  | K85: =N(INDIRECT("K"&SMALL(IF($D$10:$D$73=$D85,ROW($D$10:$D$73),""),ROW()-79))) ->  | L85: =N(INDIRECT("L"&SMALL(IF($D$10:$D$73=$D85,ROW($D$10:$D$73),""),ROW()-79))) ->  | M85: =N(INDIRECT("M"&SMALL(IF($D$10:$D$73=$D85,ROW($D$10:$D$73),""),ROW()-79))) ->  | N85: =N(INDIRECT("N"&SMALL(IF($D$10:$D$73=$D85,ROW($D$10:$D$73),""),ROW()-79))) ->  | O85: =N(INDIRECT("O"&SMALL(IF($D$10:$D$73=$D85,ROW($D$10:$D$73),""),ROW()-79))) ->  | P85: =N(INDIRECT("P"&SMALL(IF($D$10:$D$73=$D85,ROW($D$10:$D$73),""),ROW()-79))) ->  | X85: =IF(F85=0,"",F85) ->  | Y85: =IF(G85=0,"",G85) ->  | Z85: =IF(H85=0,"",H85) ->  | AA85: =IF(I85=0,"",I85) ->  | AB85: =IF(J85=0,"",J85) ->  | AC85: =IF(K85=0,"",K85) ->  | AD85: =IF(L85=0,"",L85) ->  | AE85: =IF(M85=0,"",M85) ->  | AU85: =MAX(X85:AE85) ->  | AV85: =IF(AU85=MAX($AU$80:$AU$89),P85,0) ->  | AX85: =IF(O85=0,"Na",MIN(X85:AE85)) ->  | AY85: =IF(AX85=MIN(AX$80:AX$89),P85,"Na") ->  | BE85: =IFERROR(INDEX(E85:M85, MATCH(0, COUNTIF($BD85:BD85, E85:M85), 0)),"") ->  | BF85: =IFERROR(INDEX(E85:M85, MATCH(0, COUNTIF($BD85:BE85, E85:M85), 0)),"") ->  | BG85: =IFERROR(INDEX(E85:M85, MATCH(0, COUNTIF($BD85:BF85, E85:M85), 0)),"") ->  | BH85: =IFERROR(INDEX(E85:M85, MATCH(0, COUNTIF($BD85:BG85, E85:M85), 0)),"") ->  | BI85: =IFERROR(INDEX(E85:M85, MATCH(0, COUNTIF($BD85:BH85, E85:M85), 0)),"") ->  | BJ85: =IFERROR(INDEX(E85:M85, MATCH(0, COUNTIF($BD85:BI85, E85:M85), 0)),"") ->  | BK85: =IFERROR(INDEX(E85:M85, MATCH(0, COUNTIF($BD85:BJ85, E85:M85), 0)),"") ->  | BL85: =IFERROR(INDEX(E85:M85, MATCH(0, COUNTIF($BD85:BK85, E85:M85), 0)),"") ->  | BM85: =IFERROR(INDEX(E85:M85, MATCH(0, COUNTIF($BD85:BL85, E85:M85), 0)),"") -> 
B86: 7. | C86: =INDIRECT("C"&SMALL(IF($D$10:$D$73=$D86,ROW($D$10:$D$73),""),ROW()-79)) ->  | D86: =IFERROR(INDIRECT("D"&SMALL(IF($D$10:$D$73<>"ž",ROW($D$10:$D$73),""),ROW()-79)),"") -> M | E86: =N(INDIRECT("E"&SMALL(IF($D$10:$D$73=$D86,ROW($D$10:$D$73),""),ROW()-79))) ->  | F86: =N(INDIRECT("F"&SMALL(IF($D$10:$D$73=$D86,ROW($D$10:$D$73),""),ROW()-79))) ->  | G86: =N(INDIRECT("G"&SMALL(IF($D$10:$D$73=$D86,ROW($D$10:$D$73),""),ROW()-79))) ->  | H86: =N(INDIRECT("H"&SMALL(IF($D$10:$D$73=$D86,ROW($D$10:$D$73),""),ROW()-79))) ->  | I86: =N(INDIRECT("I"&SMALL(IF($D$10:$D$73=$D86,ROW($D$10:$D$73),""),ROW()-79))) ->  | J86: =N(INDIRECT("J"&SMALL(IF($D$10:$D$73=$D86,ROW($D$10:$D$73),""),ROW()-79))) ->  | K86: =N(INDIRECT("K"&SMALL(IF($D$10:$D$73=$D86,ROW($D$10:$D$73),""),ROW()-79))) ->  | L86: =N(INDIRECT("L"&SMALL(IF($D$10:$D$73=$D86,ROW($D$10:$D$73),""),ROW()-79))) ->  | M86: =N(INDIRECT("M"&SMALL(IF($D$10:$D$73=$D86,ROW($D$10:$D$73),""),ROW()-79))) ->  | N86: =N(INDIRECT("N"&SMALL(IF($D$10:$D$73=$D86,ROW($D$10:$D$73),""),ROW()-79))) ->  | O86: =N(INDIRECT("O"&SMALL(IF($D$10:$D$73=$D86,ROW($D$10:$D$73),""),ROW()-79))) ->  | P86: =N(INDIRECT("P"&SMALL(IF($D$10:$D$73=$D86,ROW($D$10:$D$73),""),ROW()-79))) ->  | X86: =IF(F86=0,"",F86) ->  | Y86: =IF(G86=0,"",G86) ->  | Z86: =IF(H86=0,"",H86) ->  | AA86: =IF(I86=0,"",I86) ->  | AB86: =IF(J86=0,"",J86) ->  | AC86: =IF(K86=0,"",K86) ->  | AD86: =IF(L86=0,"",L86) ->  | AE86: =IF(M86=0,"",M86) ->  | AU86: =MAX(X86:AE86) ->  | AV86: =IF(AU86=MAX($AU$80:$AU$89),P86,0) ->  | AX86: =IF(O86=0,"Na",MIN(X86:AE86)) ->  | AY86: =IF(AX86=MIN(AX$80:AX$89),P86,"Na") ->  | BE86: =IFERROR(INDEX(E86:M86, MATCH(0, COUNTIF($BD86:BD86, E86:M86), 0)),"") ->  | BF86: =IFERROR(INDEX(E86:M86, MATCH(0, COUNTIF($BD86:BE86, E86:M86), 0)),"") ->  | BG86: =IFERROR(INDEX(E86:M86, MATCH(0, COUNTIF($BD86:BF86, E86:M86), 0)),"") ->  | BH86: =IFERROR(INDEX(E86:M86, MATCH(0, COUNTIF($BD86:BG86, E86:M86), 0)),"") ->  | BI86: =IFERROR(INDEX(E86:M86, MATCH(0, COUNTIF($BD86:BH86, E86:M86), 0)),"") ->  | BJ86: =IFERROR(INDEX(E86:M86, MATCH(0, COUNTIF($BD86:BI86, E86:M86), 0)),"") ->  | BK86: =IFERROR(INDEX(E86:M86, MATCH(0, COUNTIF($BD86:BJ86, E86:M86), 0)),"") ->  | BL86: =IFERROR(INDEX(E86:M86, MATCH(0, COUNTIF($BD86:BK86, E86:M86), 0)),"") ->  | BM86: =IFERROR(INDEX(E86:M86, MATCH(0, COUNTIF($BD86:BL86, E86:M86), 0)),"") -> 
B87: 8. | C87: =INDIRECT("C"&SMALL(IF($D$10:$D$73=$D87,ROW($D$10:$D$73),""),ROW()-79)) -> 0 | D87: =IFERROR(INDIRECT("D"&SMALL(IF($D$10:$D$73<>"ž",ROW($D$10:$D$73),""),ROW()-79)),"") -> 0 | E87: =N(INDIRECT("E"&SMALL(IF($D$10:$D$73=$D87,ROW($D$10:$D$73),""),ROW()-79))) -> 0 | F87: =N(INDIRECT("F"&SMALL(IF($D$10:$D$73=$D87,ROW($D$10:$D$73),""),ROW()-79))) -> 0 | G87: =N(INDIRECT("G"&SMALL(IF($D$10:$D$73=$D87,ROW($D$10:$D$73),""),ROW()-79))) -> 0 | H87: =N(INDIRECT("H"&SMALL(IF($D$10:$D$73=$D87,ROW($D$10:$D$73),""),ROW()-79))) -> 0 | I87: =N(INDIRECT("I"&SMALL(IF($D$10:$D$73=$D87,ROW($D$10:$D$73),""),ROW()-79))) -> 0 | J87: =N(INDIRECT("J"&SMALL(IF($D$10:$D$73=$D87,ROW($D$10:$D$73),""),ROW()-79))) -> 0 | K87: =N(INDIRECT("K"&SMALL(IF($D$10:$D$73=$D87,ROW($D$10:$D$73),""),ROW()-79))) -> 0 | L87: =N(INDIRECT("L"&SMALL(IF($D$10:$D$73=$D87,ROW($D$10:$D$73),""),ROW()-79))) -> 0 | M87: =N(INDIRECT("M"&SMALL(IF($D$10:$D$73=$D87,ROW($D$10:$D$73),""),ROW()-79))) -> 0 | N87: =N(INDIRECT("N"&SMALL(IF($D$10:$D$73=$D87,ROW($D$10:$D$73),""),ROW()-79))) -> 0 | O87: =N(INDIRECT("O"&SMALL(IF($D$10:$D$73=$D87,ROW($D$10:$D$73),""),ROW()-79))) -> 0 | P87: =N(INDIRECT("P"&SMALL(IF($D$10:$D$73=$D87,ROW($D$10:$D$73),""),ROW()-79))) ->  | X87: =IF(F87=0,"",F87) ->  | Y87: =IF(G87=0,"",G87) ->  | Z87: =IF(H87=0,"",H87) ->  | AA87: =IF(I87=0,"",I87) ->  | AB87: =IF(J87=0,"",J87) ->  | AC87: =IF(K87=0,"",K87) ->  | AD87: =IF(L87=0,"",L87) ->  | AE87: =IF(M87=0,"",M87) ->  | AU87: =MAX(X87:AE87) -> 0 | AV87: =IF(AU87=MAX($AU$80:$AU$89),P87,0) ->  | AX87: =IF(O87=0,"Na",MIN(X87:AE87)) -> Na | AY87: =IF(AX87=MIN(AX$80:AX$89),P87,"Na") ->  | BE87: =IFERROR(INDEX(E87:M87, MATCH(0, COUNTIF($BD87:BD87, E87:M87), 0)),"") -> 0 | BF87: =IFERROR(INDEX(E87:M87, MATCH(0, COUNTIF($BD87:BE87, E87:M87), 0)),"") ->  | BG87: =IFERROR(INDEX(E87:M87, MATCH(0, COUNTIF($BD87:BF87, E87:M87), 0)),"") ->  | BH87: =IFERROR(INDEX(E87:M87, MATCH(0, COUNTIF($BD87:BG87, E87:M87), 0)),"") ->  | BI87: =IFERROR(INDEX(E87:M87, MATCH(0, COUNTIF($BD87:BH87, E87:M87), 0)),"") ->  | BJ87: =IFERROR(INDEX(E87:M87, MATCH(0, COUNTIF($BD87:BI87, E87:M87), 0)),"") ->  | BK87: =IFERROR(INDEX(E87:M87, MATCH(0, COUNTIF($BD87:BJ87, E87:M87), 0)),"") ->  | BL87: =IFERROR(INDEX(E87:M87, MATCH(0, COUNTIF($BD87:BK87, E87:M87), 0)),"") ->  | BM87: =IFERROR(INDEX(E87:M87, MATCH(0, COUNTIF($BD87:BL87, E87:M87), 0)),"") -> 
B88: 9. | C88: =INDIRECT("C"&SMALL(IF($D$10:$D$73=$D88,ROW($D$10:$D$73),""),ROW()-79)) -> 0 | D88: =IFERROR(INDIRECT("D"&SMALL(IF($D$10:$D$73<>"ž",ROW($D$10:$D$73),""),ROW()-79)),"") -> 0 | E88: =N(INDIRECT("E"&SMALL(IF($D$10:$D$73=$D88,ROW($D$10:$D$73),""),ROW()-79))) -> 0 | F88: =N(INDIRECT("F"&SMALL(IF($D$10:$D$73=$D88,ROW($D$10:$D$73),""),ROW()-79))) -> 0 | G88: =N(INDIRECT("G"&SMALL(IF($D$10:$D$73=$D88,ROW($D$10:$D$73),""),ROW()-79))) -> 0 | H88: =N(INDIRECT("H"&SMALL(IF($D$10:$D$73=$D88,ROW($D$10:$D$73),""),ROW()-79))) -> 0 | I88: =N(INDIRECT("I"&SMALL(IF($D$10:$D$73=$D88,ROW($D$10:$D$73),""),ROW()-79))) -> 0 | J88: =N(INDIRECT("J"&SMALL(IF($D$10:$D$73=$D88,ROW($D$10:$D$73),""),ROW()-79))) -> 0 | K88: =N(INDIRECT("K"&SMALL(IF($D$10:$D$73=$D88,ROW($D$10:$D$73),""),ROW()-79))) -> 0 | L88: =N(INDIRECT("L"&SMALL(IF($D$10:$D$73=$D88,ROW($D$10:$D$73),""),ROW()-79))) -> 0 | M88: =N(INDIRECT("M"&SMALL(IF($D$10:$D$73=$D88,ROW($D$10:$D$73),""),ROW()-79))) -> 0 | N88: =N(INDIRECT("N"&SMALL(IF($D$10:$D$73=$D88,ROW($D$10:$D$73),""),ROW()-79))) -> 0 | O88: =N(INDIRECT("O"&SMALL(IF($D$10:$D$73=$D88,ROW($D$10:$D$73),""),ROW()-79))) -> 0 | P88: =N(INDIRECT("P"&SMALL(IF($D$10:$D$73=$D88,ROW($D$10:$D$73),""),ROW()-79))) ->  | X88: =IF(F88=0,"",F88) ->  | Y88: =IF(G88=0,"",G88) ->  | Z88: =IF(H88=0,"",H88) ->  | AA88: =IF(I88=0,"",I88) ->  | AB88: =IF(J88=0,"",J88) ->  | AC88: =IF(K88=0,"",K88) ->  | AD88: =IF(L88=0,"",L88) ->  | AE88: =IF(M88=0,"",M88) ->  | AU88: =MAX(X88:AE88) -> 0 | AV88: =IF(AU88=MAX($AU$80:$AU$89),P88,0) ->  | AX88: =IF(O88=0,"Na",MIN(X88:AE88)) -> Na | AY88: =IF(AX88=MIN(AX$80:AX$89),P88,"Na") ->  | BE88: =IFERROR(INDEX(E88:M88, MATCH(0, COUNTIF($BD88:BD88, E88:M88), 0)),"") -> 0 | BF88: =IFERROR(INDEX(E88:M88, MATCH(0, COUNTIF($BD88:BE88, E88:M88), 0)),"") ->  | BG88: =IFERROR(INDEX(E88:M88, MATCH(0, COUNTIF($BD88:BF88, E88:M88), 0)),"") ->  | BH88: =IFERROR(INDEX(E88:M88, MATCH(0, COUNTIF($BD88:BG88, E88:M88), 0)),"") ->  | BI88: =IFERROR(INDEX(E88:M88, MATCH(0, COUNTIF($BD88:BH88, E88:M88), 0)),"") ->  | BJ88: =IFERROR(INDEX(E88:M88, MATCH(0, COUNTIF($BD88:BI88, E88:M88), 0)),"") ->  | BK88: =IFERROR(INDEX(E88:M88, MATCH(0, COUNTIF($BD88:BJ88, E88:M88), 0)),"") ->  | BL88: =IFERROR(INDEX(E88:M88, MATCH(0, COUNTIF($BD88:BK88, E88:M88), 0)),"") ->  | BM88: =IFERROR(INDEX(E88:M88, MATCH(0, COUNTIF($BD88:BL88, E88:M88), 0)),"") -> 
B89: 10. | C89: =INDIRECT("C"&SMALL(IF($D$10:$D$73=$D89,ROW($D$10:$D$73),""),ROW()-79)) -> 0 | D89: =IFERROR(INDIRECT("D"&SMALL(IF($D$10:$D$73<>"ž",ROW($D$10:$D$73),""),ROW()-79)),"") -> 0 | E89: =N(INDIRECT("E"&SMALL(IF($D$10:$D$73=$D89,ROW($D$10:$D$73),""),ROW()-79))) -> 0 | F89: =N(INDIRECT("F"&SMALL(IF($D$10:$D$73=$D89,ROW($D$10:$D$73),""),ROW()-79))) -> 0 | G89: =N(INDIRECT("G"&SMALL(IF($D$10:$D$73=$D89,ROW($D$10:$D$73),""),ROW()-79))) -> 0 | H89: =N(INDIRECT("H"&SMALL(IF($D$10:$D$73=$D89,ROW($D$10:$D$73),""),ROW()-79))) -> 0 | I89: =N(INDIRECT("I"&SMALL(IF($D$10:$D$73=$D89,ROW($D$10:$D$73),""),ROW()-79))) -> 0 | J89: =N(INDIRECT("J"&SMALL(IF($D$10:$D$73=$D89,ROW($D$10:$D$73),""),ROW()-79))) -> 0 | K89: =N(INDIRECT("K"&SMALL(IF($D$10:$D$73=$D89,ROW($D$10:$D$73),""),ROW()-79))) -> 0 | L89: =N(INDIRECT("L"&SMALL(IF($D$10:$D$73=$D89,ROW($D$10:$D$73),""),ROW()-79))) -> 0 | M89: =N(INDIRECT("M"&SMALL(IF($D$10:$D$73=$D89,ROW($D$10:$D$73),""),ROW()-79))) -> 0 | N89: =N(INDIRECT("N"&SMALL(IF($D$10:$D$73=$D89,ROW($D$10:$D$73),""),ROW()-79))) -> 0 | O89: =N(INDIRECT("O"&SMALL(IF($D$10:$D$73=$D89,ROW($D$10:$D$73),""),ROW()-79))) -> 0 | P89: =N(INDIRECT("P"&SMALL(IF($D$10:$D$73=$D89,ROW($D$10:$D$73),""),ROW()-79))) ->  | X89: =IF(F89=0,"",F89) ->  | Y89: =IF(G89=0,"",G89) ->  | Z89: =IF(H89=0,"",H89) ->  | AA89: =IF(I89=0,"",I89) ->  | AB89: =IF(J89=0,"",J89) ->  | AC89: =IF(K89=0,"",K89) ->  | AD89: =IF(L89=0,"",L89) ->  | AE89: =IF(M89=0,"",M89) ->  | AU89: =MAX(X89:AE89) -> 0 | AV89: =IF(AU89=MAX($AU$80:$AU$89),P89,0) ->  | AX89: =IF(O89=0,"Na",MIN(X89:AE89)) -> Na | AY89: =IF(AX89=MIN(AX$80:AX$89),P89,"Na") ->  | BE89: =IFERROR(INDEX(E89:M89, MATCH(0, COUNTIF($BD89:BD89, E89:M89), 0)),"") -> 0 | BF89: =IFERROR(INDEX(E89:M89, MATCH(0, COUNTIF($BD89:BE89, E89:M89), 0)),"") ->  | BG89: =IFERROR(INDEX(E89:M89, MATCH(0, COUNTIF($BD89:BF89, E89:M89), 0)),"") ->  | BH89: =IFERROR(INDEX(E89:M89, MATCH(0, COUNTIF($BD89:BG89, E89:M89), 0)),"") ->  | BI89: =IFERROR(INDEX(E89:M89, MATCH(0, COUNTIF($BD89:BH89, E89:M89), 0)),"") ->  | BJ89: =IFERROR(INDEX(E89:M89, MATCH(0, COUNTIF($BD89:BI89, E89:M89), 0)),"") ->  | BK89: =IFERROR(INDEX(E89:M89, MATCH(0, COUNTIF($BD89:BJ89, E89:M89), 0)),"") ->  | BL89: =IFERROR(INDEX(E89:M89, MATCH(0, COUNTIF($BD89:BK89, E89:M89), 0)),"") ->  | BM89: =IFERROR(INDEX(E89:M89, MATCH(0, COUNTIF($BD89:BL89, E89:M89), 0)),"") -> 
B90: Součet | E90: =SUM(E80:E89) ->  | O90: =SUM(E90:M90) -> 
B91: Průměr | E91: =IFERROR(AVERAGEIF(E80:E89,"<>0",E80:E89),"") ->  | P91: =IF(O90="","",AVERAGEIF(E80:M89,"<>0",E80:M89)) -> 
AG92: Pomocné tabulky, které kopírují hodnoty ze zdrojových tabulek s funkcí odstranění nulových hodnot. Dále je použito pro vyhledávání jmen a průměrů jednotlivých hráčů obou mužských kategorií pro vyhodnocení cen za nejnižší a nejvyšší náhozy (kompaktně v jedné ucelené tabulce).
B93: =rozpis_příprava!E20 -> Ž | C93: =rozpis_příprava!B20 -> KATEGORIE ŽENY
B94: =rozpis_příprava!E21 -> M | C94: =rozpis_příprava!B21 -> KATEGORIE MUŽI
B95: =rozpis_příprava!E22 -> P | C95: =rozpis_příprava!B22 -> KATEGORIE PROFI
